{"text_format":"1","workbook":"xlsx","n_sheets":9,"sheets":["1. Начальные данные","2. Пров.суммы","3. Объяснительная","4. ФК-1","5. Объекты КМ","6. Обратная связь ","7. Реал.полном.","Контроль","Контроль2"],"not_rendered":{"charts":0,"images":0,"macros":1,"external_links":1,"defined_names":42,"comments":0,"pivot_tables":0},"unopened":[],"bounds":{"document_bytes":16777216,"sheet_cells":100000,"rows_first":2000,"rows_last":500,"rows_between":2000,"halvings":0,"cell_chars":16384,"cell_head_chars":4096},"cells_cut":0,"cells_raw":0,"read":"whole","date_system":"1900"}

{"sheet":"1. Начальные данные","index":0,"n_rows":30,"n_cols":22,"rows_kept":30,"cut":false,"hidden":false,"merged":[[25,3,34,8],[21,0,21,2],[21,3,21,8],[11,0,11,8],[15,0,15,2],[15,3,15,8],[17,3,17,4],[17,5,17,8],[19,0,19,2],[20,0,20,2],[19,3,19,8],[20,3,20,8],[16,0,16,2],[17,0,17,2],[16,3,16,8]]}
[null,null,null,null,null,null,null,null,null,null,null,null,null,null,null,null,null,null,null,null,"Версия:","2.0"]
[]
[]
[]
[]
[]
[]
[]
[]
[]
[]
["Отчет по внутреннему муниципальному финансовому контролю"]
[]
[]
[]
["Уровень бюджета:",null,null,"Муниципальный",null,null,null,null,null,null,null,{"$f":"D16","v":"Муниципальный"}]
["Наименование учреждения:",null,null,"ФУ Администрации МР Нуримановский район РБ",null,null,null,null,null,null,null,{"$f":"D17","v":"ФУ Администрации МР Нуримановский район РБ"}]
["Дата:",null,null,"2017-06-30",null,2017,null,null,null,null,null,{"$f":"D18","v":42916},{"$f":"F18","v":2017}]
[]
["Исполнитель:",null,null,"Гайнетдинова Олеся Николаевна",null,null,null,null,null,null,"Vers.1.2"]
["Рабочий телефон:",null,null,"8-34776-2-21-02"]
["Мобильный телефон:",null,null,"8-961-370-72-72"]
[]
[]
[]
[null,null,{"$f":"IF(N30=0,\"\",\"Ошибки:\")","v":""},{"$f":"O26","v":""},null,null,null,null,null,null,null,null,{"$f":"IF(OR(D16=\"Государственный\", D16=\"Муниципальный\"), \"\",\"Не выбран уровень бюджета! \"&CHAR(10))","v":""},{"$f":"IF(OR(D16=\"Государственный\", D16=\"Муниципальный\"), \"\",1)","v":""},{"$f":"CONCATENATE(M26,M27,M28,M29)","v":""}]
[null,null,null,null,null,null,null,null,null,null,null,null,{"$f":"IF(OR(D17=0, D17=\"[выберите учреждение]\"), \"Не выбрано наименование учреждения! \"&CHAR(10),\"\")","v":""},{"$f":"IF(OR(D17=0, D17=\"[выберите учреждение]\"), 1,\"\")","v":""}]
[null,null,null,null,null,null,null,null,null,null,null,null,{"$f":"IF(OR(D18=0, D18=\"[выберите дату]\",F18=0, F18=\"[выберите год]\"), \"Не выбрана дата! \"&CHAR(10),\"\")","v":""},{"$f":"IF(OR(D18=0, D18=\"[выберите дату]\",F18=0, F18=\"[выберите год]\"), 1,\"\")","v":""}]
[null,null,null,null,null,null,null,null,null,null,null,null,{"$f":"IF(OR(LEN(D22)<9,D22=\"[наберите на клавиатуре]\"),\"Проверьте правильность номера мобильного! \"&CHAR(10),\"\")","v":""},{"$f":"IF(OR(LEN(D22)<9,D22=\"[наберите на клавиатуре]\"),1,\"\")","v":""}]
[null,null,null,null,null,null,null,null,null,null,null,null,null,{"$f":"SUM(N26:N29)","v":0}]

{"sheet":"2. Пров.суммы","index":1,"n_rows":315,"n_cols":17,"rows_kept":315,"cut":false,"hidden":false,"merged":[[11,12,11,15],[11,16,11,19],[8,1,8,3],[8,4,8,7],[8,8,8,11],[13,1,13,3],[13,4,13,7],[13,8,13,11],[13,12,13,15],[13,16,13,19],[4,0,4,19],[108,0,108,19],[106,0,106,3],[210,0,210,3],[212,0,212,19],[314,0,314,3],[5,16,5,19],[5,12,5,15],[6,1,6,3],[6,4,6,7],[6,8,6,11],[6,12,6,15],[6,16,6,19],[7,1,7,3],[7,4,7,7],[7,8,7,11],[7,12,7,15],[7,16,7,19],[5,1,5,3],[10,1,10,3],[10,4,10,7],[10,8,10,11],[10,12,10,15],[10,16,10,19],[11,1,11,3],[11,4,11,7],[11,8,11,11],[16,1,16,3],[16,4,16,7],[16,8,16,11],[16,12,16,15],[16,16,16,19],[17,1,17,3],[17,4,17,7],[17,8,17,11],[17,12,17,15],[17,16,17,19],[8,12,8,15],[8,16,8,19],[9,1,9,3],[9,4,9,7],[9,8,9,11],[9,12,9,15],[9,16,9,19],[14,1,14,3],[14,4,14,7],[14,8,14,11],[14,12,14,15],[14,16,14,19],[15,1,15,3],[15,4,15,7],[15,8,15,11],[15,12,15,15],[15,16,15,19],[12,1,12,3],[12,4,12,7],[12,8,12,11],[12,12,12,15],[12,16,12,19],[20,1,20,3],[20,4,20,7],[20,8,20,11],[20,12,20,15],[20,16,20,19],[21,1,21,3],[21,4,21,7],[21,8,21,11],[21,12,21,15],[21,16,21,19],[18,1,18,3],[18,4,18,7],[18,8,18,11],[18,12,18,15],[18,16,18,19],[19,1,19,3],[19,4,19,7],[19,8,19,11],[19,12,19,15],[19,16,19,19],[24,1,24,3],[24,4,24,7],[24,8,24,11],[24,12,24,15],[24,16,24,19],[25,1,25,3],[25,4,25,7],[25,8,25,11],[25,12,25,15],[25,16,25,19],[22,1,22,3],[22,4,22,7],[22,8,22,11],[22,12,22,15],[22,16,22,19],[23,1,23,3],[23,4,23,7],[23,8,23,11],[23,12,23,15],[23,16,23,19],[28,1,28,3],[28,4,28,7],[28,8,28,11],[28,12,28,15],[28,16,28,19],[29,1,29,3],[29,4,29,7],[29,8,29,11],[29,12,29,15],[29,16,29,19],[26,1,26,3],[26,4,26,7],[26,8,26,11],[26,12,26,15],[26,16,26,19],[27,1,27,3],[27,4,27,7],[27,8,27,11],[27,12,27,15],[27,16,27,19],[32,1,32,3],[32,4,32,7],[32,8,32,11],[32,12,32,15],[32,16,32,19],[33,1,33,3],[33,4,33,7],[33,8,33,11],[33,12,33,15],[33,16,33,19],[30,1,30,3],[30,4,30,7],[30,8,30,11],[30,12,30,15],[30,16,30,19],[31,1,31,3],[31,4,31,7],[31,8,31,11],[31,12,31,15],[31,16,31,19],[36,1,36,3],[36,4,36,7],[36,8,36,11],[36,12,36,15],[36,16,36,19],[37,1,37,3],[37,4,37,7],[37,8,37,11],[37,12,37,15],[37,16,37,19],[34,1,34,3],[34,4,34,7],[34,8,34,11],[34,12,34,15],[34,16,34,19],[35,1,35,3],[35,4,35,7],[35,8,35,11],[35,12,35,15],[35,16,35,19],[40,1,40,3],[40,4,40,7],[40,8,40,11],[40,12,40,15],[40,16,40,19],[41,1,41,3],[41,4,41,7],[41,8,41,11],[41,12,41,15],[41,16,41,19],[38,1,38,3],[38,4,38,7],[38,8,38,11],[38,12,38,15],[38,16,38,19],[39,1,39,3],[39,4,39,7],[39,8,39,11],[39,12,39,15],[39,16,39,19],[44,1,44,3],[44,4,44,7],[44,8,44,11],[44,12,44,15],[44,16,44,19],[45,1,45,3],[45,4,45,7],[45,8,45,11],[45,12,45,15],[45,16,45,19],[42,1,42,3],[42,4,42,7],[42,8,42,11],[42,12,42,15],[42,16,42,19],[43,1,43,3],[43,4,43,7],[43,8,43,11],[43,12,43,15],[43,16,43,19],[48,1,48,3],[48,4,48,7],[48,8,48,11],[48,12,48,15],[48,16,48,19],[49,1,49,3],[49,4,49,7],[49,8,49,11],[49,12,49,15],[49,16,49,19],[46,1,46,3],[46,4,46,7],[46,8,46,11],[46,12,46,15],[46,16,46,19],[47,1,47,3],[47,4,47,7],[47,8,47,11],[47,12,47,15],[47,16,47,19],[52,1,52,3],[52,4,52,7],[52,8,52,11],[52,12,52,15],[52,16,52,19],[53,1,53,3],[53,4,53,7],[53,8,53,11],[53,12,53,15],[53,16,53,19],[50,1,50,3],[50,4,50,7],[50,8,50,11],[50,12,50,15],[50,16,50,19],[51,1,51,3],[51,4,51,7],[51,8,51,11],[51,12,51,15],[51,16,51,19],[56,1,56,3],[56,4,56,7],[56,8,56,11],[56,12,56,15],[56,16,56,19],[57,1,57,3],[57,4,57,7],[57,8,57,11],[57,12,57,15],[57,16,57,19],[54,1,54,3],[54,4,54,7],[54,8,54,11],[54,12,54,15],[54,16,54,19],[55,1,55,3],[55,4,55,7],[55,8,55,11],[55,12,55,15],[55,16,55,19],[60,1,60,3],[60,4,60,7],[60,8,60,11],[60,12,60,15],[60,16,60,19],[61,1,61,3],[61,4,61,7],[61,8,61,11],[61,12,61,15],[61,16,61,19],[58,1,58,3],[58,4,58,7],[58,8,58,11],[58,12,58,15],[58,16,58,19],[59,1,59,3],[59,4,59,7],[59,8,59,11],[59,12,59,15],[59,16,59,19],[64,1,64,3],[64,4,64,7],[64,8,64,11],[64,12,64,15],[64,16,64,19],[65,1,65,3],[65,4,65,7],[65,8,65,11],[65,12,65,15],[65,16,65,19],[62,1,62,3],[62,4,62,7],[62,8,62,11],[62,12,62,15],[62,16,62,19],[63,1,63,3],[63,4,63,7],[63,8,63,11],[63,12,63,15],[63,16,63,19],[68,1,68,3],[68,4,68,7],[68,8,68,11],[68,12,68,15],[68,16,68,19],[69,1,69,3],[69,4,69,7],[69,8,69,11],[69,12,69,15],[69,16,69,19],[66,1,66,3],[66,4,66,7],[66,8,66,11],[66,12,66,15],[66,16,66,19],[67,1,67,3],[67,4,67,7],[67,8,67,11],[67,12,67,15],[67,16,67,19],[72,1,72,3],[72,4,72,7],[72,8,72,11],[72,12,72,15],[72,16,72,19],[73,1,73,3],[73,4,73,7],[73,8,73,11],[73,12,73,15],[73,16,73,19],[70,1,70,3],[70,4,70,7],[70,8,70,11],[70,12,70,15],[70,16,70,19],[71,1,71,3],[71,4,71,7],[71,8,71,11],[71,12,71,15],[71,16,71,19],[76,1,76,3],[76,4,76,7],[76,8,76,11],[76,12,76,15],[76,16,76,19],[77,1,77,3],[77,4,77,7],[77,8,77,11],[77,12,77,15],[77,16,77,19],[74,1,74,3],[74,4,74,7],[74,8,74,11],[74,12,74,15],[74,16,74,19],[75,1,75,3],[75,4,75,7],[75,8,75,11],[75,12,75,15],[75,16,75,19],[80,1,80,3],[80,4,80,7],[80,8,80,11],[80,12,80,15],[80,16,80,19],[81,1,81,3],[81,4,81,7],[81,8,81,11],[81,12,81,15],[81,16,81,19],[78,1,78,3],[78,4,78,7],[78,8,78,11],[78,12,78,15],[78,16,78,19],[79,1,79,3],[79,4,79,7],[79,8,79,11],[79,12,79,15],[79,16,79,19],[84,1,84,3],[84,4,84,7],[84,8,84,11],[84,12,84,15],[84,16,84,19],[85,1,85,3],[85,4,85,7],[85,8,85,11],[85,12,85,15],[85,16,85,19],[82,1,82,3],[82,4,82,7],[82,8,82,11],[82,12,82,15],[82,16,82,19],[83,1,83,3],[83,4,83,7],[83,8,83,11],[83,12,83,15],[83,16,83,19],[88,1,88,3],[88,4,88,7],[88,8,88,11],[88,12,88,15],[88,16,88,19],[89,1,89,3],[89,4,89,7],[89,8,89,11],[89,12,89,15],[89,16,89,19],[86,1,86,3],[86,4,86,7],[86,8,86,11],[86,12,86,15],[86,16,86,19],[87,1,87,3],[87,4,87,7],[87,8,87,11],[87,12,87,15],[87,16,87,19],[92,1,92,3],[92,4,92,7],[92,8,92,11],[92,12,92,15],[92,16,92,19],[93,1,93,3],[93,4,93,7],[93,8,93,11],[93,12,93,15],[93,16,93,19],[90,1,90,3],[90,4,90,7],[90,8,90,11],[90,12,90,15],[90,16,90,19],[91,1,91,3],[91,4,91,7],[91,8,91,11],[91,12,91,15],[91,16,91,19],[94,1,94,3],[94,4,94,7],[94,8,94,11],[94,12,94,15],[94,16,94,19],[95,1,95,3],[95,4,95,7],[95,8,95,11],[95,12,95,15],[95,16,95,19],[98,8,98,11],[98,12,98,15],[98,16,98,19],[99,1,99,3],[99,4,99,7],[99,8,99,11],[99,12,99,15],[99,16,99,19],[96,1,96,3],[96,4,96,7],[96,8,96,11],[96,12,96,15],[96,16,96,19],[97,1,97,3],[97,4,97,7],[97,8,97,11],[97,12,97,15],[97,16,97,19],[105,1,105,3],[105,4,105,7],[105,8,105,11],[105,12,105,15],[105,16,105,19],[102,1,102,3],[102,4,102,7],[102,8,102,11],[102,12,102,15],[102,16,102,19],[103,1,103,3],[103,4,103,7],[103,8,103,11],[103,12,103,15],[103,16,103,19],[100,1,100,3],[100,4,100,7],[100,8,100,11],[100,12,100,15],[100,16,100,19],[101,1,101,3],[101,4,101,7],[101,8,101,11],[101,12,101,15],[101,16,101,19],[0,0,0,19],[1,0,1,19],[2,0,2,19],[106,4,106,7],[106,8,106,11],[106,12,106,15],[106,16,106,19],[111,1,111,3],[111,4,111,7],[111,8,111,11],[111,12,111,15],[111,16,111,19],[110,1,110,3],[110,4,110,7],[110,8,110,11],[110,12,110,15],[110,16,110,19],[109,1,109,3],[109,4,109,7],[109,8,109,11],[109,12,109,15],[109,16,109,19],[3,15,3,19],[5,8,5,11],[5,4,5,7],[104,1,104,3],[104,4,104,7],[104,8,104,11],[104,12,104,15],[104,16,104,19],[98,1,98,3],[98,4,98,7],[114,1,114,3],[114,4,114,7],[114,8,114,11],[114,12,114,15],[114,16,114,19],[113,1,113,3],[113,4,113,7],[113,8,113,11],[113,12,113,15],[113,16,113,19],[112,1,112,3],[112,4,112,7],[112,8,112,11],[112,12,112,15],[112,16,112,19],[117,1,117,3],[117,4,117,7],[117,8,117,11],[117,12,117,15],[117,16,117,19],[116,1,116,3],[116,4,116,7],[116,8,116,11],[116,12,116,15],[116,16,116,19],[115,1,115,3],[115,4,115,7],[115,8,115,11],[115,12,115,15],[115,16,115,19],[120,1,120,3],[120,4,120,7],[120,8,120,11],[120,12,120,15],[120,16,120,19],[119,1,119,3],[119,4,119,7],[119,8,119,11],[119,12,119,15],[119,16,119,19],[118,1,118,3],[118,4,118,7],[118,8,118,11],[118,12,118,15],[118,16,118,19],[123,1,123,3],[123,4,123,7],[123,8,123,11],[123,12,123,15],[123,16,123,19],[122,1,122,3],[122,4,122,7],[122,8,122,11],[122,12,122,15],[122,16,122,19],[121,1,121,3],[121,4,121,7],[121,8,121,11],[121,12,121,15],[121,16,121,19],[126,1,126,3],[126,4,126,7],[126,8,126,11],[126,12,126,15],[126,16,126,19],[125,1,125,3],[125,4,125,7],[125,8,125,11],[125,12,125,15],[125,16,125,19],[124,1,124,3],[124,4,124,7],[124,8,124,11],[124,12,124,15],[124,16,124,19],[129,1,129,3],[129,4,129,7],[129,8,129,11],[129,12,129,15],[129,16,129,19],[128,1,128,3],[128,4,128,7],[128,8,128,11],[128,12,128,15],[128,16,128,19],[127,1,127,3],[127,4,127,7],[127,8,127,11],[127,12,127,15],[127,16,127,19],[132,1,132,3],[132,4,132,7],[132,8,132,11],[132,12,132,15],[132,16,132,19],[131,1,131,3],[131,4,131,7],[131,8,131,11],[131,12,131,15],[131,16,131,19],[130,1,130,3],[130,4,130,7],[130,8,130,11],[130,12,130,15],[130,16,130,19],[135,1,135,3],[135,4,135,7],[135,8,135,11],[135,12,135,15],[135,16,135,19],[134,1,134,3],[134,4,134,7],[134,8,134,11],[134,12,134,15],[134,16,134,19],[133,1,133,3],[133,4,133,7],[133,8,133,11],[133,12,133,15],[133,16,133,19],[138,1,138,3],[138,4,138,7],[138,8,138,11],[138,12,138,15],[138,16,138,19],[137,1,137,3],[137,4,137,7],[137,8,137,11],[137,12,137,15],[137,16,137,19],[136,1,136,3],[136,4,136,7],[136,8,136,11],[136,12,136,15],[136,16,136,19],[141,1,141,3],[141,4,141,7],[141,8,141,11],[141,12,141,15],[141,16,141,19],[140,1,140,3],[140,4,140,7],[140,8,140,11],[140,12,140,15],[140,16,140,19],[139,1,139,3],[139,4,139,7],[139,8,139,11],[139,12,139,15],[139,16,139,19],[144,1,144,3],[144,4,144,7],[144,8,144,11],[144,12,144,15],[144,16,144,19],[143,1,143,3],[143,4,143,7],[143,8,143,11],[143,12,143,15],[143,16,143,19],[142,1,142,3],[142,4,142,7],[142,8,142,11],[142,12,142,15],[142,16,142,19],[147,1,147,3],[147,4,147,7],[147,8,147,11],[147,12,147,15],[147,16,147,19],[146,1,146,3],[146,4,146,7],[146,8,146,11],[146,12,146,15],[146,16,146,19],[145,1,145,3],[145,4,145,7],[145,8,145,11],[145,12,145,15],[145,16,145,19],[150,1,150,3],[150,4,150,7],[150,8,150,11],[150,12,150,15],[150,16,150,19],[149,1,149,3],[149,4,149,7],[149,8,149,11],[149,12,149,15],[149,16,149,19],[148,1,148,3],[148,4,148,7],[148,8,148,11],[148,12,148,15],[148,16,148,19],[153,1,153,3],[153,4,153,7],[153,8,153,11],[153,12,153,15],[153,16,153,19],[152,1,152,3],[152,4,152,7],[152,8,152,11],[152,12,152,15],[152,16,152,19],[151,1,151,3],[151,4,151,7],[151,8,151,11],[151,12,151,15],[151,16,151,19],[156,1,156,3],[156,4,156,7],[156,8,156,11],[156,12,156,15],[156,16,156,19],[155,1,155,3],[155,4,155,7],[155,8,155,11],[155,12,155,15],[155,16,155,19],[154,1,154,3],[154,4,154,7],[154,8,154,11],[154,12,154,15],[154,16,154,19],[159,1,159,3],[159,4,159,7],[159,8,159,11],[159,12,159,15],[159,16,159,19],[158,1,158,3],[158,4,158,7],[158,8,158,11],[158,12,158,15],[158,16,158,19],[157,1,157,3],[157,4,157,7],[157,8,157,11],[157,12,157,15],[157,16,157,19],[162,1,162,3],[162,4,162,7],[162,8,162,11],[162,12,162,15],[162,16,162,19],[161,1,161,3],[161,4,161,7],[161,8,161,11],[161,12,161,15],[161,16,161,19],[160,1,160,3],[160,4,160,7],[160,8,160,11],[160,12,160,15],[160,16,160,19],[165,1,165,3],[165,4,165,7],[165,8,165,11],[165,12,165,15],[165,16,165,19],[164,1,164,3],[164,4,164,7],[164,8,164,11],[164,12,164,15],[164,16,164,19],[163,1,163,3],[163,4,163,7],[163,8,163,11],[163,12,163,15],[163,16,163,19],[168,1,168,3],[168,4,168,7],[168,8,168,11],[168,12,168,15],[168,16,168,19],[167,1,167,3],[167,4,167,7],[167,8,167,11],[167,12,167,15],[167,16,167,19],[166,1,166,3],[166,4,166,7],[166,8,166,11],[166,12,166,15],[166,16,166,19],[171,1,171,3],[171,4,171,7],[171,8,171,11],[171,12,171,15],[171,16,171,19],[170,1,170,3],[170,4,170,7],[170,8,170,11],[170,12,170,15],[170,16,170,19],[169,1,169,3],[169,4,169,7],[169,8,169,11],[169,12,169,15],[169,16,169,19],[174,1,174,3],[174,4,174,7],[174,8,174,11],[174,12,174,15],[174,16,174,19],[173,1,173,3],[173,4,173,7],[173,8,173,11],[173,12,173,15],[173,16,173,19],[172,1,172,3],[172,4,172,7],[172,8,172,11],[172,12,172,15],[172,16,172,19],[177,1,177,3],[177,4,177,7],[177,8,177,11],[177,12,177,15],[177,16,177,19],[176,1,176,3],[176,4,176,7],[176,8,176,11],[176,12,176,15],[176,16,176,19],[175,1,175,3],[175,4,175,7],[175,8,175,11],[175,12,175,15],[175,16,175,19],[180,1,180,3],[180,4,180,7],[180,8,180,11],[180,12,180,15],[180,16,180,19],[179,1,179,3],[179,4,179,7],[179,8,179,11],[179,12,179,15],[179,16,179,19],[178,1,178,3],[178,4,178,7],[178,8,178,11],[178,12,178,15],[178,16,178,19],[183,1,183,3],[183,4,183,7],[183,8,183,11],[183,12,183,15],[183,16,183,19],[182,1,182,3],[182,4,182,7],[182,8,182,11],[182,12,182,15],[182,16,182,19],[181,1,181,3],[181,4,181,7],[181,8,181,11],[181,12,181,15],[181,16,181,19],[186,1,186,3],[186,4,186,7],[186,8,186,11],[186,12,186,15],[186,16,186,19],[185,1,185,3],[185,4,185,7],[185,8,185,11],[185,12,185,15],[185,16,185,19],[184,1,184,3],[184,4,184,7],[184,8,184,11],[184,12,184,15],[184,16,184,19],[189,1,189,3],[189,4,189,7],[189,8,189,11],[189,12,189,15],[189,16,189,19],[188,1,188,3],[188,4,188,7],[188,8,188,11],[188,12,188,15],[188,16,188,19],[187,1,187,3],[187,4,187,7],[187,8,187,11],[187,12,187,15],[187,16,187,19],[192,1,192,3],[192,4,192,7],[192,8,192,11],[192,12,192,15],[192,16,192,19],[191,1,191,3],[191,4,191,7],[191,8,191,11],[191,12,191,15],[191,16,191,19],[190,1,190,3],[190,4,190,7],[190,8,190,11],[190,12,190,15],[190,16,190,19],[195,1,195,3],[195,4,195,7],[195,8,195,11],[195,12,195,15],[195,16,195,19],[194,1,194,3],[194,4,194,7],[194,8,194,11],[194,12,194,15],[194,16,194,19],[193,1,193,3],[193,4,193,7],[193,8,193,11],[193,12,193,15],[193,16,193,19],[198,1,198,3],[198,4,198,7],[198,8,198,11],[198,12,198,15],[198,16,198,19],[197,1,197,3],[197,4,197,7],[197,8,197,11],[197,12,197,15],[197,16,197,19],[196,1,196,3],[196,4,196,7],[196,8,196,11],[196,12,196,15],[196,16,196,19],[201,1,201,3],[201,4,201,7],[201,8,201,11],[201,12,201,15],[201,16,201,19],[200,1,200,3],[200,4,200,7],[200,8,200,11],[200,12,200,15],[200,16,200,19],[199,1,199,3],[199,4,199,7],[199,8,199,11],[199,12,199,15],[199,16,199,19],[204,1,204,3],[204,4,204,7],[204,8,204,11],[204,12,204,15],[204,16,204,19],[203,1,203,3],[203,4,203,7],[203,8,203,11],[203,12,203,15],[203,16,203,19],[202,1,202,3],[202,4,202,7],[202,8,202,11],[202,12,202,15],[202,16,202,19],[207,1,207,3]],"merged_total":1537,"flags":["merged_cut"]}
["Сведения о проверенных средствах"]
[{"$f":"CONCATENATE('1. Начальные данные'!L18,'1. Начальные данные'!M18)","v":"429162017"}]
[{"$f":"'1. Начальные данные'!L17","v":"ФУ Администрации МР Нуримановский район РБ"}]
[null,null,null,null,null,null,null,null,null,null,null,null,null,null,null,"в тыс. руб."]
["По средствам бюджета Республики Башкортостан"]
["Наименование","РзПр",null,null,{"$f":"IFERROR(I6-1,\"не выбран период\")","v":2014},null,null,null,{"$f":"IFERROR(M6-1,\"не выбран период\")","v":2015},null,null,null,{"$f":"IFERROR(Q6-1,\"не выбран период\")","v":2016},null,null,null,{"$f":"IFERROR(IF('1. Начальные данные'!L18=\"1 января\",LEFT('1. Начальные данные'!M18,4)-1,LEFT('1. Начальные данные'!M18,4)-0),\"не выбран период\")","v":2017}]
["Функционирование Президента Российской Федерации","0101"]
["Функционирование высшего должностного лица субъекта Российской Федерации и муниципального образования","0102"]
["Функционирование законодательных (представительных) органов государственной власти и представительных органов муниципальных образований","0103"]
["Функционирование Правительства Российской Федерации, высших исполнительных органов государственной власти субъектов Российской Федерации, местных администраций","0104"]
["Судебная система","0105"]
["Обеспечение деятельности финансовых, налоговых и таможенных органов и органов финансового (финансово-бюджетного) надзора","0106"]
["Обеспечение проведения выборов и референдумов","0107"]
["Международные отношения и международное сотрудничество","0108"]
["Государственный материальный резерв","0109"]
["Фундаментальные исследования","0110"]
["Резервные фонды","0111"]
["Прикладные научные исследования в области общегосударственных вопросов","0112"]
["Другие общегосударственные вопросы","0113"]
["Вооруженные Силы Российской Федерации","0201"]
["Модернизация Вооруженных Сил Российской Федерации и воинских формирований","0202"]
["Мобилизационная и вневойсковая подготовка","0203"]
["Мобилизационная подготовка экономики","0204"]
["Подготовка и участие в обеспечении коллективной безопасности и миротворческой деятельности;","0205"]
["Ядерно-оружейный комплекс","0206"]
["Реализация международных обязательств в сфере военно-технического сотрудничества","0207"]
["Прикладные научные исследования в области национальной обороны","0208"]
["Другие вопросы в области национальной обороны","0209"]
["Органы прокуратуры","0301"]
["Органы внутренних дел","0302"]
["Внутренние войска","0303"]
["Органы юстиции","0304"]
["Система исполнения наказаний","0305"]
["Органы безопасности","0306"]
["Органы пограничной службы","0307"]
["Органы по контролю за оборотом наркотических средств и психотропных веществ","0308"]
["Защита населения и территории от чрезвычайных ситуаций природного и техногенного характера, гражданская оборона","0309"]
["Обеспечение пожарной безопасности","0310"]
["Миграционная политика","0311"]
["Модернизация внутренних войск, спасательных воинских формирований федерального органа исполнительной власти, уполномоченного на решение задач в области гражданской обороны, а также правоохранительных и иных органов","0312"]
["Прикладные научные исследования в области национальной безопасности и правоохранительной деятельности","0313"]
["Другие вопросы в области национальной безопасности и правоохранительной деятельности","0314"]
["Общеэкономические вопросы","0401"]
["Топливно-энергетический комплекс","0402"]
["Исследование и использование космического пространства","0403"]
["Воспроизводство минерально-сырьевой базы","0404"]
["Сельское хозяйство и рыболовство","0405"]
["Водное хозяйство","0406"]
["Лесное хозяйство","0407"]
["Транспорт","0408"]
["Дорожное хозяйство (дорожные фонды)","0409"]
["Связь и информатика","0410"]
["Прикладные научные исследования в области национальной экономики","0411"]
["Другие вопросы в области национальной экономики","0412"]
["Жилищное хозяйство","0501"]
["Коммунальное хозяйство","0502"]
["Благоустройство","0503"]
["Прикладные научные исследования в области жилищно-коммунального хозяйства","0504"]
["Другие вопросы в области жилищно-коммунального хозяйства","0505"]
["Экологический контроль","0601"]
["Сбор, удаление отходов и очистка сточных вод","0602"]
["Охрана объектов растительного и животного мира и среды их обитания","0603"]
["Прикладные научные исследования в области охраны окружающей среды","0604"]
["Другие вопросы в области охраны окружающей среды","0605"]
["Дошкольное образование","0701",null,null,null,null,null,null,2148955.2400000002,null,null,null,{"$f":"116979.3+912155","v":1029134.3}]
["Общее образование","0702",null,null,null,null,null,null,6258504.6299999999,null,null,null,{"$f":"634560.85+5369751","v":6004311.8499999996}]
["Начальное профессиональное образование","0703"]
["Среднее профессиональное образование","0704"]
["Профессиональная подготовка, переподготовка и повышение квалификации","0705"]
["Высшее и послевузовское профессиональное образование","0706"]
["Молодежная политика и оздоровление детей","0707"]
["Прикладные научные исследования в области образования","0708"]
["Другие вопросы в области образования","0709"]
["Культура","0801"]
["Кинематография","0802"]
["Прикладные научные исследования в области культуры, кинематографии","0803"]
["Другие вопросы в области культуры, кинематографии","0804"]
["Стационарная медицинская помощь","0901"]
["Амбулаторная помощь","0902"]
["Медицинская помощь в дневных стационарах всех типов","0903"]
["Скорая медицинская помощь","0904"]
["Санаторно-оздоровительная помощь","0905"]
["Заготовка, переработка, хранение и обеспечение безопасности донорской крови и ее компонентов","0906"]
["Санитарно-эпидемиологическое благополучие","0907"]
["Прикладные научные исследования в области здравоохранения","0908"]
["Другие вопросы в области здравоохранения","0909"]
["Пенсионное обеспечение","1001"]
["Социальное обслуживание населения","1002"]
["Социальное обеспечение населения","1003"]
["Охрана семьи и детства","1004"]
["Прикладные научные исследования в области социальной политики","1005"]
["Другие вопросы в области социальной политики","1006"]
["Физическая культура","1101"]
["Массовый спорт","1102"]
["Спорт высших достижений","1103"]
["Прикладные научные исследования в области физической культуры и спорта","1104"]
["Другие вопросы в области физической культуры и спорта","1105"]
["Телевидение и радиовещание","1201"]
["Периодическая печать и издательства","1202"]
["Прикладные научные исследования в области средств массовой информации","1203"]
["Другие вопросы в области средств массовой информации","1204"]
["Обслуживание государственного внутреннего и муниципального долга","1301"]
["Обслуживание государственного внешнего долга","1302"]
["Дотации на выравнивание бюджетной обеспеченности субъектов Российской Федерации и муниципальных образований","1401"]
["Иные дотации","1402"]
["Прочие межбюджетные трансферты общего характера","1403"]
["Итого по средствам бюджета Республики Башкортостан",null,null,null,{"$f":"SUM(E7:H106)","v":0},null,null,null,{"$f":"SUM(I7:L106)","v":8407459.870000001},null,null,null,{"$f":"SUM(M7:P106)","v":7033446.1499999994},null,null,null,{"$f":"SUM(Q7:T106)","v":0}]
[]
["По средствам бюджета муниципального образования"]
["Наименование","РзПр",null,null,{"$f":"IFERROR(I6-1,\"не выбран период\")","v":2014},null,null,null,{"$f":"IFERROR(M6-1,\"не выбран период\")","v":2015},null,null,null,{"$f":"IFERROR(Q6-1,\"не выбран период\")","v":2016},null,null,null,{"$f":"IFERROR(IF('1. Начальные данные'!L18=\"1 января\",LEFT('1. Начальные данные'!M18,4)-1,LEFT('1. Начальные данные'!M18,4)-0),\"не выбран период\")","v":2017}]
["Функционирование Президента Российской Федерации","0101"]
["Функционирование высшего должностного лица субъекта Российской Федерации и муниципального образования","0102"]
["Функционирование законодательных (представительных) органов государственной власти и представительных органов муниципальных образований","0103"]
["Функционирование Правительства Российской Федерации, высших исполнительных органов государственной власти субъектов Российской Федерации, местных администраций","0104"]
["Судебная система","0105"]
["Обеспечение деятельности финансовых, налоговых и таможенных органов и органов финансового (финансово-бюджетного) надзора","0106"]
["Обеспечение проведения выборов и референдумов","0107"]
["Международные отношения и международное сотрудничество","0108"]
["Государственный материальный резерв","0109"]
["Фундаментальные исследования","0110"]
["Резервные фонды","0111"]
["Прикладные научные исследования в области общегосударственных вопросов","0112"]
["Другие общегосударственные вопросы","0113"]
["Вооруженные Силы Российской Федерации","0201"]
["Модернизация Вооруженных Сил Российской Федерации и воинских формирований","0202"]
["Мобилизационная и вневойсковая подготовка","0203"]
["Мобилизационная подготовка экономики","0204"]
["Подготовка и участие в обеспечении коллективной безопасности и миротворческой деятельности;","0205"]
["Ядерно-оружейный комплекс","0206"]
["Реализация международных обязательств в сфере военно-технического сотрудничества","0207"]
["Прикладные научные исследования в области национальной обороны","0208"]
["Другие вопросы в области национальной обороны","0209"]
["Органы прокуратуры","0301"]
["Органы внутренних дел","0302"]
["Внутренние войска","0303"]
["Органы юстиции","0304"]
["Система исполнения наказаний","0305"]
["Органы безопасности","0306"]
["Органы пограничной службы","0307"]
["Органы по контролю за оборотом наркотических средств и психотропных веществ","0308"]
["Защита населения и территории от чрезвычайных ситуаций природного и техногенного характера, гражданская оборона","0309"]
["Обеспечение пожарной безопасности","0310"]
["Миграционная политика","0311"]
["Модернизация внутренних войск, спасательных воинских формирований федерального органа исполнительной власти, уполномоченного на решение задач в области гражданской обороны, а также правоохранительных и иных органов","0312"]
["Прикладные научные исследования в области национальной безопасности и правоохранительной деятельности","0313"]
["Другие вопросы в области национальной безопасности и правоохранительной деятельности","0314"]
["Общеэкономические вопросы","0401"]
["Топливно-энергетический комплекс","0402"]
["Исследование и использование космического пространства","0403"]
["Воспроизводство минерально-сырьевой базы","0404"]
["Сельское хозяйство и рыболовство","0405"]
["Водное хозяйство","0406"]
["Лесное хозяйство","0407"]
["Транспорт","0408"]
["Дорожное хозяйство (дорожные фонды)","0409"]
["Связь и информатика","0410"]
["Прикладные научные исследования в области национальной экономики","0411"]
["Другие вопросы в области национальной экономики","0412"]
["Жилищное хозяйство","0501"]
["Коммунальное хозяйство","0502"]
["Благоустройство","0503"]
["Прикладные научные исследования в области жилищно-коммунального хозяйства","0504"]
["Другие вопросы в области жилищно-коммунального хозяйства","0505"]
["Экологический контроль","0601"]
["Сбор, удаление отходов и очистка сточных вод","0602"]
["Охрана объектов растительного и животного мира и среды их обитания","0603"]
["Прикладные научные исследования в области охраны окружающей среды","0604"]
["Другие вопросы в области охраны окружающей среды","0605"]
["Дошкольное образование","0701"]
["Общее образование","0702"]
["Начальное профессиональное образование","0703"]
["Среднее профессиональное образование","0704"]
["Профессиональная подготовка, переподготовка и повышение квалификации","0705"]
["Высшее и послевузовское профессиональное образование","0706"]
["Молодежная политика и оздоровление детей","0707"]
["Прикладные научные исследования в области образования","0708"]
["Другие вопросы в области образования","0709"]
["Культура","0801"]
["Кинематография","0802"]
["Прикладные научные исследования в области культуры, кинематографии","0803"]
["Другие вопросы в области культуры, кинематографии","0804"]
["Стационарная медицинская помощь","0901"]
["Амбулаторная помощь","0902"]
["Медицинская помощь в дневных стационарах всех типов","0903"]
["Скорая медицинская помощь","0904"]
["Санаторно-оздоровительная помощь","0905"]
["Заготовка, переработка, хранение и обеспечение безопасности донорской крови и ее компонентов","0906"]
["Санитарно-эпидемиологическое благополучие","0907"]
["Прикладные научные исследования в области здравоохранения","0908"]
["Другие вопросы в области здравоохранения","0909"]
["Пенсионное обеспечение","1001"]
["Социальное обслуживание населения","1002"]
["Социальное обеспечение населения","1003"]
["Охрана семьи и детства","1004"]
["Прикладные научные исследования в области социальной политики","1005"]
["Другие вопросы в области социальной политики","1006"]
["Физическая культура","1101"]
["Массовый спорт","1102"]
["Спорт высших достижений","1103"]
["Прикладные научные исследования в области физической культуры и спорта","1104"]
["Другие вопросы в области физической культуры и спорта","1105"]
["Телевидение и радиовещание","1201"]
["Периодическая печать и издательства","1202"]
["Прикладные научные исследования в области средств массовой информации","1203"]
["Другие вопросы в области средств массовой информации","1204"]
["Обслуживание государственного внутреннего и муниципального долга","1301"]
["Обслуживание государственного внешнего долга","1302"]
["Дотации на выравнивание бюджетной обеспеченности субъектов Российской Федерации и муниципальных образований","1401"]
["Иные дотации","1402"]
["Прочие межбюджетные трансферты общего характера","1403"]
["Итого по средствам бюджета муниципального образования",null,null,null,{"$f":"SUM(E111:H210)","v":0},null,null,null,{"$f":"SUM(I111:L210)","v":0},null,null,null,{"$f":"SUM(M111:P210)","v":0},null,null,null,{"$f":"SUM(Q111:T210)","v":0}]
[]
["Прочие средства и средства, полученные от оказания платных услуг и осуществления иной приносящей доход деятельности"]
["Наименование","РзПр",null,null,{"$f":"IFERROR(I6-1,\"не выбран период\")","v":2014},null,null,null,{"$f":"IFERROR(M6-1,\"не выбран период\")","v":2015},null,null,null,{"$f":"IFERROR(Q6-1,\"не выбран период\")","v":2016},null,null,null,{"$f":"IFERROR(IF('1. Начальные данные'!L18=\"1 января\",LEFT('1. Начальные данные'!M18,4)-1,LEFT('1. Начальные данные'!M18,4)-0),\"не выбран период\")","v":2017}]
["Функционирование Президента Российской Федерации","0101"]
["Функционирование высшего должностного лица субъекта Российской Федерации и муниципального образования","0102"]
["Функционирование законодательных (представительных) органов государственной власти и представительных органов муниципальных образований","0103"]
["Функционирование Правительства Российской Федерации, высших исполнительных органов государственной власти субъектов Российской Федерации, местных администраций","0104"]
["Судебная система","0105"]
["Обеспечение деятельности финансовых, налоговых и таможенных органов и органов финансового (финансово-бюджетного) надзора","0106"]
["Обеспечение проведения выборов и референдумов","0107"]
["Международные отношения и международное сотрудничество","0108"]
["Государственный материальный резерв","0109"]
["Фундаментальные исследования","0110"]
["Резервные фонды","0111"]
["Прикладные научные исследования в области общегосударственных вопросов","0112"]
["Другие общегосударственные вопросы","0113"]
["Вооруженные Силы Российской Федерации","0201"]
["Модернизация Вооруженных Сил Российской Федерации и воинских формирований","0202"]
["Мобилизационная и вневойсковая подготовка","0203"]
["Мобилизационная подготовка экономики","0204"]
["Подготовка и участие в обеспечении коллективной безопасности и миротворческой деятельности;","0205"]
["Ядерно-оружейный комплекс","0206"]
["Реализация международных обязательств в сфере военно-технического сотрудничества","0207"]
["Прикладные научные исследования в области национальной обороны","0208"]
["Другие вопросы в области национальной обороны","0209"]
["Органы прокуратуры","0301"]
["Органы внутренних дел","0302"]
["Внутренние войска","0303"]
["Органы юстиции","0304"]
["Система исполнения наказаний","0305"]
["Органы безопасности","0306"]
["Органы пограничной службы","0307"]
["Органы по контролю за оборотом наркотических средств и психотропных веществ","0308"]
["Защита населения и территории от чрезвычайных ситуаций природного и техногенного характера, гражданская оборона","0309"]
["Обеспечение пожарной безопасности","0310"]
["Миграционная политика","0311"]
["Модернизация внутренних войск, спасательных воинских формирований федерального органа исполнительной власти, уполномоченного на решение задач в области гражданской обороны, а также правоохранительных и иных органов","0312"]
["Прикладные научные исследования в области национальной безопасности и правоохранительной деятельности","0313"]
["Другие вопросы в области национальной безопасности и правоохранительной деятельности","0314"]
["Общеэкономические вопросы","0401"]
["Топливно-энергетический комплекс","0402"]
["Исследование и использование космического пространства","0403"]
["Воспроизводство минерально-сырьевой базы","0404"]
["Сельское хозяйство и рыболовство","0405"]
["Водное хозяйство","0406"]
["Лесное хозяйство","0407"]
["Транспорт","0408"]
["Дорожное хозяйство (дорожные фонды)","0409"]
["Связь и информатика","0410"]
["Прикладные научные исследования в области национальной экономики","0411"]
["Другие вопросы в области национальной экономики","0412"]
["Жилищное хозяйство","0501"]
["Коммунальное хозяйство","0502"]
["Благоустройство","0503"]
["Прикладные научные исследования в области жилищно-коммунального хозяйства","0504"]
["Другие вопросы в области жилищно-коммунального хозяйства","0505"]
["Экологический контроль","0601"]
["Сбор, удаление отходов и очистка сточных вод","0602"]
["Охрана объектов растительного и животного мира и среды их обитания","0603"]
["Прикладные научные исследования в области охраны окружающей среды","0604"]
["Другие вопросы в области охраны окружающей среды","0605"]
["Дошкольное образование","0701"]
["Общее образование","0702"]
["Начальное профессиональное образование","0703"]
["Среднее профессиональное образование","0704"]
["Профессиональная подготовка, переподготовка и повышение квалификации","0705"]
["Высшее и послевузовское профессиональное образование","0706"]
["Молодежная политика и оздоровление детей","0707"]
["Прикладные научные исследования в области образования","0708"]
["Другие вопросы в области образования","0709"]
["Культура","0801"]
["Кинематография","0802"]
["Прикладные научные исследования в области культуры, кинематографии","0803"]
["Другие вопросы в области культуры, кинематографии","0804"]
["Стационарная медицинская помощь","0901"]
["Амбулаторная помощь","0902"]
["Медицинская помощь в дневных стационарах всех типов","0903"]
["Скорая медицинская помощь","0904"]
["Санаторно-оздоровительная помощь","0905"]
["Заготовка, переработка, хранение и обеспечение безопасности донорской крови и ее компонентов","0906"]
["Санитарно-эпидемиологическое благополучие","0907"]
["Прикладные научные исследования в области здравоохранения","0908"]
["Другие вопросы в области здравоохранения","0909"]
["Пенсионное обеспечение","1001"]
["Социальное обслуживание населения","1002"]
["Социальное обеспечение населения","1003"]
["Охрана семьи и детства","1004"]
["Прикладные научные исследования в области социальной политики","1005"]
["Другие вопросы в области социальной политики","1006"]
["Физическая культура","1101"]
["Массовый спорт","1102"]
["Спорт высших достижений","1103"]
["Прикладные научные исследования в области физической культуры и спорта","1104"]
["Другие вопросы в области физической культуры и спорта","1105"]
["Телевидение и радиовещание","1201"]
["Периодическая печать и издательства","1202"]
["Прикладные научные исследования в области средств массовой информации","1203"]
["Другие вопросы в области средств массовой информации","1204"]
["Обслуживание государственного внутреннего и муниципального долга","1301"]
["Обслуживание государственного внешнего долга","1302"]
["Дотации на выравнивание бюджетной обеспеченности субъектов Российской Федерации и муниципальных образований","1401"]
["Иные дотации","1402"]
["Прочие межбюджетные трансферты общего характера","1403"]
["Итого по прочим средствам и средствам, полученным от оказания платных услуг и осуществления иной приносящей доход деятельности",null,null,null,{"$f":"SUM(E215:H314)","v":0},null,null,null,{"$f":"SUM(I215:L314)","v":0},null,null,null,{"$f":"SUM(M215:P314)","v":0},null,null,null,{"$f":"SUM(Q215:T314)","v":0}]

{"sheet":"3. Объяснительная","index":2,"n_rows":325,"n_cols":27,"rows_kept":325,"cut":false,"hidden":false,"merged":[[2,0,2,29],[19,25,19,29],[18,5,18,9],[18,10,18,14],[18,15,18,19],[18,20,18,24],[18,25,18,29],[19,1,19,4],[19,5,19,9],[19,10,19,14],[19,15,19,19],[19,20,19,24],[15,25,15,29],[14,5,14,9],[14,10,14,14],[14,15,14,19],[14,20,14,24],[14,25,14,29],[15,1,15,4],[15,5,15,9],[15,10,15,14],[15,15,15,19],[15,20,15,24],[17,25,17,29],[16,5,16,9],[16,10,16,14],[6,20,6,24],[6,25,6,29],[6,1,6,4],[6,5,6,9],[6,10,6,14],[6,15,6,19],[17,15,17,19],[17,20,17,24],[11,25,11,29],[9,25,9,29],[10,5,10,9],[10,10,10,14],[10,15,10,19],[10,20,10,24],[10,25,10,29],[9,5,9,9],[9,10,9,14],[9,15,9,19],[9,20,9,24],[11,1,11,4],[11,5,11,9],[11,10,11,14],[11,15,11,19],[11,20,11,24],[13,25,13,29],[12,5,12,9],[12,10,12,14],[12,15,12,19],[12,20,12,24],[17,1,17,4],[17,5,17,9],[17,10,17,14],[40,1,40,4],[23,5,23,9],[23,10,23,14],[23,15,23,19],[23,20,23,24],[23,25,23,29],[22,5,22,9],[22,10,22,14],[22,15,22,19],[22,20,22,24],[22,25,22,29],[21,5,21,9],[21,10,21,14],[21,15,21,19],[21,20,21,24],[21,25,21,29],[36,1,36,4],[37,1,37,4],[38,1,38,4],[39,1,39,4],[30,15,30,19],[30,20,30,24],[30,25,30,29],[29,5,29,9],[29,10,29,14],[29,15,29,19],[29,20,29,24],[29,25,29,29],[28,5,28,9],[28,10,28,14],[28,15,28,19],[28,20,28,24],[7,25,7,29],[8,5,8,9],[8,10,8,14],[8,15,8,19],[8,20,8,24],[8,25,8,29],[7,5,7,9],[35,1,35,4],[30,1,30,4],[31,1,31,4],[32,1,32,4],[33,1,33,4],[34,1,34,4],[25,1,25,4],[26,1,26,4],[27,1,27,4],[28,1,28,4],[29,1,29,4],[25,15,25,19],[25,20,25,24],[25,25,25,29],[30,5,30,9],[30,10,30,14],[12,25,12,29],[13,1,13,4],[13,5,13,9],[16,15,16,19],[16,20,16,24],[16,25,16,29],[13,10,13,14],[13,15,13,19],[13,20,13,24],[4,0,5,0],[0,0,0,29],[1,0,1,29],[7,1,7,4],[8,1,8,4],[9,1,9,4],[10,1,10,4],[12,1,12,4],[14,1,14,4],[16,1,16,4],[18,1,18,4],[20,1,20,4],[21,1,21,4],[22,1,22,4],[23,1,23,4],[24,1,24,4],[7,10,7,14],[24,5,24,9],[24,10,24,14],[24,15,24,19],[24,20,24,24],[24,25,24,29],[3,26,3,29],[5,25,5,29],[4,1,5,4],[4,10,4,29],[4,5,5,9],[5,10,5,14],[5,15,5,19],[5,20,5,24],[7,15,7,19],[7,20,7,24],[55,1,55,4],[56,1,56,4],[57,1,57,4],[58,1,58,4],[59,1,59,4],[50,1,50,4],[51,1,51,4],[52,1,52,4],[53,1,53,4],[54,1,54,4],[45,1,45,4],[46,1,46,4],[47,1,47,4],[48,1,48,4],[49,1,49,4],[41,1,41,4],[42,1,42,4],[43,1,43,4],[44,1,44,4],[75,1,75,4],[76,1,76,4],[77,1,77,4],[78,1,78,4],[79,1,79,4],[70,1,70,4],[71,1,71,4],[72,1,72,4],[73,1,73,4],[74,1,74,4],[65,1,65,4],[66,1,66,4],[67,1,67,4],[68,1,68,4],[69,1,69,4],[60,1,60,4],[61,1,61,4],[62,1,62,4],[63,1,63,4],[64,1,64,4],[95,1,95,4],[96,1,96,4],[97,1,97,4],[98,1,98,4],[99,1,99,4],[90,1,90,4],[91,1,91,4],[92,1,92,4],[93,1,93,4],[94,1,94,4],[85,1,85,4],[86,1,86,4],[87,1,87,4],[88,1,88,4],[89,1,89,4],[80,1,80,4],[81,1,81,4],[82,1,82,4],[83,1,83,4],[84,1,84,4],[115,1,115,4],[116,1,116,4],[117,1,117,4],[118,1,118,4],[119,1,119,4],[110,1,110,4],[111,1,111,4],[112,1,112,4],[113,1,113,4],[114,1,114,4],[105,1,105,4],[106,1,106,4],[107,1,107,4],[108,1,108,4],[109,1,109,4],[100,1,100,4],[101,1,101,4],[102,1,102,4],[103,1,103,4],[104,1,104,4],[135,1,135,4],[136,1,136,4],[137,1,137,4],[138,1,138,4],[139,1,139,4],[130,1,130,4],[131,1,131,4],[132,1,132,4],[133,1,133,4],[134,1,134,4],[125,1,125,4],[126,1,126,4],[127,1,127,4],[128,1,128,4],[129,1,129,4],[120,1,120,4],[121,1,121,4],[122,1,122,4],[123,1,123,4],[124,1,124,4],[155,1,155,4],[156,1,156,4],[157,1,157,4],[158,1,158,4],[159,1,159,4],[150,1,150,4],[151,1,151,4],[152,1,152,4],[153,1,153,4],[154,1,154,4],[145,1,145,4],[146,1,146,4],[147,1,147,4],[148,1,148,4],[149,1,149,4],[140,1,140,4],[141,1,141,4],[142,1,142,4],[143,1,143,4],[144,1,144,4],[175,1,175,4],[176,1,176,4],[177,1,177,4],[178,1,178,4],[179,1,179,4],[170,1,170,4],[171,1,171,4],[172,1,172,4],[173,1,173,4],[174,1,174,4],[165,1,165,4],[166,1,166,4],[167,1,167,4],[168,1,168,4],[169,1,169,4],[160,1,160,4],[161,1,161,4],[162,1,162,4],[163,1,163,4],[164,1,164,4],[195,1,195,4],[196,1,196,4],[197,1,197,4],[198,1,198,4],[199,1,199,4],[190,1,190,4],[191,1,191,4],[192,1,192,4],[193,1,193,4],[194,1,194,4],[185,1,185,4],[186,1,186,4],[187,1,187,4],[188,1,188,4],[189,1,189,4],[180,1,180,4],[181,1,181,4],[182,1,182,4],[183,1,183,4],[184,1,184,4],[215,1,215,4],[216,1,216,4],[217,1,217,4],[218,1,218,4],[219,1,219,4],[210,1,210,4],[211,1,211,4],[212,1,212,4],[213,1,213,4],[214,1,214,4],[205,1,205,4],[206,1,206,4],[207,1,207,4],[208,1,208,4],[209,1,209,4],[200,1,200,4],[201,1,201,4],[202,1,202,4],[203,1,203,4],[204,1,204,4],[235,1,235,4],[236,1,236,4],[237,1,237,4],[238,1,238,4],[239,1,239,4],[230,1,230,4],[231,1,231,4],[232,1,232,4],[233,1,233,4],[234,1,234,4],[225,1,225,4],[226,1,226,4],[227,1,227,4],[228,1,228,4],[229,1,229,4],[220,1,220,4],[221,1,221,4],[222,1,222,4],[223,1,223,4],[224,1,224,4],[255,1,255,4],[256,1,256,4],[257,1,257,4],[258,1,258,4],[259,1,259,4],[250,1,250,4],[251,1,251,4],[252,1,252,4],[253,1,253,4],[254,1,254,4],[245,1,245,4],[246,1,246,4],[247,1,247,4],[248,1,248,4],[249,1,249,4],[240,1,240,4],[241,1,241,4],[242,1,242,4],[243,1,243,4],[244,1,244,4],[275,1,275,4],[276,1,276,4],[277,1,277,4],[278,1,278,4],[279,1,279,4],[270,1,270,4],[271,1,271,4],[272,1,272,4],[273,1,273,4],[274,1,274,4],[265,1,265,4],[266,1,266,4],[267,1,267,4],[268,1,268,4],[269,1,269,4],[260,1,260,4],[261,1,261,4],[262,1,262,4],[263,1,263,4],[264,1,264,4],[304,1,304,4],[295,1,295,4],[296,1,296,4],[297,1,297,4],[298,1,298,4],[299,1,299,4],[290,1,290,4],[291,1,291,4],[292,1,292,4],[293,1,293,4],[294,1,294,4],[285,1,285,4],[286,1,286,4],[287,1,287,4],[288,1,288,4],[289,1,289,4],[280,1,280,4],[281,1,281,4],[282,1,282,4],[283,1,283,4],[284,1,284,4],[300,1,300,4],[301,1,301,4],[302,1,302,4],[303,1,303,4],[320,1,320,4],[321,1,321,4],[322,1,322,4],[323,1,323,4],[324,1,324,4],[315,1,315,4],[316,1,316,4],[317,1,317,4],[318,1,318,4],[319,1,319,4],[310,1,310,4],[311,1,311,4],[312,1,312,4],[313,1,313,4],[314,1,314,4],[305,1,305,4],[306,1,306,4],[307,1,307,4],[308,1,308,4],[309,1,309,4],[28,25,28,29],[20,5,20,9],[20,10,20,14],[20,15,20,19],[20,20,20,24],[20,25,20,29],[27,5,27,9],[27,10,27,14],[27,15,27,19],[27,20,27,24],[27,25,27,29],[26,5,26,9],[26,10,26,14],[26,15,26,19],[26,20,26,24],[26,25,26,29],[25,5,25,9],[25,10,25,14],[34,5,34,9],[34,10,34,14],[34,15,34,19],[34,20,34,24],[34,25,34,29],[33,5,33,9],[33,10,33,14],[33,15,33,19],[33,20,33,24],[33,25,33,29],[32,5,32,9],[32,10,32,14],[32,15,32,19],[32,20,32,24],[32,25,32,29],[31,5,31,9],[31,10,31,14],[31,15,31,19],[31,20,31,24],[31,25,31,29],[38,5,38,9],[38,10,38,14],[38,15,38,19],[38,20,38,24],[38,25,38,29],[37,5,37,9],[37,10,37,14],[37,15,37,19],[37,20,37,24],[37,25,37,29],[36,5,36,9],[36,10,36,14],[36,15,36,19],[36,20,36,24],[36,25,36,29],[35,5,35,9],[35,10,35,14],[35,15,35,19],[35,20,35,24],[35,25,35,29],[42,5,42,9],[42,10,42,14],[42,15,42,19],[42,20,42,24],[42,25,42,29],[41,5,41,9],[41,10,41,14],[41,15,41,19],[41,20,41,24],[41,25,41,29],[40,5,40,9],[40,10,40,14],[40,15,40,19],[40,20,40,24],[40,25,40,29],[39,5,39,9],[39,10,39,14],[39,15,39,19],[39,20,39,24],[39,25,39,29],[46,5,46,9],[46,10,46,14],[46,15,46,19],[46,20,46,24],[46,25,46,29],[45,5,45,9],[45,10,45,14],[45,15,45,19],[45,20,45,24],[45,25,45,29],[44,5,44,9],[44,10,44,14],[44,15,44,19],[44,20,44,24],[44,25,44,29],[43,5,43,9],[43,10,43,14],[43,15,43,19],[43,20,43,24],[43,25,43,29],[50,5,50,9],[50,10,50,14],[50,15,50,19],[50,20,50,24],[50,25,50,29],[49,5,49,9],[49,10,49,14],[49,15,49,19],[49,20,49,24],[49,25,49,29],[48,5,48,9],[48,10,48,14],[48,15,48,19],[48,20,48,24],[48,25,48,29],[47,5,47,9],[47,10,47,14],[47,15,47,19],[47,20,47,24],[47,25,47,29],[54,5,54,9],[54,10,54,14],[54,15,54,19],[54,20,54,24],[54,25,54,29],[53,5,53,9],[53,10,53,14],[53,15,53,19],[53,20,53,24],[53,25,53,29],[52,5,52,9],[52,10,52,14],[52,15,52,19],[52,20,52,24],[52,25,52,29],[51,5,51,9],[51,10,51,14],[51,15,51,19],[51,20,51,24],[51,25,51,29],[58,5,58,9],[58,10,58,14],[58,15,58,19],[58,20,58,24],[58,25,58,29],[57,5,57,9],[57,10,57,14],[57,15,57,19],[57,20,57,24],[57,25,57,29],[56,5,56,9],[56,10,56,14],[56,15,56,19],[56,20,56,24],[56,25,56,29],[55,5,55,9],[55,10,55,14],[55,15,55,19],[55,20,55,24],[55,25,55,29],[62,5,62,9],[62,10,62,14],[62,15,62,19],[62,20,62,24],[62,25,62,29],[61,5,61,9],[61,10,61,14],[61,15,61,19],[61,20,61,24],[61,25,61,29],[60,5,60,9],[60,10,60,14],[60,15,60,19],[60,20,60,24],[60,25,60,29],[59,5,59,9],[59,10,59,14],[59,15,59,19],[59,20,59,24],[59,25,59,29],[66,5,66,9],[66,10,66,14],[66,15,66,19],[66,20,66,24],[66,25,66,29],[65,5,65,9],[65,10,65,14],[65,15,65,19],[65,20,65,24],[65,25,65,29],[64,5,64,9],[64,10,64,14],[64,15,64,19],[64,20,64,24],[64,25,64,29],[63,5,63,9],[63,10,63,14],[63,15,63,19],[63,20,63,24],[63,25,63,29],[70,5,70,9],[70,10,70,14],[70,15,70,19],[70,20,70,24],[70,25,70,29],[69,5,69,9],[69,10,69,14],[69,15,69,19],[69,20,69,24],[69,25,69,29],[68,5,68,9],[68,10,68,14],[68,15,68,19],[68,20,68,24],[68,25,68,29],[67,5,67,9],[67,10,67,14],[67,15,67,19],[67,20,67,24],[67,25,67,29],[74,5,74,9],[74,10,74,14],[74,15,74,19],[74,20,74,24],[74,25,74,29],[73,5,73,9],[73,10,73,14],[73,15,73,19],[73,20,73,24],[73,25,73,29],[72,5,72,9],[72,10,72,14],[72,15,72,19],[72,20,72,24],[72,25,72,29],[71,5,71,9],[71,10,71,14],[71,15,71,19],[71,20,71,24],[71,25,71,29],[78,5,78,9],[78,10,78,14],[78,15,78,19],[78,20,78,24],[78,25,78,29],[77,5,77,9],[77,10,77,14],[77,15,77,19],[77,20,77,24],[77,25,77,29],[76,5,76,9],[76,10,76,14],[76,15,76,19],[76,20,76,24],[76,25,76,29],[75,5,75,9],[75,10,75,14],[75,15,75,19],[75,20,75,24],[75,25,75,29],[82,5,82,9],[82,10,82,14],[82,15,82,19],[82,20,82,24],[82,25,82,29],[81,5,81,9],[81,10,81,14],[81,15,81,19],[81,20,81,24],[81,25,81,29],[80,5,80,9],[80,10,80,14],[80,15,80,19],[80,20,80,24],[80,25,80,29],[79,5,79,9],[79,10,79,14],[79,15,79,19],[79,20,79,24],[79,25,79,29],[86,5,86,9],[86,10,86,14],[86,15,86,19],[86,20,86,24],[86,25,86,29],[85,5,85,9],[85,10,85,14],[85,15,85,19],[85,20,85,24],[85,25,85,29],[84,5,84,9],[84,10,84,14],[84,15,84,19],[84,20,84,24],[84,25,84,29],[83,5,83,9],[83,10,83,14],[83,15,83,19],[83,20,83,24],[83,25,83,29],[90,5,90,9],[90,10,90,14],[90,15,90,19],[90,20,90,24],[90,25,90,29],[89,5,89,9],[89,10,89,14],[89,15,89,19],[89,20,89,24],[89,25,89,29],[88,5,88,9],[88,10,88,14],[88,15,88,19],[88,20,88,24],[88,25,88,29],[87,5,87,9],[87,10,87,14],[87,15,87,19],[87,20,87,24],[87,25,87,29],[94,5,94,9],[94,10,94,14],[94,15,94,19],[94,20,94,24],[94,25,94,29],[93,5,93,9],[93,10,93,14],[93,15,93,19],[93,20,93,24],[93,25,93,29],[92,5,92,9],[92,10,92,14],[92,15,92,19],[92,20,92,24],[92,25,92,29],[91,5,91,9],[91,10,91,14],[91,15,91,19],[91,20,91,24],[91,25,91,29],[98,5,98,9],[98,10,98,14],[98,15,98,19],[98,20,98,24],[98,25,98,29],[97,5,97,9],[97,10,97,14],[97,15,97,19],[97,20,97,24],[97,25,97,29],[96,5,96,9],[96,10,96,14],[96,15,96,19],[96,20,96,24],[96,25,96,29],[95,5,95,9],[95,10,95,14],[95,15,95,19],[95,20,95,24],[95,25,95,29],[102,5,102,9],[102,10,102,14],[102,15,102,19],[102,20,102,24],[102,25,102,29],[101,5,101,9],[101,10,101,14],[101,15,101,19],[101,20,101,24],[101,25,101,29],[100,5,100,9],[100,10,100,14],[100,15,100,19],[100,20,100,24],[100,25,100,29],[99,5,99,9],[99,10,99,14],[99,15,99,19],[99,20,99,24],[99,25,99,29],[106,5,106,9],[106,10,106,14],[106,15,106,19],[106,20,106,24],[106,25,106,29],[105,5,105,9],[105,10,105,14],[105,15,105,19],[105,20,105,24],[105,25,105,29],[104,5,104,9],[104,10,104,14],[104,15,104,19],[104,20,104,24],[104,25,104,29],[103,5,103,9],[103,10,103,14],[103,15,103,19],[103,20,103,24],[103,25,103,29],[110,5,110,9],[110,10,110,14],[110,15,110,19],[110,20,110,24],[110,25,110,29],[109,5,109,9],[109,10,109,14],[109,15,109,19],[109,20,109,24],[109,25,109,29],[108,5,108,9],[108,10,108,14],[108,15,108,19],[108,20,108,24],[108,25,108,29],[107,5,107,9],[107,10,107,14],[107,15,107,19],[107,20,107,24],[107,25,107,29],[114,5,114,9],[114,10,114,14],[114,15,114,19],[114,20,114,24],[114,25,114,29],[113,5,113,9],[113,10,113,14],[113,15,113,19],[113,20,113,24],[113,25,113,29],[112,5,112,9],[112,10,112,14],[112,15,112,19],[112,20,112,24],[112,25,112,29],[111,5,111,9],[111,10,111,14],[111,15,111,19],[111,20,111,24],[111,25,111,29],[118,5,118,9],[118,10,118,14],[118,15,118,19],[118,20,118,24],[118,25,118,29],[117,5,117,9],[117,10,117,14],[117,15,117,19],[117,20,117,24],[117,25,117,29],[116,5,116,9],[116,10,116,14],[116,15,116,19],[116,20,116,24],[116,25,116,29],[115,5,115,9],[115,10,115,14],[115,15,115,19],[115,20,115,24],[115,25,115,29],[122,5,122,9],[122,10,122,14],[122,15,122,19],[122,20,122,24],[122,25,122,29],[121,5,121,9],[121,10,121,14],[121,15,121,19],[121,20,121,24],[121,25,121,29],[120,5,120,9],[120,10,120,14],[120,15,120,19],[120,20,120,24],[120,25,120,29],[119,5,119,9],[119,10,119,14],[119,15,119,19],[119,20,119,24],[119,25,119,29],[126,5,126,9],[126,10,126,14],[126,15,126,19],[126,20,126,24],[126,25,126,29],[125,5,125,9],[125,10,125,14],[125,15,125,19],[125,20,125,24],[125,25,125,29],[124,5,124,9],[124,10,124,14],[124,15,124,19],[124,20,124,24],[124,25,124,29],[123,5,123,9],[123,10,123,14],[123,15,123,19],[123,20,123,24],[123,25,123,29],[130,5,130,9],[130,10,130,14],[130,15,130,19],[130,20,130,24],[130,25,130,29],[129,5,129,9],[129,10,129,14],[129,15,129,19],[129,20,129,24],[129,25,129,29],[128,5,128,9],[128,10,128,14],[128,15,128,19],[128,20,128,24],[128,25,128,29],[127,5,127,9],[127,10,127,14],[127,15,127,19],[127,20,127,24],[127,25,127,29],[134,5,134,9],[134,10,134,14],[134,15,134,19],[134,20,134,24],[134,25,134,29],[133,5,133,9],[133,10,133,14],[133,15,133,19],[133,20,133,24],[133,25,133,29],[132,5,132,9],[132,10,132,14],[132,15,132,19],[132,20,132,24],[132,25,132,29],[131,5,131,9],[131,10,131,14],[131,15,131,19],[131,20,131,24],[131,25,131,29],[138,5,138,9],[138,10,138,14],[138,15,138,19],[138,20,138,24],[138,25,138,29],[137,5,137,9],[137,10,137,14],[137,15,137,19],[137,20,137,24],[137,25,137,29],[136,5,136,9],[136,10,136,14],[136,15,136,19],[136,20,136,24],[136,25,136,29],[135,5,135,9],[135,10,135,14],[135,15,135,19],[135,20,135,24],[135,25,135,29],[142,5,142,9],[142,10,142,14],[142,15,142,19],[142,20,142,24]],"merged_total":1926,"flags":["merged_cut"]}
["Объяснительная (свод) к сведениям о результатах проведенных контрольных мероприятий"]
[{"$f":"CONCATENATE('1. Начальные данные'!L18,'1. Начальные данные'!M18)","v":"429162017"}]
[{"$f":"'1. Начальные данные'!L17","v":"ФУ Администрации МР Нуримановский район РБ"}]
[null,null,null,null,null,null,null,null,null,null,null,null,null,null,null,null,null,null,null,null,null,null,null,null,null,null,"в тыс.руб."]
["Наименование","Номер",null,null,null,"Итого",null,null,null,null,"В использовании средств"]
[null,null,null,null,null,null,null,null,null,null,"бюджета РБ",null,null,null,null,"бюджета МО",null,null,null,null,"полученных от предпр-ой и иной приносящей доход деятельности",null,null,null,null,"прочих"]
[1,"2",null,null,null,3,null,null,null,null,4,null,null,null,null,5,null,null,null,null,6,null,null,null,null,7]
["СУММА ФИНАНСОВЫХ НАРУШЕНИЙ",16,null,null,null,{"$f":"F9+F23+F106+F108+F112+F154+F157+F247","v":2236.3000000000002},null,null,null,null,{"$f":"K9+K23+K106+K108+K112+K154+K157+K247","v":0},null,null,null,null,{"$f":"P9+P23+P106+P108+P112+P154+P157+P247","v":2236.3000000000002},null,null,null,null,{"$f":"U9+U23+U106+U108+U112+U154+U157+U247","v":0},null,null,null,null,{"$f":"Z9+Z23+Z106+Z108+Z112+Z154+Z157+Z247","v":0}]
["Нецелевое использование средств","17",null,null,null,{"$f":"SUM(F10:J22)","v":0},null,null,null,null,{"$f":"SUM(K10:O22)","v":0},null,null,null,null,{"$f":"SUM(P10:T22)","v":0},null,null,null,null,{"$f":"SUM(U10:Y22)","v":0},null,null,null,null,{"$f":"SUM(Z10:AD22)","v":0}]
["Использование бюджетных средств (принятие и исполнение денежных обязательств) на оплату расходов, которые должны осуществляться за счет доходов от предпринимательской и иной приносящей доход деятельности или иных источников. ","17.2.1.2.",null,null,null,{"$f":"SUM(K10:AD10)","v":0}]
["Другие нарушения в части нецелевого использования бюджетных средств","17.2.1.20.",null,null,null,{"$f":"SUM(K11:AD11)","v":0}]
["Использование бюджетных средств (принятие и исполнение денежных обязательств) на оплату пособий, компенсаций, субсидий и других денежных выплат лицам, не имеющим правовых оснований для их получения.","17.2.1.3.",null,null,null,0]
["Перечисление неиспользованных остатков бюджетных средств на счета других юридических лиц или на счет по учету средств, полученных от предпринимательской и иной приносящей доход деятельности.","17.2.1.4.",null,null,null,0]
["Использование бюджетных средств на оплату товаров, работ, услуг, не связанных с деятельностью получателя бюджетных средств, на оказание финансовой помощи коммерческим организациям или на их создание.","17.2.1.5.",null,null,null,0]
["Использование бюджетных средств на оплату расходов, не предусмотренных сметой доходов и расходов (бюджетной сметой с 01.01.2008 года), либо иным правовым основаниям их получения в финансовом году.","17.2.1.6.",null,null,null,0]
["Использование средств целевого бюджетного финансирования (в рамках реализации приоритетных национальных проектов, целевых программ и т.д.), бюджетных кредитов, бюджетных инвестиций не по назначению - на цели, не соответствующие условиям, определенным соответствующим нормативным актом.","17.2.1.7.",null,null,null,0]
["Использование бюджетных средств получателями на цели, не соответствующие условиям, определенным законодательством, регулирующим их деятельность.","17.2.1.8.",null,null,null,0]
["Использование бюджетных средств на оплату расходов на строительство объектов и строек, не предусмотренных проектно-сметной документацией или при отсутствии утвержденной проектно-сметной документации, экспертизы проекта.","17.2.1.9.",null,null,null,0]
["Расходование средств, полученных от предпринимательской и иной приносящей доход деятельности, на цели, не предусмотренные сметой доходов и расходов (бюджетной сметой с 01.01.2008 года) бюджетного учреждения.","17.5.2.2.",null,null,null,0]
["Нецелевое использование субсидии автономным и бюджетным учреждением ","17.2.1.20.1.",null,null,null,0]
["Нецелевое использование субсидии автономным и бюджетным учреждением, предусмотренныена содержание имущества ","17.2.1.20.2.",null,null,null,0]
["Нецелевое использование субсидии. Нарушение по  условиям соглашений в части софинансирования  соответствующих обязательств за счет средств местного бюджета  (полученная субсидия, предусмотренная  по соглашению направлена на иные цели )","17.2.1.20.3",null,null,null,0]
["Неэффективное использование материальных ресурсов и денежных средств","18",null,null,null,{"$f":"SUM(K23:AD23)","v":46.3},null,null,null,null,{"$f":"SUM(K24:O105)","v":0},null,null,null,null,{"$f":"SUM(P24:T105)","v":46.3},null,null,null,null,{"$f":"SUM(U24:Y105)","v":0},null,null,null,null,{"$f":"SUM(Z24:AD105)","v":0}]
["Неправомерное предоставление льгот, отсрочек, рассрочек по обязательным платежам в бюджет, налоговых кредитов и налоговых инвестиционных кредитов, а также отсутствие соответвующего контроля за выполнением условий, на которых были предоставлены льготы, отсрочки, рассрочки по платежам в бюджет, налоговые кредиты и налоговые инвестиционные кредиты.","18.1.1.1.",null,null,null,{"$f":"SUM(K24:AD24)","v":0}]
["Нарушение порядка распоряжения объектом нежилого фонда, находящимся в государственной собственности Республики Башкортостан или муниципальной собственности, и использования указанного объекта. Предоставление государственного (муниципального) имущества без согласия собственника в пользование, без получения доходов от его использования в соответствующий бюджет.","18.1.1.11.",null,null,null,{"$f":"SUM(K25:AD25)","v":0}]
["Неправомерное предоставление льгот, отсрочек, рассрочек по платежам за пользование государственным (муниципальным) имуществом.","18.1.1.13.",null,null,null,0]
["Неправомерное списание задолженности по налогам и другим обязательным платежам.","18.1.1.2.",null,null,null,0]
["Непринятие мер по взысканию недоимки по налогам, сборам и обязательным платежам в доход бюджета, в том числе отсутствие контроля за правильностью исчисления, полнотой и своевременностью уплаты, начисления и учета, взыскания и принятия решений о возврате (зачете) излишне уплаченных (взысканных) платежей, пеней и штрафов по ним. ","18.1.1.3.",null,null,null,0]
["Неперечисление (несвоевременное или неполное перечисление) в бюджет средств, полученных от распоряжения государственной (муниципальной) собственностью, использования государственной (муниципальной) собственности, предоставления государственных (муниципальных) услуг.","18.1.1.5.",null,null,null,0]
["Неправомерное использование доходов, полученных сверх утвержденных законом о бюджете.","18.1.2.10.",null,null,null,0]
["Неправомерное финансирование федеральных органов государственной власти и организаций за счет средств бюджетов субъектов РФ и (или) местных бюджетов (при отсутствии правовых оснований).","18.1.2.11.",null,null,null,0]
["Неправомерное финансирование расходных обязательств Республики Башкортостан за счет средств местных бюджетов (при отсутствии правовых оснований).","18.1.2.12.",null,null,null,0]
["Неправомерное финансирование местных органов власти и организаций за счет средств бюджета Республики Башкортостан (при отсутствии правовых оснований).","18.1.2.13.",null,null,null,0]
["Нарушение сроков подтверждения денежных обязательств, влекущее выплату пени, штрафов.","18.1.2.18.",null,null,null,0]
["Не соблюдение условий возмездности и возвратности при предоставлении бюджетных кредитов","18.1.2.20.",null,null,null,0]
["Предоставление бюджетных кредитов с нарушением закона (решения) о бюджете.","18.1.2.22.",null,null,null,0]
["Неправомерное осуществление государственных (муниципальных) заимствований.","18.1.2.26.",null,null,null,0]
["Предоставление бюджетных инвестиций без оформления доли Республики Башкортостан (муниципального образования) в уставных (складочных) капиталах юридических лиц.","18.1.2.29.",null,null,null,0]
["Осуществление бюджетных инвестиций в объекты государственной и муниципальной собственности с нарушением установленного порядка.","18.1.2.30.",null,null,null,0]
["Нарушение порядка размещения бюджетных средств на банковских депозитах или передачи их в доверительное управление.Неэффективное размещение государственных средств в кредитных организациях.","18.1.2.33.",null,null,null,0]
["Другие нарушения, влекущие правонарушения в сфере исполнения бюджета по расходам.","18.1.2.36.",null,null,null,0]
["Финансирование расходов, не предусмотренных законом о бюджете и (или) бюджетной росписью.","18.1.2.5.",null,null,null,0]
["Финансирование расходов, не предусмотренных законом о бюджете и (или) бюджетной росписью.","18.1.2.5.",null,null,null,0]
["Направление средств резервных фондов на цели, отличные от их назначения (в нарушение порядка, установленного соответствующими нормативно-правовыми актами).","18.1.2.9.",null,null,null,0]
["Начисление выплат по заработной плате по вредности","18.2.2.3.",null,null,null,0]
["Закупки товаров, работ и услуг сверх установленных законодательством сумм без заключения государственных (муниципальных) контрактов (в т.ч. необоснованное дробление объемов работ, закупок при размещении заказов).","18.2.3.1.",null,null,null,0]
["Приобретение товарно-материальных ценностей, выполнение работ, оказание услуг по завышенным ценам в результате указания в конкурсной и иной документации завышенной начальной цены контракта по сравнению со средней рыночной ценой в регионе. ","18.2.3.10.",null,null,null,0]
["Иные нарушения при осуществлении государственных (муниципальных) закупок и исполнении государственных (муниципальных) контрактов, договоров. ","18.2.3.11.",null,null,null,43.3,null,null,null,null,null,null,null,null,null,43.3]
["Иные нарушения при осуществлении государственных (муниципальных) закупок и исполнении государственных (муниципальных) контрактов, договоров (приобретение жилых помещений для детей-сирот не соответствующих техническому заданию контракта). ","18.2.3.11.1.",null,null,null,0]
["Закупки, в которых выявлены нарушения при применении заказчиком мер ответственности и совершения иных действий в случае нарушения поставщиком (подрядчиком, исполнителем) условий контракта","18.2.3.11.2.",null,null,null,0]
["Закупки, в которых выявлено несоответствие поставленного товара выполненной работы (ее результата) или оказанной услуги условиям контракта","18.2.3.11.3.",null,null,null,0]
["Закупки, в которых выявлены нарушения в части своевременности, полноты и достоверности отражения в документах учета поставленного товара. Выполненной работы (ее результата) или оказанной услуги","18.2.3.11.4.",null,null,null,0]
["Закупки, в которых выявлено несоответствие использования поставленного товара, выполненной работы (ее результата) или оказанной услуги целям осуществления закупки","18.2.3.11.5.",null,null,null,0]
["Неправомерное получение кредита бюджетным учреждением","18.2.3.12.",null,null,null,0]
["Дебиторская задолженность по оплате товаров (работ, услуг) (в случаях, когда авансирование договором не предусмотрено, либо перечисление аванса произведено в размерах, превышающих размеры, установленные действующим законодательством).","18.2.3.13.",null,null,null,0]
["Дебиторская задолженность по оплате работ по текущему и капитальному ремонту, реконструкции и строительству (в случаях, когда авансирование договором не предусмотрено, либо перечисление аванса произведено в размерах, превышающих размеры, установленные действующим законодательством).","18.2.3.14.",null,null,null,0]
["Несоблюдение нормативов финансовых затрат на оказание государственных или муниципальных услуг.","18.2.3.15.",null,null,null,0]
["Не соблюдение стандартов расходов на содержание органов государственной власти (местного самоуправления) (в т.ч. завышение норм занимаемых площадей).","18.2.3.16.",null,null,null,0]
["Расходование бюджетных средств с затратами сверх необходимого (возможного) на получение требуемого результата.","18.2.3.17.",null,null,null,0]
["Расходование бюджетных средств без достижения требуемого результата.","18.2.3.18.",null,null,null,3,null,null,null,null,null,null,null,null,null,3]
["Оплата работ, которые должны выполняться для бюджетных учреждений бесплатно.","18.2.3.19.",null,null,null,0]
["Осуществление государственных, муниципальных закупок, размещения заказа на поставки товаров, выполнение работ, оказание услуг для государственных и муниципальных нужд, без проведения процедур, предусмотренных законодательством.","18.2.3.2.",null,null,null,0]
["Отсутствие, несвоевременное принятие локальных правовых актов, определяющих порядок использования средств бюджетной системы.","18.2.3.20.",null,null,null,0]
["Неэффективное использование бюджетных средств вследствие приобретения или списания некачественной продукции или продукции с истекшим сроком хранения (использования).","18.2.3.21.",null,null,null,0]
["Неэффективное использование бюджетных средств вследствие реализации материальных ресурсов по заниженным ценам, либо по ценам приобретения без учета действующих на момент реализации рыночных цен.","18.2.3.22.",null,null,null,0]
["Неэффективное использование бюджетных средств вследствие необоснованного применения норм естественной убыли.","18.2.3.23.",null,null,null,0]
["Неэффективное использование бюджетных средств вследствие неоприходования стоимости материалов, полученных от разборки объектов основных средств.","18.2.3.24.",null,null,null,0]
["Неэффективное использование бюджетных средств в результате возмещения учреждением (организацией) материального ущерба и морального вреда, причиненного действиями работника.","18.2.3.25.",null,null,null,0]
["Неэффективное использование бюджетных средств вследствие приобретения неиспользуемого оборудования, либо ремонт такого оборудования и имущества.","18.2.3.26.",null,null,null,0]
["Неэффективное использование бюджетных средств вследствие недобора платы за проживание и коммунальные услуги с лиц, занимающих жилые помещения, состоящие на балансе учреждения.","18.2.3.27.",null,null,null,0]
["Неэффективное использование бюджетных средств вследствие образования дебиторской задолженности по заработной плате за уволенными работниками.","18.2.3.28.",null,null,null,{"$f":"SUM(K71:AD71)","v":0}]
["Образование кредиторской задолженности вследствие принятия организаций дополнительных обязательств в результате нарушения режима экономии средств.","18.2.3.29.",null,null,null,0]
["Не соблюдение требований законодательства о размещении заказов на поставки товаров, выполнение работ, оказание услуг для государственных и муниципальных нужд при осуществлении конкурсных, аукционных процедур и процедур запроса котировок.","18.2.3.3.",null,null,null,0]
["Неполное либо несвоевременное перечисление бюджетным учреждением платежей в бюджет и государственные внебюджетные фонды, повлекшее начисление финансовых санкций.","18.2.3.30.",null,null,null,0]
["Иные нарушения в части неэффективного использования бюджетных средств.","18.2.3.31.",null,null,null,0]
["Иные нарушения в части неэффективного использования бюджетных средств. Оплата транспортного налога за неэксплуатируемый транспорт. ","18.2.3.32.",null,null,null,0]
["Неэффективное использование субсидии автономными и бюджетными учреждениями ","18.2.3.33.",null,null,null,0]
["Иные нарушения в части неэффективного использования бюджетных средств. Нарушения по энергосбережению и повышению энергетической ","18.2.3.34.",null,null,null,0]
["Иные нарушения в части неэффективного использования бюджетных средств. Погашение кредиторской задолженности, образованной в прошлом периоде при наличии ЛБО","18.2.3.35.",null,null,null,0]
["Другие неэффективные расходы. Неэффективные расходы средств, выделенных на реализацию адресной программы Республики Башкортостан на период 2011 - 2015 годов по замене и модернизации лифтов, отработавших нормативный срок службы.","18.18.2.3.36.",null,null,null,0]
["Другие неэффективные расходы. Неэффективные нарушения в использовании средств, выделенных на софинансирование расходов по модернизации систем наружного освещения населенных пунктов Республики Башкортостан на 2011–2015 годы.","18.18.2.3.37.",null,null,null,0]
["Другие неэффективные расходы. Неэффективные нарушения использовании средств, выделенных на реализацию республиканской адресной программы по проведению капитального ремонта многоквартирных домов","18.18.2.3.38.",null,null,null,0]
["Иные нарушения в части неэффективного использования бюджетных средств. Непринятие мер по обеспечению снижения количества потребляемых коммунальных услуг ","18.18.2.3.39.",null,null,null,0]
["Иные нарушения в части неэффективного использования бюджетных средств. В образовательных учреждениях при отсутствии лицензии на осуществление медицинской деятельности произведены расходы по выплате заработной плате медицинским сестрам какие функция она выполняет, (введено в штат. Расписание должность медсестры, а должны по согл-ю с МО, МЗ РБ работать медперсонал с больницы)","18.18.2.3.40.",null,null,null,0]
["Иные нарушения в части неэффективного использования средств. (Хозяйствующий субъект) ","18.18.2.3.41.",null,null,null,0]
["Заключение государственных (муниципальных) контрактов с единственным поставщиком (в установленных случаях) без соблюдения установленных процедур и с нарушением закона.","18.2.3.4.",null,null,null,0]
["Неэффективное использование бюджетных средств вследствие нарушений в оформлении государственных (муниципальных) контрактов, договоров, актов выполненных работ, других документов.","18.2.3.5.",null,null,null,0]
["Неисполнение поставщиками (подрядчиками) условий государственных (муниципальных) контрактов, договоров по соблюдению договорных цен.","18.2.3.6.",null,null,null,0]
["Заключение государственных (муниципальных) контрактов без установления обязательных условий, несоответствия конкурсной документации.","18.2.3.7.",null,null,null,0]
["Неэффективное использование бюджетных средств вследствие неприменения штрафных санкций к поставщикам и подрядчикам, нарушившим обязательства по условиям государственного (муниципального) контракта, договора.","18.2.3.8.",null,null,null,0]
["Неэффективное использование бюджетных средств вследствие заключения сделок, признанных судом недействительными.","18.2.3.9.",null,null,null,0]
["Безвозмездная передача государственного (муниципального) имущества (собственности) при отсутствии достаточных на то оснований. Передача имущества другим юридическим и физическим лицам без разрешения собственника.","18.3.1.13.",null,null,null,0]
["Непередача, неполная, несвоевременная передача государственного (муниципального) имущества. Передача имущества без соответствующего документального оформления.","18.3.1.15.",null,null,null,0]
["Отсутствие контроля за использованием объектов государственной (муниципальной) собственности.","18.3.1.16.",null,null,null,0]
["Затраты государственного (муниципального) имущества сверх необходимого (возможного) на получение требуемого результата.","18.3.1.17.",null,null,null,0]
["Затраты государственного имущества без достижения требуемого результата.","18.3.1.18.",null,null,null,0]
["Неосвоение, неиспользование (неполное использование) имущества. ","18.3.1.19.",null,null,null,0]
["Неэффективное управление объектами государственной и муниципальной собственности, убыточная, неприбыльная деятельность государственных и муниципальных унитарных предприятий, акционерных обществ и других организаций с участием государства; получение меньших, чем возможно, прибыли, дивидендов по акциям.","18.3.1.20.",null,null,null,0]
["Неэффективное использование бюджетных средств в результате ущерба, причиненного дорожно-транспортным происшествием, не возмещенного виновным лицом.","18.3.1.21.",null,null,null,0]
["Другие нарушения при распоряжении государственным (муниципальным) имуществом","18.3.1.22.",null,null,null,0]
["Неправомерное предоставление в пользование или залог объектов государственной (муниципальной) собственности","18.3.1.9.",null,null,null,0]
["Направление средств, полученных от предпринимательской и иной приносящей доход деятельности, на цели, не предусмотренные нормативными правовыми актами и разрешительными документами.","18.5.2.1.",null,null,null,0]
["Невыполнение договорных обязательств; непринятие мер по погашению кредиторской задолженности.","18.5.2.8.",null,null,null,0]
["Другие нарушения при осуществлении бюджетными учреждениями предпринимательской и иной приносящей доход деятельности.","18.5.2.9.",null,null,null,0]
["Нарушения при распоряжении имущества автономных и бюджетных учреждений (особо ценного имущества, движимого имущества и недвиженого имущества, находящегося в собственности субъекта Российской Федерации, находящегося в муниципальной собственности)","18.3.1.23.",null,null,null,0]
["Недостача денежных средств","19",null,null,null,0,null,null,null,null,{"$f":"SUM(K107)","v":0},null,null,null,null,{"$f":"SUM(P107)","v":0},null,null,null,null,{"$f":"SUM(U107)","v":0},null,null,null,null,{"$f":"SUM(Z107)","v":0}]
["Недостача наличных денежных средств, бланков строгой отчетности в кассе организации. ","19.2.2.55.",null,null,null,0]
["Недостача материальных ресурсов","20",null,null,null,0,null,null,null,null,{"$f":"SUM(K109:O111)","v":0},null,null,null,null,{"$f":"SUM(P109:T111)","v":0},null,null,null,null,{"$f":"SUM(U109:Y111)","v":0},null,null,null,null,{"$f":"SUM(Z109:AD111)","v":0}]
["Недостача государственного (муниципального) имущества.","20.3.1.3.",null,null,null,0]
["Недостача товарно-материальных ценностей.","20.2.2.54.",null,null,null,0]
["Нарушение порядка приватизации государственного (муниципального) имущества","20.3.1.12.",null,null,null,0]
["Недопоступление платежей в бюджет","21",null,null,null,0,null,null,null,null,{"$f":"SUM(K113:O133)+K134+K137","v":0},null,null,null,null,{"$f":"SUM(P113:T133)+P134+P137","v":0},null,null,null,null,{"$f":"SUM(U113:Y133)+U134+U137","v":0},null,null,null,null,{"$f":"SUM(Z113:AD133)+Z134+Z137","v":0}]
["Непоступление либо недопоступление средств в бюджет от реализация государственной (муниципальной) собственности (в т.ч. реализация государственной (муниципальной) собственности по заниженной стоимости, снижение стоимости реализуемого имущества вследствие естественной убыли или его порчи).","21.1.1.10.",null,null,null,0]
["Нарушение порядка распоряжения объектом нежилого фонда, находящимся в государственной собственности Республики Башкортостан или муниципальной собственности, и использования указанного объекта. Предоставление государственного (муниципального) имущества без согласия собственника в пользование, без получения доходов от его использования в соответствующий бюджет.","21.1.1.11.",null,null,null,0]
["Непринятие мер по взысканию арендной платы за пользование государственным (муниципальным) имуществом. Занижение и недополучение размеров арендной платы за использование государственного (муниципального) имущества.","21.1.1.12.",null,null,null,0]
["Нарушение порядка зачисления средств в доход бюджета.","21.1.1.14.",null,null,null,0]
["Другие нарушения, влекущие недопоступление средств в доход бюджета. ","21.1.1.15.",null,null,null,0]
["Непринятие мер по взысканию недоимки по налогам, сборам и обязательным платежам в доход бюджета, в том числе отсутствие контроля за правильностью исчисления, полнотой и своевременностью уплаты, начисления и учета, взыскания и принятия решений о возврате (зачете) излишне уплаченных (взысканных) платежей, пеней и штрафов по ним. ","21.1.1.3.",null,null,null,0]
["Непринятие мер по своевременному и полному получению в бюджетную систему средств, предоставленных на возвратной основе, а также платы за пользование этими средствами (включая бюджетные кредиты).","21.1.1.4.",null,null,null,0]
["Неперечисление (несвоевременное или неполное перечисление) в бюджет средств, полученных от распоряжения государственной (муниципальной) собственностью, использования государственной (муниципальной) собственности, предоставления государственных (муниципальных) услуг.","21.1.1.5.",null,null,null,0]
["Неперечисление (несвоевременное или неполное перечисление) в доход бюджета взыскиваемых сумм принудительного изъятия (штрафов, конфискаций и др.), а также доходов, полученных в виде возмещения ущерба.","21.1.1.6.",null,null,null,0]
["Неперечисление (несвоевременное или неполное перечисление) в доход бюджета дебиторской задолженности прошлых лет, поступившей на счета получателей бюджетных средств в текущем году. ","21.1.1.7.",null,null,null,0]
["Неперечисление (несвоевременное или неполное перечисление) в бюджет установленной доли чистой прибыли государственными унитарными предприятиями (муниципальными унитарными предприятиями).","21.1.1.8.",null,null,null,0]
["Неперечисление (несвоевременное или неполное перечисление) в бюджет дивидендов по акциям (долям), принадлежащим Республике Башкортостан или муниципальному образованию (при наличии решения о выплате дивидендов).","21.1.1.9.",null,null,null,0]
["Не предъявления требований к возмещению сумм, уплаченных по муниципальной гарантии.","21.1.2.28.",null,null,null,0]
["Реализация государственной (муниципальной) собственности с получением меньших, чем было возможно, средств (в т.ч. реализация государственной собственности по заниженной стоимости, снижение стоимости реализуемого имущества вследствие естественной убыли или его порчи)","21.3.1.14.",null,null,null,0]
["Предоставление государственного (муниципального) имущества в аренду и субаренду без согласия собственника, без заключения договоров или без их регистрации в установленном порядке.","21.3.1.6.",null,null,null,0]
["Несоблюдение условий договора аренды, занижение размеров арендной платы за использование государственного и муниципального имущества, в том числе предоставление во временное пользование имущества излишней площади, чем предусмотрено договором; несоблюдение сроков оплаты по договорам. ","21.3.1.7.",null,null,null,0]
["Непринятие мер по взысканию арендной платы за пользование государственным (муниципальным) имуществом","21.3.1.8.",null,null,null,0]
["Неправомерное предоставление в пользование или залог объектов государственной (муниципальной) собственности","21.3.1.9.",null,null,null,0]
["Осуществление деятельности, не предусмотренной учредительными документами.","21.5.2.5.",null,null,null,0]
["Осуществление деятельности при отсутствии необходимых разрешений (лицензий, аттестации, аккредитации) или с их нарушением.","21.5.2.6.",null,null,null,0]
["Другие нарушения при осуществлении бюджетными учреждениями предпринимательской и иной приносящей доход деятельности.","21.5.2.9.",null,null,null,0]
["Налоговые платежи",22,null,null,null,0,null,null,null,null,{"$f":"SUM(K135:O136)","v":0},null,null,null,null,{"$f":"SUM(P135:T136)","v":0},null,null,null,null,{"$f":"SUM(U135:Y136)","v":0},null,null,null,null,{"$f":"SUM(Z135:AD136)","v":0}]
["Другие нарушения, влекущие недопоступление средств в доход бюджета","22.1.1.15.",null,null,null,{"$f":"SUM(K135:AD135)","v":0}]
["Предоставление государственного (муниципального) имущества в аренду и субаренду без согласия собственника, без заключения договоров или без их регистрации в установленном порядке.","22.3.1.6.",null,null,null,0]
["Неналоговые платежи",23,null,null,null,0,null,null,null,null,{"$f":"SUM(K138:O153)","v":0},null,null,null,null,{"$f":"SUM(P138:T153)","v":0},null,null,null,null,{"$f":"SUM(U138:Y153)","v":0},null,null,null,null,{"$f":"SUM(Z138:AD153)","v":0}]
["Непринятие мер по взысканию пени за несвоевременное перечисление в доход бюджета доли чистой прибыли муниципальных унитарных предприятий ","23.1.1.3.",null,null,null,0]
["Не погашены пени за несвовременную уплату процентов по использованию бюджетных средств","23.1.1.4.",null,null,null,0]
["Неперечисление (несвоевременное или неполное перечисление) в бюджет средств, полученных от распоряжения государственной (муниципальной) собственностью, использования государственной (муниципальной) собственности, предоставления государственных (муниц","23.1.1.5.",null,null,null,0]
["Неперечисление (несвоевременное или неполное перечисление) в бюджет установленной доли чистой прибыли государственными унитарными предприятиями (муниципальными унитарными предприятиями)","23.1.1.8.",null,null,null,0]
["Непоступление либо недопоступление средств в бюджет от реализация государственной (муниципальной) собственности (в т.ч. реализация государственной (муниципальной) собственности по заниженной стоимости, снижение стоимости реализуемого имущества вследс","23.1.1.10.",null,null,null,0]
["Нарушение порядка распоряжения объектом нежилого фонда, находящимся в государственной собственности Республики Башкортостан или муниципальной собственности, и использования указанного объекта. Предоставление государственного (муниципального) имуществ","23.1.1.11.",null,null,null,0]
["Нарушение порядка приватизации государственного (муниципального) имущества","23.1.1.12.",null,null,null,0]
["Неправомерное предоставление льгот, отсрочек, рассрочек по платежам за пользование государственным (муниципальным) имуществом","23.1.1.13.",null,null,null,0]
["Средства, подлежащие перечислению в доход бюджета в виде платы от найма жилых помещений не учитывались в доходах местного бюджета","23.1.1.14.",null,null,null,0]
["Невзысканны пени в бюджет по арендной плате за землю","23.1.1.15.",null,null,null,0]
["Предоставление государственного (муниципального) имущества в аренду и субаренду без согласия собственника, без заключения договоров или без их регистрации в установленном порядке.","23.3.1.6.",null,null,null,0]
["Несоблюдение условий договора аренды, занижение размеров арендной платы за использование государственного и муниципального имущества, в том числе предоставление во временное пользование имущества излишней площади, чем предусмотрено договором; несоблю","23.3.1.7.",null,null,null,0]
["Непринятие мер по взысканию арендной платы за пользование государственным (муниципальным) имуществом","23.3.1.8.",null,null,null,0]
["Неправомерное предоставление в пользование или залог объектов государственной (муниципальной) собственности","23.3.1.9.",null,null,null,0]
["Нарушение порядка приватизации государственного (муниципального) имущества","23.3.1.12.",null,null,null,0]
["Реализация государственной (муниципальной) собственности с получением меньших, чем было возможно, средств (в т.ч. реализация государственной собственности по заниженной стоимости, снижение стоимости реализуемого имущества вследствие естественной убыл","23.3.1.14.",null,null,null,0]
["Излишки материальных ценностей и денежных средств","24",null,null,null,2188,null,null,null,null,{"$f":"SUM(K155:O156)","v":0},null,null,null,null,{"$f":"SUM(P155:T156)","v":2188},null,null,null,null,{"$f":"SUM(U155:Y156)","v":0},null,null,null,null,{"$f":"SUM(Z155:AD156)","v":0}]
["Излишки товарно-материальных ценностей, денежных средств и бланков строгой отчетности.","24.2.2.56.",null,null,null,0]
["Наличие неучтенного, неоприходованного в установленном порядке государственного (муниципального) имущества.","24.3.1.4.",null,null,null,2188,null,null,null,null,null,null,null,null,null,2188]
["Неправомерное расходование денежных средств и материальных ресурсов","25",null,null,null,2,null,null,null,null,{"$f":"SUM(K158:O246)","v":0},null,null,null,null,{"$f":"SUM(P158:T246)","v":2},null,null,null,null,{"$f":"SUM(U158:Y246)","v":0},null,null,null,null,{"$f":"SUM(Z158:AD246)","v":0}]
["Излишнее списание продуктов питания вследствие неверного применения норм естественной убыли","25.2.2.16.",null,null,null,0]
["Излишнее либо неправомерное начисление отпускных (основные и дополнительные отпуска) и компенсации за неиспользованный отпуск, в том числе неправомерная выплата отпускных сотрудникам, отозванным из отпуска (начисление заработной платы и отпускных за один и тот же период), начисление отпускных в результате неверного расчета дней или неверного применения коэффициента с учетом начислений на выплаты по оплате труда.","25.2.2.6.",null,null,null,0]
["Неправомерное использование доходов, полученных сверх утвержденных законом о бюджете.","25.1.2.10.",null,null,null,0]
["Неправомерное финансирование федеральных органов государственной власти и организаций за счет средств бюджетов субъектов РФ и (или) местных бюджетов (при отсутствии правовых оснований).","25.1.2.11.",null,null,null,0]
["Неправомерное финансирование расходных обязательств Республики Башкортостан за счет средств местных бюджетов (при отсутствии правовых оснований).","25.1.2.12.",null,null,null,0]
["Неправомерное финансирование местных органов власти и организаций за счет средств бюджета Республики Башкортостан (при отсутствии правовых оснований).","25.1.2.13.",null,null,null,0]
["Предоставление бюджетных инвестиций без оформления доли Республики Башкортостан (муниципального образования) в уставных (складочных) капиталах юридических лиц.","25.1.2.29.",null,null,null,0]
["Предоставление субсидий юридическим лицам (за исключением субсидий государственным, муниципальным учреждениям), индивидуальным предпринимателям, физическим лицам - производителям товаров, работ, услуг и некоммерческим организациям в нарушение порядка, установленного соответствующими нормативно-правовыми актами.","25.1.2.31.",null,null,null,0]
["Неправомерное финансирование расходов путем проведения зачета денежных средств.","25.1.2.32.",null,null,null,0]
["Нарушение порядка размещения бюджетных средств на банковских депозитах или передачи их в доверительное управление.Неэффективное размещение государственных средств в кредитных организациях.","25.1.2.33.",null,null,null,0]
["Выделение и направление средств бюджетной системы организациям, учредительными документами которых не предусмотрено осуществление соответствующей деятельности. ","25.1.2.34.",null,null,null,0]
["Другие нарушения, влекущие правонарушения в сфере исполнения бюджета по расходам.","25.1.2.36.",null,null,null,0]
["Выделение главными распорядителями, распорядителями бюджетных средств и направление бюджетным учреждениям средств бюджета Республики Башкортостан и муниципальных бюджетов в нарушение казначейской системы исполнения бюджета или на иные счета получателей бюджетных средств.","25.1.2.4.",null,null,null,0]
["Содержание за счет выделенных бюджетных средств сверхлимитной численности персонала с учетом начислений на выплаты по оплате труда.","25.2.2.1.",null,null,null,0]
["Завышение объемных показателей деятельности учреждения, приводящее к неправильному определению размера оплаты труда руководителей. ","25.2.2.10.",null,null,null,0]
["Иные нарушения в части оплаты труда, пособий и единого социального налога ","25.2.2.11.",null,null,null,0]
["Обучение за счет выделенных бюджетных средств учащихся или студентов, численностью сверх или менее установленного лимита.","25.2.2.12.",null,null,null,0]
["Начисления и выплаты стипендий, компенсаций и др. учащимся, студентам (в том числе обучаемым на договорной основе с полным возмещением затрат), учащимся (студентам) - сиротам и оставшимся без попечения родителей с нарушением действующего законодательства.","25.2.2.13.",null,null,null,0]
["Иные нарушения в части расчетов с учащимися и студентами.","25.2.2.14.",null,null,null,0]
["Излишнее списание продуктов питания вследствие применения завышенных (необоснованных) норм","25.2.2.15.",null,null,null,0]
["Излишнее списание продуктов питания вследствие завышения количества питающихся","25.2.2.17.",null,null,null,0]
["Списание продуктов на питание сотрудников, сторонних лиц (при условии, если последними не произведена оплата стоимости питания с последующим восстановление в соответствующий бюджет).","25.2.2.18.",null,null,null,0]
["Иные нарушения в части списания продуктов питания.","25.2.2.19.",null,null,null,0]
["Содержание за счет выделенных бюджетных средств должностей, не предусмотренных штатным расписанием или действующим законодательством с учетом начислений на выплаты по оплате труда.","25.2.2.2.",null,null,null,0]
["Расходы, связанные со служебной командировкой, произведенные с превышением норм и нормативов, установленных законодательством. ","25.2.2.20.",null,null,null,0]
["Расходы на оплату добровольного страхования по проездным билетам.","25.2.2.21.",null,null,null,0]
["Компенсация суточных по однодневным командировкам.","25.2.2.22.",null,null,null,0]
["Выдача подотчетных сумм лицам, не работающим в учреждении.","25.2.2.23.",null,null,null,0]
["Невостребование с работника бюджетного учреждения - подотчетного лица задолженности по бюджетным средствам, выданным ему в подотчет.","25.2.2.24.",null,null,null,0]
["Иные нарушения в части списания подотчетных сумм.","25.2.2.25.",null,null,null,0]
["Содержание сверхлимитного количества автотранспорта.","25.2.2.26.",null,null,null,0]
["Списание бензина при эксплуатации автомобилей в выходные и праздничные дни при отсутствии приказа по учреждению (организации).","25.2.2.27.",null,null,null,2,null,null,null,null,null,null,null,null,null,2]
["Излишнее списание горюче-смазочных материалов вследствие применения завышенных (неправомерных) норм списания.","25.2.2.28.",null,null,null,0]
["Списание запасных частей и горюче-смазочных материалов на эксплуатацию автомобилей, не принадлежащих учреждению.","25.2.2.29.",null,null,null,0]
["Начисление выплат по заработной плате (окладов, надбавок, доплат, премий), не предусмотренных действующим законодательством, трудовыми договорами или соотвествующими распорядительными документами либо в размерах, превышающих размеры, установленные действующим законодательством (в том числе завышение окладов, ставок, разрядов по оплате труда), с учетом начислений на выплаты по оплате труда.","25.2.2.3.",null,null,null,0]
["Иные нарушения в части содержания автотранспорта.","25.2.2.30.",null,null,null,0]
["Оплата завышенных объемов строительно-монтажных работ, в том числе установленных контрольным обмером.","25.2.2.31.",null,null,null,0]
["Оплата невыполненных объемов строительно-монтажных работ, в том числе установленных контрольным обмером.","25.2.2.31.1.",null,null,null,0]
["Необоснованное применение норм, расценок при определении сметной стоимости работ ( в т.ч. применение территориальных единичных расценок других регионов на территории Республики Башкортостан).","25.2.2.32.",null,null,null,0]
["Завышение лимитированных затрат, удорожающих коэффициентов при выполнении ремонтно-строительных работ.","25.2.2.33.",null,null,null,0]
["Использование средств на проведение текущего ремонта в качестве оплаты работ по капитальному ремонту и наоборот вследствие неверной классификации видов и состава работ.","25.2.2.34.",null,null,null,0]
["Неправильное определение стоимости работ, выполняемых организациями, работающими по упрощенной системе налогообложения.","25.2.2.35.",null,null,null,{"$f":"SUM(K199:AD199)","v":0}]
["Необоснованное расходование средств на оплату дополнительных расходов строительных организаций, не подтвержденных документально или в нарушение законодательства. ","25.2.2.36.",null,null,null,0]
["Приобретение основных средств (в т.ч. оборудования, мебели), не предусмотренных проектно-сметной документацией, государственными контрактами, спецификациями и техническими условиями.","25.2.2.37.",null,null,null,0]
["Иные нарушения при расходовании средств в результате завышения стоимости и объемов выполненных работ, повторного выполнения работ на тех же объектах. Не соблюдение периодичности проведения капитального ремонта.","25.2.2.38.",null,null,null,0]
["Оплата капитального ремонта арендованных помещений (в случае, если подобный ремонт не предусмотрен в договоре и его стоимость в последствии не восстановлена собственником).","25.2.2.39.",null,null,null,0]
["Начисление выплат по заработной плате без учета фактически отработанного времени (в том числе за неотработанные часы) и фактического исполнения работником должностных обязанностей с учетом начислений на выплаты по оплате труда.","25.2.2.4.",null,null,null,0]
["Оплата арендатором коммунальных и эксплуатационных услуг при отсутствии заключенных договоров аренды, либо договоров на компенсацию потребленных коммунальных услуг. ","25.2.2.40.",null,null,null,0]
["Использование бюджетных средств на оплату коммунальных услуг, оказанных сторонним потребителям, без соответствующего возмещения данных расходов.","25.2.2.41.",null,null,null,0]
["Оплата кредиторской задолженности, образованной вследствие не законного принятия организаций обязательств за счет бюджетных средств сверх доведенных лимитов.","25.2.2.42.",null,null,null,0]
["Незаконное предоставление ссуды физическим лицам","25.2.2.43.",null,null,null,0]
["Расходы, произведенные за счет бюджетных средств в результате завышения сметных назначений, в т.ч. доля оплаты труда работников административно-управленческого и вспомогательного персонала в фонде оплаты труда учреждениям образования превысила 40% \n","25.2.2.44.",null,null,null,0]
["Просроченная дебиторская задолженность, образовавшаяся вследствие нарушения порядка оплаты, предусмотренного нормативно-правовыми актами и государственными (муниципальными) контрактами и договорами и (или) непринятие мер по ее взысканию.","25.2.2.45.",null,null,null,0]
["Образование необоснованной дебиторской задолженности по оплате товаров (работ, услуг) ","25.2.2.46.",null,null,null,0]
["Расходы бюджетных средств, не подтвержденные необходимыми оправдательными документами (включая списания сумм с подотчета).","25.2.2.47.",null,null,null,0]
["Расходы бюджетных средств, не подтвержденные необходимыми оправдательными документами (включая списания сумм с подотчета), (компенсация за школьную форму); выплаты денежной компенсации родителям учащихся, за приобретенную школьную форму, предоставления бесплатного питания учащимся из многодетных малоимущих семей без представления подтверждающих документов ","25.2.2.471.",null,null,null,0]
["Расходы бюджетных средств по документам, не подтвержденными встречными проверками (включая списания сумм с подотчета).","25.2.2.48.",null,null,null,0]
["Приобретение товарно-материальных ценностей, оказание услуг, выполнение работ по договорам по завышенным ценам.","25.2.2.49.",null,null,null,0]
["Излишняя (неправомерная) выплата заработной платы при внутреннем совмещении, а так же специалистам, работающим в учреждении по совместительству с учетом начислений на выплаты по оплате труда.","25.2.2.5.",null,null,null,0]
["Неправомерное изменение условий государственных (муниципальных) контрактов и не соблюдение договорных цен в порядке, установленным законодательством и контрактами.","25.2.2.50.",null,null,null,0]
["Использование бюджетных средств на оплату личных расходов работников учреждения.","25.2.2.51.",null,null,null,0]
["Неперечисление (несвоевременное или неполное перечисление) в доход бюджета дебиторской задолженности прошлых лет, поступившей на счета получателей бюджетных средств в текущем году","25.2.2.52.",null,null,null,0]
["Другие неправомерные нарушения. ","25.2.2.53.",null,null,null,0]
["Другие неправомерные нарушения, а именно переплата и недоплатат в части компенсационных выплат (за метод литературу, коммунальных услуг)","25.2.2.53.1.",null,null,null,0]
["Другие неправомерные нарушения при использовании субсидии, выделенных на содержание автономного и бюджетного учреждения ","25.2.2.53.2.",null,null,null,0]
["Другие неправомерные нарушения при использовании субсидии, выделенных на содержание автономного учреждения . Невыполнение государственных (муниципальных) заданий","25.2.2.53.3.",null,null,null,0]
["Другие неправомерные нарушения при использовании субсидии, выделенных на содержание бюджетного учреждения . Невыполнение государственных (муниципальных) заданий","25.2.2.53.4.",null,null,null,0]
["Другие неправомерные нарушения. Неправомерные расходы средств, выделенных на реализацию адресной программы Республики Башкортостан на период 2011 - 2015 годов по замене и модернизации лифтов, отработавших нормативный срок службы.","25.2.2.53.5.",null,null,null,0]
["Другие неправомерные нарушения.Нарушения в использвании средств, выделенных на софинансирование расходов по модернизации систем наружного освещения населенных пунктов Республики Башкортостан на 2011–2015 годы.","25.2.2.53.6.",null,null,null,0]
["Другие неправомерные нарушения. Нарушения в использовании средств, выделенныхна реализацию республиканской адресной программы по проведению капитального ремонта многоквартирных домов","25.2.2.53.7.",null,null,null,0]
["Нарушение по условиям соглашений в части софинансирования соответствующих обязательств за счет средств местного бюджета (если предусмотрено по условиям соглашения, порядка, договор, НПА возврат при нарушении)","25.2.2.53.8.",null,null,null,0]
["Другие неправомерные нарушения. Не принятие мер по возврату бюджетныхх средств, выделенных на софинансирование расходов в МО и ГО","25.2.2.53.9.",null,null,null,0]
["Нарушения в расчетах по оплате труда по договорам гражданско-правового характера, в том числе по завышенным тарифам с учетом начислений на выплаты по оплате труда (за исключением отчислений в фонд социального страхования и страховых взносов от несчастных случаев).","25.2.2.7.",null,null,null,0]
["Необоснованное начисление единого социального налога и налога на доходы физических лиц и авансовое перечисление платежей в качестве оплаты единого социального налога и налога на доходы физических лиц за пределами финансового года.","25.2.2.8.",null,null,null,0]
["Излишнее либо неправомерное начисление пособий по временной нетрудоспособности (в том числе пособий по уходу за ребенком, по беременности и родам и пр.).","25.2.2.9.",null,null,null,0]
["Неправомерное списание государственного (муниципального) имущества.","25.3.1.1.",null,null,null,0]
["Сверхнормативные затраты при приобретении, получении и использовании государственного (муниципального) имущества.","25.3.1.10.",null,null,null,0]
["Безвозмездная передача государственного (муниципального) имущества (собственности) при отсутствии достаточных на то оснований. Передача имущества другим юридическим и физическим лицам без разрешения собственника.","25.3.1.13.",null,null,null,0]
["Безвозмездная передача государственного (муниципального) имущества (собственности) при отсутствии достаточных на то оснований. Передача имущества другим юридическим и физическим лицам без разрешения собственника. Неправомерная передача особо ценного имущества автономными и бюджетными учреждениями","25.3.1.13.1.",null,null,null,0]
["Нарушение правил ответственного хранения государственных (муниципальных) материальных ценностей (ненадлежащее хранение) и их эксплуатации, непринятие мер по обеспечению сохранности государственной (муниципальной) собственности. ","25.3.1.2.",null,null,null,0]
["Другие нарушения при распоряжении государственным (муниципальным) имуществом","25.3.1.22.",null,null,null,0]
["Использование государственной (муниципальной) собственности не по ее назначению и не в соответствии с целями ее приобретения.","25.3.1.5.",null,null,null,0]
["Использование государственной (муниципальной) собственности не по ее назначению и не в соответствии с целями ее приобретения.","25.3.1.5.",null,null,null,0]
["Направление средств, полученных от предпринимательской и иной приносящей доход деятельности, на цели, не предусмотренные нормативными правовыми актами и разрешительными документами.","25.5.2.1.",null,null,null,0]
["Осуществление деятельности, не предусмотренной учредительными документами.","25.5.2.5.",null,null,null,0]
["Осуществление деятельности при отсутствии необходимых разрешений (лицензий, аттестации, аккредитации) или с их нарушением.","25.5.2.6.",null,null,null,0]
["Создание государственными (муниципальными) органами и функционирование фондов, резервов, не предусмотренных законодательством Российской Федерации.","25.5.2.7.",null,null,null,0]
["Другие нарушения при осуществлении бюджетными учреждениями предпринимательской и иной приносящей доход деятельности.","25.5.2.9.",null,null,null,0]
["Другие нарушения при распоряжении государственным (муниципальным) имуществом \n(не оприходованное имущество, не запущено в эксплуатацию и др. нарушения по имуществу, выявленных в рамках проверки вопросов ч.8 ст. 99 Закона о контрактной системе)","25.3.1.22.1.",null,null,null,0]
["Другие финансовые нарушения","26",null,null,null,0,null,null,null,null,{"$f":"SUM(K248:O325)","v":0},null,null,null,null,{"$f":"SUM(P248:T325)","v":0},null,null,null,null,{"$f":"SUM(U248:Y325)","v":0},null,null,null,null,{"$f":"SUM(Z248:AD325)","v":0}]
["Нанесение ущерба юридическим и (или) физическим лицам при выполнении должностных обязанностей.","26.5.1.6.",null,null,null,0]
["Нарушение порядка зачисления средств в доход бюджета.","26.1.1.14.",null,null,null,0]
["Другие нарушения, влекущие недопоступление средств в доход бюджета. ","26.1.1.15.",null,null,null,0]
["Другие нарушения, влекущие недопоступление средств в доход бюджета. За несвоевременное перечисление в бюджет арендной платы за земельные участки не начислялись штрафные санкции и не взыскивались пени. ","26.1.1.16.",null,null,null,0]
["Другие нарушения, влекущие недопоступление средств в доход бюджета. За несвоевременное перечисление в бюджет арендной платы за имущество не начислялись штрафные санкции и не взыскивались пени. ","26.1.1.17.",null,null,null,0]
["Поступающие в виде от найма жилых помещений не учитывались в доходах местного бюджета ","26.1.1.18.",null,null,null,0]
["Несоответствие сводной бюджетной росписи закону (решению) о бюджете.","26.1.2.1.",null,null,null,0]
["Финансирование расходов сверх утвержденной сметой доходов и расходов (бюджетной сметой с 01.01.2008 года).","26.1.2.14.",null,null,null,0]
["Неправомерный отказ в подтверждении исполнения бюджетных обязательств, принятых получателями бюджетных средств.","26.1.2.15.",null,null,null,0]
["Подтверждение денежных обязательств, не подлежащих принятию. ","26.1.2.16.",null,null,null,0]
["Нарушение порядка санкционирования оплаты денежных обязательств получателей бюджетных средств","26.1.2.17.",null,null,null,0]
["Нарушение сроков подтверждения денежных обязательств, влекущее выплату пени, штрафов.","26.1.2.18.",null,null,null,0]
["Несоответствие уведомлений о бюджетных ассигнованиях, уведомлений о лимитах бюджетных обязательств утвержденным расходам и бюджетной росписи.","26.1.2.2.",null,null,null,0]
["Предоставление бюджетных кредитов при наличии просроченной задолженности по ранее предоставленным бюджетным средствам на возвратной основе.","26.1.2.21.",null,null,null,0]
["Предоставление бюджетных кредитов с нарушением закона (решения) о бюджете.","26.1.2.22.",null,null,null,0]
["Предоставление бюджетных кредитов без надлежащего обеспечения обязательств.","26.1.2.23.",null,null,null,{"$f":"SUM(K263:AD263)","v":0}]
["Предоставление бюджетных кредитов без указания цели использования средств в договоре. ","26.1.2.24.",null,null,null,0]
["Предоставление бюджетных кредитов без проверки финансового состояния получателя.","26.1.2.25.",null,null,null,0]
["Неправомерное осуществление государственных (муниципальных) заимствований.","26.1.2.26.",null,null,null,0]
["Неправомерное предоставление государственных (муниципальных) гарантий (в т.ч. без проверки финансового состояния заемщика; с превышением установленного предельного объема; на цели, не соответствующие порядку направления гарантий).","26.1.2.27.",null,null,null,0]
["Неправомерное изменение объемов бюджетных ассигнований и лимитов бюджетных обязательств, предельных объемов финансирования (с 01.01.2008 года).","26.1.2.3.",null,null,null,0]
["Другие нарушения, влекущие правонарушения в сфере исполнения бюджета по расходам.","26.1.2.36.",null,null,null,0]
["Несоответствие проекта бюджета требованиям законодательства в части прогноза макроэкономических показателей.","26.1.3.1.",null,null,null,0]
["Неутверждение, несвоевременное утверждение сводных бюджетных росписей и росписей главных распорядителей бюджетных средств, смет доходов и расходов (бюджетных смет с 01.01.2008 года); несвоевременное доведение бюджетных ассигнований и лимитов бюджетных обязательств.","26.1.3.10.",null,null,null,0]
["Принятие нормативно-правовых актов, противоречащих Бюджетному кодексу РФ в части предоставления и расходования средств в бюджетной системе, несвоеременное принятие или отсутствие требуемых нормативных правовых актов.","26.1.3.11.",null,null,null,0]
["Другие нарушения при формировании бюджетов","26.1.3.12.",null,null,null,0]
["Несоответствие проекта бюджета принципам бюджетной системы Российской Федерации.","26.1.3.2.",null,null,null,0]
["Несоответствие доходной части проекта бюджета требованиям законодательства.","26.1.3.3.",null,null,null,0]
["Несоответствие расходной части проекта бюджета требованиям законодательства.","26.1.3.4.",null,null,null,0]
["Несоответствие проекта бюджета требованиям законодательства в части источников финансирования дефицита бюджета.","26.1.3.5.",null,null,null,0]
["Несоответствие проекта бюджета требованиям законодательства в части межбюджетных отношений.","26.1.3.6.",null,null,null,0]
["Необоснованное завышение (занижение) расходов или завышение (занижение) доходов в проекте бюджета.","26.1.3.7.",null,null,null,0]
["Нарушение установленного порядка подготовки и представления проекта бюджета и документов, необходимых для его составления и рассмотрения.","26.1.3.8.",null,null,null,0]
["Несоответствие документов, представляемых с проектом бюджета, требованиям законодательства","26.1.3.9.",null,null,null,0]
["Неправомерное отнесение к федеральной собственности имущества, которое должно находиться в собственности субъектов Российской Федерации или муниципальных образований.","26.3.1.11.",null,null,null,0]
["Нарушение порядка приватизации государственного (муниципального) имущества","26.3.1.12.",null,null,null,0]
["Отсутствие контроля за использованием объектов государственной (муниципальной) собственности.","26.3.1.16.",null,null,null,0]
["Нарушение правил ответственного хранения государственных (муниципальных) материальных ценностей (ненадлежащее хранение) и их эксплуатации, непринятие мер по обеспечению сохранности государственной (муниципальной) собственности. ","26.3.1.2.",null,null,null,0]
["Другие нарушения при распоряжении государственным (муниципальным) имуществом","26.3.1.22.",null,null,null,0]
["Нарушения порядка составления и представления отчетности об исполнении бюджета. ","26.4.1.1.",null,null,null,0]
["Нарушения единой системы учета и регистрациимуниципальных заимствований, а также порядка ведения муниципальной долговой книги Российской Федерации, субъекта Российской Федерации.","26.4.1.2.",null,null,null,0]
["Неверное отражение в смете бюджетного учреждения его доходов и расходов.","26.4.1.3.",null,null,null,0]
["Нарушения в ведении реестров государственных (муниципальных) контрактов, закупок.","26.4.1.4.",null,null,null,0]
["Нарушения бюджетного учета.","26.4.1.5.",null,null,null,0]
["Нарушение порядка рассмотрения, утверждения и публикации отчета об исполнении бюджета. ","26.4.1.6.",null,null,null,0]
["Нарушения в ведении реестров расходных обязательств","26.4.1.7.",null,null,null,0]
["Другие нарушения правил учета и отчетности. ","26.4.1.8.",null,null,null,0]
["Нарушения правил учета и отчетности, плана финансово-хозяйственной деятельности","26.4.1.9.",null,null,null,0]
["Нарушение сроков представления отчетности.","26.4.2.1.",null,null,null,0]
["Нарушение порядка оприходования, начисления амортизации основных средств и нематериальных активов. (в т.ч маккулатуры от списания библ фонда, списание мягкого инвентаря и неоприходование как ветошь)","26.4.2.10.",null,null,null,0]
["Нарушение порядка ведения раздельного бухгалтерского (бюджетного) учета по источникам образования средств.","26.4.2.11.",null,null,null,0]
["Другие нарушения бухгалтерского (бюджетного) учета и отчетности, правил работы с денежной наличностью","26.4.2.12.",null,null,null,0]
["Несоответствие данных бухгалтерского (бюджетного) учета первичным документам.","26.4.2.2.",null,null,null,0]
["Несоблюдение порядка работы с денежной наличностью, ведения кассовых операций.","26.4.2.3.",null,null,null,0]
["Нарушение порядка хранения документов.","26.4.2.4.",null,null,null,0]
["Отсутствие обязательных реквизитов документов и иные нарушения бухгалтерского (бюджетного) учета и отчетности.","26.4.2.5.",null,null,null,0]
["Отсутствие контрактов, заключенных с зарубежными организациями, или иных первичных документов на русском языке или их переводов на русский язык","26.4.2.6.",null,null,null,0]
["Расходы бюджетных средств, не подтвержденные необходимыми оправдательными документами. ","26.4.2.7.",null,null,null,0]
["Выдача авансов под отчет при наличии задолженности по ранее выданным денежным средствам","26.4.2.8.",null,null,null,0]
["Несоблюдение порядка проведения инвентаризации имущества и финансовых обязательств, незаключение договоров с материально-ответственными лицами.","26.4.2.9.",null,null,null,0]
["Непредставление гражданам и организациям предусмотренной законом информации.","26.5.1.1.",null,null,null,0]
["Неприменение мер ответственности – штрафов и пени.","26.5.1.2.",null,null,null,0]
["Неприменение мер ответственности – штрафов и пени. (за ненадлежащее исполнение администрацией муниципальными образованиями условий соглашения на софинансирования не предъявлены и невзысканы пени). \n","26.5.1.2.1.",null,null,null,0]
["Не применены заказчиком (ГРБС, ГКУ) мер ответственности и совершения иных действий в случае нарушения поставщиком (подрядчиком, исполнителем) условий контракта -  не взысканы пени ","26.5.1.2.2",null,null,null,0]
["Не применены заказчиком (АУ, БУ) мер ответственности и совершения иных действий в случае нарушения поставщиком (подрядчиком, исполнителем) условий контракта -  не взысканы пени","26.5.1.2.3",null,null,null,0]
["Иное невыполнение, неполное выполнение государственных (муниципальных) задач и функций.","26.5.1.3.",null,null,null,0]
["Иное невыполнение, неполное выполнение государственных (муниципальных) задач и функций. Невыполнение государственных (муниципальных) заданий.","26.5.1.3.1.",null,null,null,0]
["Непредъявление требований по возмещению ущерба государству (муниципальному образованию).","26.5.1.4.",null,null,null,0]
["Нарушения норм, требований, правил при выполнении государственных(муниципальных) задач и функций.","26.5.1.5.",null,null,null,0]
["Не соответствие принятых целевых программ законодательству, нарушение порядка изменения программ; отсутствие оценки эффективности; включение в целевые программы неэффективных мероприятий, завышение расходов программ.","26.5.1.7.",null,null,null,0]
["Другие нарушения при выполнении государственных задач и функций.","26.5.1.8.",null,null,null,0]
["Завышение сметных назначение по бюджетным учреждением (в т.ч. неучтенная дебиторская задолженность)","26.5.1.8.1.",null,null,null,0]
["Другие нарушения. Установление сроков договоров.","26.5.1.8.2.",null,null,null,0]
["Нарушения норм, требований, правил при осуществлении хозяйственной деятельности","26.5.2.3.",null,null,null,0]
["Осуществление учета средств, полученных от предпринимательской и иной приносящей доход деятельности, не на лицевых счетах, открытых казначейством.","26.5.2.4.",null,null,null,0]
["Другие нарушения при осуществлении бюджетными учреждениями предпринимательской и иной приносящей доход деятельности.","26.5.2.9.",null,null,null,0]
["Непринятие мер по взысканию арендной платы за пользование государственным (муниципальным) имуществом. Занижение и недополучение размеров арендной платы за использование государственного (муниципального) имущества. \n(с 01.11.2014 только бюджетных и автономных учреждений. т.к. плата от арендной платы должны поступать на внебюджетный счет БУ и АУ) ","26.1.1.12.",null,null,null,0]
["Другие нарушения при осуществлении бюджетными учреждениями предпринимательской и иной приносящей доход деятельности (Уставами общеобразовательных учреждений (поступление от родителей за питание школьников) не предусмотрен. )","26.5.2.9.",null,null,null,0]

{"sheet":"4. ФК-1","index":3,"n_rows":292,"n_cols":33,"rows_kept":292,"cut":false,"hidden":false,"merged":[[141,28,141,30],[142,28,142,30],[135,28,135,30],[156,0,156,2],[152,0,152,2],[156,3,156,24],[156,25,156,27],[152,25,152,27],[152,28,152,30],[144,25,144,27],[144,28,144,30],[233,0,233,2],[233,3,233,24],[233,25,233,27],[233,28,233,30],[218,0,218,2],[218,3,218,24],[218,25,218,27],[218,28,218,30],[219,0,219,2],[219,3,219,24],[219,25,219,27],[219,28,219,30],[222,0,222,2],[220,0,220,2],[220,3,220,24],[220,25,220,27],[220,28,220,30],[221,0,221,2],[221,3,221,24],[221,25,221,27],[221,28,221,30],[228,0,228,2],[228,3,228,24],[228,25,228,27],[158,28,158,30],[159,28,159,30],[162,28,162,30],[163,28,163,30],[164,28,164,30],[187,0,187,2],[5,0,5,20],[6,0,6,20],[3,21,3,23],[135,0,135,2],[139,3,139,24],[132,0,132,2],[132,3,132,24],[132,25,132,27],[132,28,132,30],[133,0,133,2],[133,3,133,24],[133,25,133,27],[133,28,133,30],[136,0,136,2],[136,3,136,24],[136,25,136,27],[136,28,136,30],[137,0,137,2],[134,0,134,2],[134,3,134,24],[134,25,134,27],[134,28,134,30],[135,3,135,24],[135,25,135,27],[139,25,139,27],[139,28,139,30],[138,0,138,2],[137,3,137,24],[137,25,137,27],[137,28,137,30],[139,0,139,2],[88,28,88,30],[4,21,4,23],[5,21,5,23],[6,21,6,23],[1,0,1,14],[7,0,7,27],[8,0,8,30],[10,0,10,30],[9,0,9,30],[11,0,11,16],[11,17,11,30],[7,28,7,30],[17,28,17,30],[18,0,18,2],[18,3,18,24],[18,25,18,27],[18,28,18,30],[13,0,13,2],[13,3,13,24],[13,25,13,27],[13,28,13,30],[15,0,15,2],[15,3,15,24],[15,25,15,27],[0,0,0,30],[1,15,1,30],[2,0,2,30],[130,0,130,2],[131,0,131,2],[130,3,130,24],[131,3,131,24],[130,25,130,27],[131,25,131,27],[130,28,130,30],[131,28,131,30],[129,0,129,2],[129,3,129,24],[129,25,129,27],[129,28,129,30],[110,0,110,2],[110,3,110,24],[110,25,110,27],[110,28,110,30],[3,0,3,20],[4,0,4,20],[19,0,19,2],[19,3,19,24],[19,25,19,27],[19,28,19,30],[20,0,20,2],[20,3,20,24],[20,25,20,27],[20,28,20,30],[17,0,17,2],[17,3,17,24],[17,25,17,27],[15,28,15,30],[16,0,16,2],[16,3,16,24],[16,25,16,27],[16,28,16,30],[14,0,14,2],[14,3,14,24],[14,25,14,27],[14,28,14,30],[25,0,25,2],[25,3,25,24],[25,25,25,27],[25,28,25,30],[26,0,26,2],[26,3,26,24],[26,25,26,27],[26,28,26,30],[23,0,23,2],[23,3,23,24],[23,25,23,27],[23,28,23,30],[24,0,24,2],[24,3,24,24],[24,25,24,27],[24,28,24,30],[21,0,21,2],[21,3,21,24],[21,25,21,27],[21,28,21,30],[22,0,22,2],[22,3,22,24],[22,25,22,27],[22,28,22,30],[29,0,29,2],[29,3,29,24],[29,25,29,27],[29,28,29,30],[30,0,30,2],[30,3,30,24],[30,25,30,27],[30,28,30,30],[31,3,31,24],[31,25,31,27],[31,28,31,30],[31,0,31,2],[27,0,27,2],[27,3,27,24],[27,25,27,27],[27,28,27,30],[28,0,28,2],[28,3,28,24],[28,25,28,27],[28,28,28,30],[36,0,36,2],[36,3,36,24],[36,25,36,27],[36,28,36,30],[39,0,39,2],[39,3,39,24],[39,25,39,27],[39,28,39,30],[37,0,37,2],[37,3,37,24],[37,25,37,27],[37,28,37,30],[38,0,38,2],[38,3,38,24],[38,25,38,27],[38,28,38,30],[32,0,32,2],[32,3,32,24],[32,25,32,27],[32,28,32,30],[35,0,35,2],[35,3,35,24],[35,25,35,27],[35,28,35,30],[33,0,33,2],[33,3,33,24],[33,25,33,27],[33,28,33,30],[34,0,34,2],[34,3,34,24],[34,25,34,27],[34,28,34,30],[45,0,45,2],[45,3,45,24],[45,25,45,27],[45,28,45,30],[43,0,43,2],[43,3,43,24],[43,25,43,27],[43,28,43,30],[44,0,44,2],[44,3,44,24],[44,25,44,27],[44,28,44,30],[42,0,42,2],[42,3,42,24],[42,25,42,27],[42,28,42,30],[40,0,40,2],[40,3,40,24],[40,25,40,27],[40,28,40,30],[41,0,41,2],[41,3,41,24],[41,25,41,27],[41,28,41,30],[46,0,46,2],[46,3,46,24],[46,25,46,27],[46,28,46,30],[49,0,49,2],[49,3,49,24],[49,25,49,27],[49,28,49,30],[50,0,50,2],[50,3,50,24],[50,25,50,27],[50,28,50,30],[47,0,47,2],[47,3,47,24],[47,25,47,27],[47,28,47,30],[48,0,48,2],[48,3,48,24],[48,25,48,27],[48,28,48,30],[51,0,51,2],[51,3,51,24],[51,25,51,27],[51,28,51,30],[57,0,57,2],[57,3,57,24],[57,25,57,27],[57,28,57,30],[58,0,58,2],[58,3,58,24],[58,25,58,27],[58,28,58,30],[55,0,55,2],[55,3,55,24],[55,25,55,27],[55,28,55,30],[56,0,56,2],[56,3,56,24],[56,25,56,27],[56,28,56,30],[53,0,53,2],[53,3,53,24],[53,25,53,27],[53,28,53,30],[54,0,54,2],[54,3,54,24],[54,25,54,27],[54,28,54,30],[52,0,52,2],[52,3,52,24],[52,25,52,27],[52,28,52,30],[63,0,63,2],[63,3,63,24],[63,25,63,27],[63,28,63,30],[64,0,64,2],[64,3,64,24],[64,25,64,27],[64,28,64,30],[62,0,62,2],[62,3,62,24],[62,25,62,27],[62,28,62,30],[59,0,59,2],[59,3,59,24],[59,25,59,27],[59,28,59,30],[60,0,60,2],[60,3,60,24],[60,25,60,27],[60,28,60,30],[61,0,61,2],[61,3,61,24],[61,25,61,27],[61,28,61,30],[73,0,73,2],[73,3,73,24],[73,25,73,27],[73,28,73,30],[69,0,69,2],[69,3,69,24],[69,25,69,27],[69,28,69,30],[67,0,67,2],[67,3,67,24],[67,25,67,27],[67,28,67,30],[68,0,68,2],[68,3,68,24],[68,25,68,27],[68,28,68,30],[65,0,65,2],[65,3,65,24],[65,25,65,27],[65,28,65,30],[66,0,66,2],[66,3,66,24],[66,25,66,27],[66,28,66,30],[75,0,75,2],[75,3,75,24],[75,25,75,27],[75,28,75,30],[77,0,77,2],[77,3,77,24],[77,25,77,27],[77,28,77,30],[78,0,78,2],[78,3,78,24],[78,25,78,27],[78,28,78,30],[76,0,76,2],[76,3,76,24],[76,25,76,27],[76,28,76,30],[70,0,70,2],[70,3,70,24],[70,25,70,27],[70,28,70,30],[74,0,74,2],[74,3,74,24],[74,25,74,27],[74,28,74,30],[71,0,71,2],[71,3,71,24],[71,25,71,27],[71,28,71,30],[72,0,72,2],[72,3,72,24],[72,25,72,27],[72,28,72,30],[82,0,82,2],[82,3,82,24],[82,25,82,27],[82,28,82,30],[83,0,83,2],[83,3,83,24],[83,25,83,27],[83,28,83,30],[81,0,81,2],[81,3,81,24],[81,25,81,27],[81,28,81,30],[79,0,79,2],[79,3,79,24],[79,25,79,27],[79,28,79,30],[80,0,80,2],[80,3,80,24],[80,25,80,27],[80,28,80,30],[86,0,86,2],[86,3,86,24],[86,25,86,27],[86,28,86,30],[87,0,87,2],[87,3,87,24],[87,25,87,27],[87,28,87,30],[88,0,88,2],[88,3,88,24],[88,25,88,27],[84,0,84,2],[84,3,84,24],[84,25,84,27],[84,28,84,30],[85,0,85,2],[85,3,85,24],[85,25,85,27],[85,28,85,30],[92,0,92,2],[92,3,92,24],[92,25,92,27],[92,28,92,30],[93,0,93,2],[93,3,93,24],[93,25,93,27],[93,28,93,30],[89,0,89,2],[89,3,89,24],[89,25,89,27],[89,28,89,30],[90,0,90,2],[90,3,90,24],[90,25,90,27],[90,28,90,30],[91,0,91,2],[91,3,91,24],[91,25,91,27],[91,28,91,30],[98,0,98,2],[98,3,98,24],[98,25,98,27],[98,28,98,30],[99,0,99,2],[99,3,99,24],[99,25,99,27],[99,28,99,30],[97,0,97,2],[97,3,97,24],[97,25,97,27],[97,28,97,30],[94,0,94,2],[94,3,94,24],[94,25,94,27],[94,28,94,30],[95,0,95,2],[95,3,95,24],[95,25,95,27],[95,28,95,30],[96,0,96,2],[96,3,96,24],[96,25,96,27],[96,28,96,30],[104,0,104,2],[104,3,104,24],[104,25,104,27],[104,28,104,30],[105,0,105,2],[105,3,105,24],[105,25,105,27],[105,28,105,30],[102,0,102,2],[102,3,102,24],[102,25,102,27],[102,28,102,30],[103,0,103,2],[103,3,103,24],[103,25,103,27],[103,28,103,30],[100,0,100,2],[100,3,100,24],[100,25,100,27],[100,28,100,30],[101,0,101,2],[101,3,101,24],[101,25,101,27],[101,28,101,30],[111,0,111,2],[111,3,111,24],[111,25,111,27],[111,28,111,30],[109,0,109,2],[109,3,109,24],[109,25,109,27],[109,28,109,30],[106,0,106,2],[106,3,106,24],[106,25,106,27],[106,28,106,30],[107,0,107,2],[107,3,107,24],[107,25,107,27],[107,28,107,30],[108,0,108,2],[108,3,108,24],[108,25,108,27],[108,28,108,30],[115,0,115,2],[115,3,115,24],[115,25,115,27],[115,28,115,30],[112,0,112,2],[112,3,112,24],[112,25,112,27],[112,28,112,30],[113,0,113,2],[113,3,113,24],[113,25,113,27],[113,28,113,30],[114,0,114,2],[114,3,114,24],[114,25,114,27],[114,28,114,30],[116,0,116,2],[116,3,116,24],[116,25,116,27],[116,28,116,30],[120,0,120,2],[120,3,120,24],[120,25,120,27],[120,28,120,30],[121,0,121,2],[121,3,121,24],[121,25,121,27],[121,28,121,30],[118,0,118,2],[118,3,118,24],[118,25,118,27],[118,28,118,30],[119,0,119,2],[119,3,119,24],[119,25,119,27],[119,28,119,30],[117,0,117,2],[117,3,117,24],[117,25,117,27],[117,28,117,30],[126,0,126,2],[126,3,126,24],[126,25,126,27],[126,28,126,30],[127,0,127,2],[127,3,127,24],[127,25,127,27],[127,28,127,30],[124,0,124,2],[124,3,124,24],[124,25,124,27],[124,28,124,30],[125,0,125,2],[125,3,125,24],[125,25,125,27],[125,28,125,30],[122,0,122,2],[122,3,122,24],[122,25,122,27],[122,28,122,30],[123,0,123,2],[123,3,123,24],[123,25,123,27],[123,28,123,30],[145,0,145,2],[145,3,145,24],[145,25,145,27],[145,28,145,30],[143,0,143,2],[143,3,143,24],[143,25,143,27],[148,25,148,27],[148,28,148,30],[147,0,147,2],[147,3,147,24],[147,25,147,27],[147,28,147,30],[128,0,128,2],[128,3,128,24],[128,25,128,27],[128,28,128,30],[140,0,140,2],[141,0,141,2],[142,0,142,2],[140,3,140,24],[143,28,143,30],[142,3,142,24],[142,25,142,27],[148,0,148,2],[148,3,148,24],[141,3,141,24],[140,25,140,27],[141,25,141,27],[140,28,140,30],[144,0,144,2],[144,3,144,24],[149,0,149,2],[149,3,149,24],[149,28,149,30],[154,28,154,30],[154,3,154,24],[154,25,154,27],[154,0,154,2],[157,0,157,2],[150,0,150,2],[150,3,150,24],[150,28,150,30],[151,28,151,30],[151,3,151,24],[151,0,151,2],[153,3,153,24],[153,25,153,27],[153,28,153,30],[153,0,153,2],[152,3,152,24],[157,25,157,27],[157,28,157,30],[156,28,156,30],[150,25,150,27],[151,25,151,27],[149,25,149,27],[165,25,165,27],[165,28,165,30],[162,0,162,2],[155,0,155,2],[155,3,155,24],[155,25,155,27],[155,28,155,30],[161,28,161,30],[163,3,163,24],[164,3,164,24],[158,25,158,27],[159,25,159,27],[161,25,161,27],[162,25,162,27],[163,25,163,27],[164,25,164,27],[159,3,159,24],[161,3,161,24],[162,3,162,24],[157,3,157,24],[160,0,160,2],[160,3,160,24],[173,0,173,2],[173,3,173,24],[169,0,169,2],[173,25,173,27],[173,28,173,30],[170,0,170,2],[160,25,160,27],[160,28,160,30],[158,0,158,2],[159,0,159,2],[161,0,161,2],[158,3,158,24],[163,0,163,2],[182,0,182,2],[164,0,164,2],[170,3,170,24],[170,25,170,27],[170,28,170,30],[171,25,171,27],[171,28,171,30],[176,0,176,2],[176,3,176,24],[176,25,176,27],[176,28,176,30],[171,0,171,2],[177,3,177,24],[177,25,177,27],[177,28,177,30],[174,0,174,2],[174,3,174,24],[165,0,165,2],[165,3,165,24],[168,0,168,2],[168,3,168,24],[168,25,168,27],[168,28,168,30],[169,3,169,24],[169,25,169,27],[169,28,169,30],[166,0,166,2],[166,3,166,24],[166,25,166,27],[166,28,166,30],[167,25,167,27],[167,28,167,30],[167,3,167,24],[172,0,172,2],[172,3,172,24],[172,25,172,27],[172,28,172,30],[167,0,167,2],[171,3,171,24],[182,3,182,24],[182,25,182,27],[182,28,182,30],[183,25,183,27],[183,28,183,30],[185,0,185,2],[181,0,181,2],[181,3,181,24],[181,25,181,27],[181,28,181,30],[178,0,178,2],[178,3,178,24],[178,25,178,27],[178,28,178,30],[179,25,179,27],[179,28,179,30],[174,25,174,27],[174,28,174,30],[175,0,175,2],[175,3,175,24],[175,25,175,27],[175,28,175,30],[180,0,180,2],[180,3,180,24],[180,25,180,27],[180,28,180,30],[183,0,183,2],[179,0,179,2],[177,0,177,2],[183,3,183,24],[179,3,179,24],[188,0,188,2],[188,3,188,24],[188,25,188,27],[188,28,188,30],[189,0,189,2],[189,3,189,24],[189,25,189,27],[189,28,189,30],[186,0,186,2],[186,3,186,24],[186,25,186,27],[186,28,186,30],[187,25,187,27],[187,28,187,30],[184,0,184,2],[184,3,184,24],[184,25,184,27],[184,28,184,30],[185,3,185,24],[185,25,185,27],[185,28,185,30],[187,3,187,24],[194,0,194,2],[194,3,194,24],[194,25,194,27],[194,28,194,30],[195,0,195,2],[195,3,195,24],[195,25,195,27],[195,28,195,30],[190,0,190,2],[190,3,190,24],[190,25,190,27],[190,28,190,30],[191,0,191,2],[191,3,191,24],[191,25,191,27],[191,28,191,30],[192,0,192,2],[193,0,193,2],[192,3,192,24],[193,3,193,24],[192,25,192,27],[193,25,193,27],[192,28,192,30],[193,28,193,30],[200,0,200,2],[200,3,200,24],[200,25,200,27],[200,28,200,30],[201,0,201,2],[201,3,201,24],[201,25,201,27],[201,28,201,30],[199,0,199,2],[199,3,199,24],[199,25,199,27],[199,28,199,30],[196,0,196,2],[196,3,196,24],[196,25,196,27],[196,28,196,30],[197,0,197,2],[197,3,197,24],[197,25,197,27],[197,28,197,30],[198,0,198,2],[198,3,198,24],[198,25,198,27],[198,28,198,30],[204,0,204,2],[204,3,204,24],[204,25,204,27],[204,28,204,30],[205,0,205,2],[205,3,205,24],[205,25,205,27],[205,28,205,30],[206,0,206,2],[206,3,206,24],[206,25,206,27],[206,28,206,30],[202,0,202,2],[202,3,202,24],[202,25,202,27],[202,28,202,30],[203,0,203,2],[203,3,203,24],[203,25,203,27],[203,28,203,30],[210,0,210,2],[210,3,210,24],[210,25,210,27],[210,28,210,30],[211,0,211,2],[211,3,211,24],[211,25,211,27],[211,28,211,30],[208,0,208,2],[208,3,208,24],[208,25,208,27],[208,28,208,30],[209,0,209,2],[209,3,209,24],[209,25,209,27],[209,28,209,30],[207,0,207,2],[207,3,207,24],[207,25,207,27],[207,28,207,30],[214,0,214,2],[214,3,214,24],[214,25,214,27],[214,28,214,30],[216,0,216,2],[215,3,215,24],[216,3,216,24],[215,25,215,27],[216,25,216,27],[215,28,215,30],[216,28,216,30],[215,0,215,2],[212,0,212,2],[212,3,212,24],[212,25,212,27],[212,28,212,30],[213,0,213,2],[213,3,213,24],[213,25,213,27],[213,28,213,30],[227,0,227,2],[227,3,227,24],[227,25,227,27],[227,28,227,30],[217,0,217,2],[217,3,217,24],[217,25,217,27],[217,28,217,30],[224,0,224,2],[224,3,224,24],[224,25,224,27],[224,28,224,30],[225,0,225,2],[225,3,225,24],[225,25,225,27],[225,28,225,30],[222,3,222,24],[222,25,222,27],[222,28,222,30],[223,0,223,2],[223,3,223,24],[223,25,223,27],[223,28,223,30],[138,3,138,24],[138,25,138,27],[138,28,138,30],[146,0,146,2],[146,3,146,24],[146,25,146,27],[146,28,146,30],[234,0,234,2],[234,3,234,24],[234,25,234,27],[234,28,234,30],[232,0,232,2],[232,3,232,24],[232,25,232,27],[232,28,232,30],[230,0,230,2],[230,3,230,24],[230,25,230,27],[230,28,230,30],[231,0,231,2],[231,3,231,24],[231,25,231,27],[231,28,231,30],[228,28,228,30],[229,0,229,2],[229,3,229,24],[229,25,229,27],[229,28,229,30],[226,0,226,2],[226,3,226,24],[226,25,226,27],[226,28,226,30],[238,0,238,2],[238,3,238,24],[238,25,238,27],[238,28,238,30],[239,0,239,2],[239,3,239,24],[239,25,239,27],[239,28,239,30],[240,0,240,2],[240,3,240,24],[240,25,240,27],[240,28,240,30],[235,0,235,2],[235,3,235,24],[235,25,235,27],[235,28,235,30],[236,0,236,2],[236,3,236,24],[236,25,236,27],[236,28,236,30],[237,0,237,2],[237,3,237,24],[237,25,237,27],[237,28,237,30],[246,0,246,2],[246,3,246,24],[246,25,246,27],[246,28,246,30],[247,0,247,2],[247,3,247,24],[247,25,247,27],[247,28,247,30],[248,0,248,2],[248,3,248,24],[248,25,248,27],[248,28,248,30],[244,0,244,2],[244,3,244,24],[244,25,244,27],[244,28,244,30],[241,0,241,2],[241,3,241,24],[241,25,241,27],[241,28,241,30],[242,0,242,2],[242,3,242,24],[242,25,242,27],[242,28,242,30],[243,0,243,2],[243,3,243,24],[243,25,243,27],[243,28,243,30],[252,0,252,2],[252,3,252,24],[252,25,252,27],[252,28,252,30],[253,0,253,2],[253,3,253,24],[253,25,253,27],[253,28,253,30],[254,0,254,2],[254,3,254,24],[254,25,254,27],[254,28,254,30],[249,0,249,2],[249,3,249,24],[249,25,249,27],[249,28,249,30],[250,0,250,2],[250,3,250,24],[250,25,250,27],[250,28,250,30],[251,0,251,2],[251,3,251,24],[251,25,251,27],[251,28,251,30],[258,0,258,2],[258,3,258,24],[258,25,258,27],[258,28,258,30],[259,0,259,2],[259,3,259,24],[259,25,259,27],[259,28,259,30],[260,0,260,2],[260,3,260,24],[260,25,260,27],[260,28,260,30],[255,0,255,2],[255,3,255,24],[255,25,255,27],[255,28,255,30],[256,0,256,2]],"merged_total":1135,"flags":["merged_cut"]}
["Сведения о результатах проведенных контрольных мероприятий"]
[{"$f":"'1. Начальные данные'!L18","v":42916},null,null,null,null,null,null,null,null,null,null,null,null,null,null,{"$f":"'1. Начальные данные'!M18","v":2017}]
[{"$f":"'1. Начальные данные'!L17","v":"ФУ Администрации МР Нуримановский район РБ"}]
["Количество подведомственных учреждений, всего:",null,null,null,null,null,null,null,null,null,null,null,null,null,null,null,null,null,null,null,null,{"$f":"V5+V6+V7","v":0}]
[" в том числе: автономные учреждения:"]
[" казенные учреждения:"]
[" бюджетные учреждения:"]
["Количество организаций, находящихся в ведении министерств, ведомств, ФУ:"]
["Наименование службы (сектора, отдела) на который возложены функции по проведению "]
["контрольных мероприятий: "]
[]
["Количество штатных единиц, занятых в службе:"]
[]
["№№",null,null,"Показатели",null,null,null,null,null,null,null,null,null,null,null,null,null,null,null,null,null,null,null,null,null,"Код\nстроки",null,null,"Сумма\nвсего"]
[1,null,null,2,null,null,null,null,null,null,null,null,null,null,null,null,null,null,null,null,null,null,null,null,null,3,null,null,4]
["I.",null,null,"Проведено ревизий и проверок (единиц), в том числе:",null,null,null,null,null,null,null,null,null,null,null,null,null,null,null,null,null,null,null,null,null,1,null,null,3]
[null,null,null,"ревизий",null,null,null,null,null,null,null,null,null,null,null,null,null,null,null,null,null,null,null,null,null,"1.1",null,null,1]
[null,null,null,"проверок",null,null,null,null,null,null,null,null,null,null,null,null,null,null,null,null,null,null,null,null,null,"1.2",null,null,2]
[null,null,null,"по плану (из строки 1) ",null,null,null,null,null,null,null,null,null,null,null,null,null,null,null,null,null,null,null,null,null,2,null,null,1]
[null,null,null,"по поручениям администрации республики (из строки 1) ",null,null,null,null,null,null,null,null,null,null,null,null,null,null,null,null,null,null,null,null,null,3]
[null,null,null,"по обращениям органов местного самоуправлении (из строки 1) ",null,null,null,null,null,null,null,null,null,null,null,null,null,null,null,null,null,null,null,null,null,4,null,null,2]
[null,null,null,"по обращениям органов прокуратуры и МВД (из строки 1)",null,null,null,null,null,null,null,null,null,null,null,null,null,null,null,null,null,null,null,null,null,5]
[null,null,null,"по обращениям физических лиц (из строки 1)",null,null,null,null,null,null,null,null,null,null,null,null,null,null,null,null,null,null,null,null,null,6]
[null,null,null,"по обращениям прочих юридических лиц (из строки 1)",null,null,null,null,null,null,null,null,null,null,null,null,null,null,null,null,null,null,null,null,null,7]
[null,null,null,"Проведено встречных проверок (единиц)",null,null,null,null,null,null,null,null,null,null,null,null,null,null,null,null,null,null,null,null,null,8]
[null,null,null,"Ревизии и проверки проведены в учреждениях, (единиц):"]
[null,null,null,"состоящих на бюджете Республики Башкортостан ",null,null,null,null,null,null,null,null,null,null,null,null,null,null,null,null,null,null,null,null,null,9]
[null,null,null,"состоящих на муниципальном бюджете",null,null,null,null,null,null,null,null,null,null,null,null,null,null,null,null,null,null,null,null,null,10,null,null,2]
[null,null,null,"являющихся государственным унитарным предприятием",null,null,null,null,null,null,null,null,null,null,null,null,null,null,null,null,null,null,null,null,null,11]
[null,null,null,"являющихся муниципальным унитарным предприятием",null,null,null,null,null,null,null,null,null,null,null,null,null,null,null,null,null,null,null,null,null,12,null,null,1]
[null,null,null,"прочие организации",null,null,null,null,null,null,null,null,null,null,null,null,null,null,null,null,null,null,null,null,null,13]
[null,null,null,"Количество проведенных инвентаризаций ТМЦ, кассы (денежных средств и ценных бумаг и т.п.)",null,null,null,null,null,null,null,null,null,null,null,null,null,null,null,null,null,null,null,null,null,14,null,null,4]
["II.",null,null,"Сведения о выявленных ревизиями (проверками) финансовых нарушениях "]
[null,null,null,"Количество ревизий и проверок, которыми выявлены финансовые нарушения – всего: (единиц)",null,null,null,null,null,null,null,null,null,null,null,null,null,null,null,null,null,null,null,null,null,15]
[null,null,null,"в использовании средств бюджета Республики Башкортостан ",null,null,null,null,null,null,null,null,null,null,null,null,null,null,null,null,null,null,null,null,null,"15/1"]
[null,null,null,"в использовании средств бюджета муниципального образования",null,null,null,null,null,null,null,null,null,null,null,null,null,null,null,null,null,null,null,null,null,"15/2",null,null,2]
[null,null,null,"в использовании средств, полученных от оказания платных услуг и\nосуществления иной приносящей доход деятельности ",null,null,null,null,null,null,null,null,null,null,null,null,null,null,null,null,null,null,null,null,null,"15/3"]
[null,null,null,"в использовании прочих средств",null,null,null,null,null,null,null,null,null,null,null,null,null,null,null,null,null,null,null,null,null,"15/4"]
["1.",null,null,"Сумма финансовых нарушений, в том числе:",null,null,null,null,null,null,null,null,null,null,null,null,null,null,null,null,null,null,null,null,null,16,null,null,{"$f":"'3. Объяснительная'!$F$8","v":2236.3000000000002},null,null,null,{"$f":"IF(AC39>1000000,\"обратите внимание: суммы нарушений в третьей вкладке 'Объяснительная' указываются в тыс.рублей\",\"\")","v":""}]
[null,null,null,"в использовании средств бюджета Республики Башкортостан ",null,null,null,null,null,null,null,null,null,null,null,null,null,null,null,null,null,null,null,null,null,"16/1",null,null,{"$f":"'3. Объяснительная'!K8","v":0}]
[null,null,null,"в использовании средств бюджета муниципального образования ",null,null,null,null,null,null,null,null,null,null,null,null,null,null,null,null,null,null,null,null,null,"16/2",null,null,{"$f":"'3. Объяснительная'!P8","v":2236.3000000000002}]
[null,null,null,"в использовании средств, полученных от оказания платных услуг и\nосуществления иной приносящей доход деятельности ",null,null,null,null,null,null,null,null,null,null,null,null,null,null,null,null,null,null,null,null,null,"16/3",null,null,{"$f":"'3. Объяснительная'!U8","v":0}]
[null,null,null,"в использовании прочих средств",null,null,null,null,null,null,null,null,null,null,null,null,null,null,null,null,null,null,null,null,null,"16/4",null,null,{"$f":"'3. Объяснительная'!Z8","v":0}]
["1.1.",null,null,"Нецелевое использование средств (из строки 16), в том числе:",null,null,null,null,null,null,null,null,null,null,null,null,null,null,null,null,null,null,null,null,null,17,null,null,{"$f":"'3. Объяснительная'!F9","v":0}]
[null,null,null,"средств бюджета Республики Башкортостан ",null,null,null,null,null,null,null,null,null,null,null,null,null,null,null,null,null,null,null,null,null,"17/1",null,null,{"$f":"'3. Объяснительная'!K9","v":0}]
[null,null,null,"средств бюджета муниципального образования ",null,null,null,null,null,null,null,null,null,null,null,null,null,null,null,null,null,null,null,null,null,"17/2",null,null,{"$f":"'3. Объяснительная'!P9","v":0}]
[null,null,null,"в использовании средств, полученных от оказания платных услуг и\nосуществления иной приносящей доход деятельности ",null,null,null,null,null,null,null,null,null,null,null,null,null,null,null,null,null,null,null,null,null,"17/3",null,null,{"$f":"'3. Объяснительная'!U9","v":0}]
[null,null,null,"в использовании прочих средств",null,null,null,null,null,null,null,null,null,null,null,null,null,null,null,null,null,null,null,null,null,"17/4",null,null,{"$f":"'3. Объяснительная'!Z9","v":0}]
["1.2.",null,null,"Неэффективное использование материальных ресурсов и денежных средств (из строки 16), в том числе:",null,null,null,null,null,null,null,null,null,null,null,null,null,null,null,null,null,null,null,null,null,18,null,null,{"$f":"'3. Объяснительная'!F23","v":46.3}]
[null,null,null,"средств бюджета Республики Башкортостан ",null,null,null,null,null,null,null,null,null,null,null,null,null,null,null,null,null,null,null,null,null,"18/1",null,null,{"$f":"'3. Объяснительная'!K23","v":0}]
[null,null,null,"средств бюджета муниципального образования ",null,null,null,null,null,null,null,null,null,null,null,null,null,null,null,null,null,null,null,null,null,"18/2",null,null,{"$f":"'3. Объяснительная'!P23","v":46.3}]
[null,null,null,"в использовании средств, полученных от оказания платных услуг и\nосуществления иной приносящей доход деятельности ",null,null,null,null,null,null,null,null,null,null,null,null,null,null,null,null,null,null,null,null,null,"18/3",null,null,{"$f":"'3. Объяснительная'!U23","v":0}]
[null,null,null,"в использовании прочих средств",null,null,null,null,null,null,null,null,null,null,null,null,null,null,null,null,null,null,null,null,null,"18/4",null,null,{"$f":"'3. Объяснительная'!Z23","v":0}]
["1.3.",null,null,"Недостача денежных средств (из строки 16), в том числе:",null,null,null,null,null,null,null,null,null,null,null,null,null,null,null,null,null,null,null,null,null,19,null,null,{"$f":"'3. Объяснительная'!F106","v":0}]
[null,null,null,"средств бюджета Республики Башкортостан ",null,null,null,null,null,null,null,null,null,null,null,null,null,null,null,null,null,null,null,null,null,"19/1",null,null,{"$f":"'3. Объяснительная'!K106","v":0}]
[null,null,null,"средств бюджета муниципального образования ",null,null,null,null,null,null,null,null,null,null,null,null,null,null,null,null,null,null,null,null,null,"19/2",null,null,{"$f":"'3. Объяснительная'!P106","v":0}]
[null,null,null,"средств, полученных от оказания платных услуг и осуществления иной приносящей доход деятельности",null,null,null,null,null,null,null,null,null,null,null,null,null,null,null,null,null,null,null,null,null,"19/3",null,null,{"$f":"'3. Объяснительная'!U106","v":0}]
[null,null,null,"прочих средств",null,null,null,null,null,null,null,null,null,null,null,null,null,null,null,null,null,null,null,null,null,"19/4",null,null,{"$f":"'3. Объяснительная'!Z106","v":0}]
["1.4.",null,null,"Недостача материальных ресурсов (из строки 16): в том числе",null,null,null,null,null,null,null,null,null,null,null,null,null,null,null,null,null,null,null,null,null,20,null,null,{"$f":"'3. Объяснительная'!F108","v":0}]
[null,null,null,"приобретенных за счет средств бюджета Республики Башкортостан ",null,null,null,null,null,null,null,null,null,null,null,null,null,null,null,null,null,null,null,null,null,"20/1",null,null,{"$f":"'3. Объяснительная'!K108","v":0}]
[null,null,null,"приобретенных за счет средств бюджета муниципального образования ",null,null,null,null,null,null,null,null,null,null,null,null,null,null,null,null,null,null,null,null,null,"20/2",null,null,{"$f":"'3. Объяснительная'!P108","v":0}]
[null,null,null,"приобретенных за счет средств, полученных от оказания платных услуг и осуществления иной приносящей доход деятельности",null,null,null,null,null,null,null,null,null,null,null,null,null,null,null,null,null,null,null,null,null,"20/3",null,null,{"$f":"'3. Объяснительная'!U108","v":0}]
[null,null,null,"приобретенных за счет прочих средств",null,null,null,null,null,null,null,null,null,null,null,null,null,null,null,null,null,null,null,null,null,"20/4",null,null,{"$f":"'3. Объяснительная'!Z108","v":0}]
["1.5.",null,null,"Недопоступление платежей в бюджет (из строки 16), в том числе:",null,null,null,null,null,null,null,null,null,null,null,null,null,null,null,null,null,null,null,null,null,21,null,null,{"$f":"'3. Объяснительная'!F112","v":0}]
["1.5.1.",null,null,"Налоговые платежи (из строки 21), из них:",null,null,null,null,null,null,null,null,null,null,null,null,null,null,null,null,null,null,null,null,null,22,null,null,{"$f":"'3. Объяснительная'!F134","v":0}]
[null,null,null,"в бюджет Республики Башкортостан",null,null,null,null,null,null,null,null,null,null,null,null,null,null,null,null,null,null,null,null,null,"22/1",null,null,{"$f":"'3. Объяснительная'!K134","v":0}]
[null,null,null,"в бюджет муниципального образования ",null,null,null,null,null,null,null,null,null,null,null,null,null,null,null,null,null,null,null,null,null,"22/2",null,null,{"$f":"'3. Объяснительная'!P134","v":0}]
["1.5.2.",null,null,"Неналоговые платежи (из строки 21), из них:",null,null,null,null,null,null,null,null,null,null,null,null,null,null,null,null,null,null,null,null,null,23,null,null,{"$f":"'3. Объяснительная'!F137","v":0}]
[null,null,null,"в бюджет Республики Башкортостан",null,null,null,null,null,null,null,null,null,null,null,null,null,null,null,null,null,null,null,null,null,"23/1",null,null,{"$f":"'3. Объяснительная'!K137","v":0}]
[null,null,null,"в бюджет муниципального образования ",null,null,null,null,null,null,null,null,null,null,null,null,null,null,null,null,null,null,null,null,null,"23/2",null,null,{"$f":"'3. Объяснительная'!P137","v":0}]
["1.6.",null,null,"Излишки материальных ценностей и денежных средств (из строки 16), в том числе:",null,null,null,null,null,null,null,null,null,null,null,null,null,null,null,null,null,null,null,null,null,24,null,null,{"$f":"'3. Объяснительная'!F154","v":2188}]
[null,null,null,"средств бюджета Республики Башкортостан ",null,null,null,null,null,null,null,null,null,null,null,null,null,null,null,null,null,null,null,null,null,"24/1",null,null,{"$f":"'3. Объяснительная'!K154","v":0}]
[null,null,null,"средств бюджета муниципального образования ",null,null,null,null,null,null,null,null,null,null,null,null,null,null,null,null,null,null,null,null,null,"24/2",null,null,{"$f":"'3. Объяснительная'!P154","v":2188}]
[null,null,null,"средств, полученных от оказания платных услуг и осуществления иной приносящей доход деятельности",null,null,null,null,null,null,null,null,null,null,null,null,null,null,null,null,null,null,null,null,null,"24/3",null,null,{"$f":"'3. Объяснительная'!U154","v":0}]
[null,null,null,"прочих средств",null,null,null,null,null,null,null,null,null,null,null,null,null,null,null,null,null,null,null,null,null,"24/4",null,null,{"$f":"'3. Объяснительная'!Z154","v":0}]
["1.7.",null,null,"Неправомерное расходование денежных средств и материальных ресурсов (из строки 16), в том числе:",null,null,null,null,null,null,null,null,null,null,null,null,null,null,null,null,null,null,null,null,null,25,null,null,{"$f":"'3. Объяснительная'!F157","v":2}]
[null,null,null,"средств бюджета Республики Башкортостан ",null,null,null,null,null,null,null,null,null,null,null,null,null,null,null,null,null,null,null,null,null,"25/1",null,null,{"$f":"'3. Объяснительная'!K157","v":0}]
[null,null,null,"средств бюджета муниципального образования ",null,null,null,null,null,null,null,null,null,null,null,null,null,null,null,null,null,null,null,null,null,"25/2",null,null,{"$f":"'3. Объяснительная'!P157","v":2}]
[null,null,null,"средств, полученных от оказания платных услуг и осуществления иной приносящей доход деятельности ",null,null,null,null,null,null,null,null,null,null,null,null,null,null,null,null,null,null,null,null,null,"25/3",null,null,{"$f":"'3. Объяснительная'!U157","v":0}]
[null,null,null,"прочих средств",null,null,null,null,null,null,null,null,null,null,null,null,null,null,null,null,null,null,null,null,null,"25/4",null,null,{"$f":"'3. Объяснительная'!Z157","v":0}]
["1.8.",null,null,"Другие финансовые нарушения (из строки 16), в том числе:",null,null,null,null,null,null,null,null,null,null,null,null,null,null,null,null,null,null,null,null,null,26,null,null,{"$f":"'3. Объяснительная'!F247","v":0}]
[null,null,null,"средств бюджета Республики Башкортостан ",null,null,null,null,null,null,null,null,null,null,null,null,null,null,null,null,null,null,null,null,null,"26/1",null,null,{"$f":"'3. Объяснительная'!K247","v":0}]
[null,null,null,"средств бюджета муниципального образования ",null,null,null,null,null,null,null,null,null,null,null,null,null,null,null,null,null,null,null,null,null,"26/2",null,null,{"$f":"'3. Объяснительная'!P247","v":0}]
[null,null,null,"средств, полученных от оказания платных услуг и осуществления иной приносящей доход деятельности",null,null,null,null,null,null,null,null,null,null,null,null,null,null,null,null,null,null,null,null,null,"26/3",null,null,{"$f":"'3. Объяснительная'!U247","v":0}]
[null,null,null,"прочих средств",null,null,null,null,null,null,null,null,null,null,null,null,null,null,null,null,null,null,null,null,null,"26/4",null,null,{"$f":"'3. Объяснительная'!Z247","v":0}]
["III.",null,null,"Сведения о мерах, принятых по реализации материалов ревизий (проверок)"]
["1.",null,null,"Направлено представлений, предписаний (писем, служебных записок):",null,null,null,null,null,null,null,null,null,null,null,null,null,null,null,null,null,null,null,null,null,27,null,null,{"$f":"SUM(AC88:AE93)","v":5}]
[null,null,null,"в МФ РБ (единиц)",null,null,null,null,null,null,null,null,null,null,null,null,null,null,null,null,null,null,null,null,null,"27/1"]
[null,null,null,"в ФУ администраций муниципальных районов и городских округов (единиц)",null,null,null,null,null,null,null,null,null,null,null,null,null,null,null,null,null,null,null,null,null,"27/2"]
[null,null,null,"в администрацию города, района (единиц)",null,null,null,null,null,null,null,null,null,null,null,null,null,null,null,null,null,null,null,null,null,"27/3",null,null,2]
[null,null,null,"руководителю организации и учреждения (единиц) ",null,null,null,null,null,null,null,null,null,null,null,null,null,null,null,null,null,null,null,null,null,"27/4",null,null,3]
[null,null,null,"в вышестоящую организацию (единиц)",null,null,null,null,null,null,null,null,null,null,null,null,null,null,null,null,null,null,null,null,null,"27/5"]
[null,null,null,"прочим учреждениям и организациям (единиц) ",null,null,null,null,null,null,null,null,null,null,null,null,null,null,null,null,null,null,null,null,null,"27/6"]
[null,null,null,"На сумму выявленных финансовых нарушений в использовании средств ",null,null,null,null,null,null,null,null,null,null,null,null,null,null,null,null,null,null,null,null,null,28,null,null,{"$f":"SUM(AC95:AE98)","v":2236.3000000000002}]
[null,null,null,"бюджета Республики Башкортостан",null,null,null,null,null,null,null,null,null,null,null,null,null,null,null,null,null,null,null,null,null,"28/1"]
[null,null,null,"бюджета муниципального образования ",null,null,null,null,null,null,null,null,null,null,null,null,null,null,null,null,null,null,null,null,null,"28/2",null,null,2236.3000000000002]
[null,null,null,"полученных от оказания платных услуг и осуществления иной приносящей доход деятельности",null,null,null,null,null,null,null,null,null,null,null,null,null,null,null,null,null,null,null,null,null,"28/3"]
[null,null,null,"прочих",null,null,null,null,null,null,null,null,null,null,null,null,null,null,null,null,null,null,null,null,null,"28/4"]
["2.",null,null,"Приняты меры по представлениям (предписаниям) ",null,null,null,null,null,null,null,null,null,null,null,null,null,null,null,null,null,null,null,null,null,29,null,null,{"$f":"SUM(AC100:AE105)","v":3}]
[null,null,null,"МФ РБ (единиц)",null,null,null,null,null,null,null,null,null,null,null,null,null,null,null,null,null,null,null,null,null,"29/1"]
[null,null,null,"ФУ администраций муниципальных районов и городских округов (единиц) ",null,null,null,null,null,null,null,null,null,null,null,null,null,null,null,null,null,null,null,null,null,"29/2"]
[null,null,null,"администрацией города, района (единиц)",null,null,null,null,null,null,null,null,null,null,null,null,null,null,null,null,null,null,null,null,null,"29/3"]
[null,null,null,"руководителем организации и учреждения (единиц) ",null,null,null,null,null,null,null,null,null,null,null,null,null,null,null,null,null,null,null,null,null,"29/4",null,null,3]
[null,null,null,"вышестоящей организацией (единиц)",null,null,null,null,null,null,null,null,null,null,null,null,null,null,null,null,null,null,null,null,null,"29/5"]
[null,null,null,"прочими учреждениями и организациями (единиц) ",null,null,null,null,null,null,null,null,null,null,null,null,null,null,null,null,null,null,null,null,null,"29/6"]
["2.1.",null,null,"На сумму выявленных финансовых нарушений в использовании средств ",null,null,null,null,null,null,null,null,null,null,null,null,null,null,null,null,null,null,null,null,null,30,null,null,{"$f":"SUM(AC107:AE110)","v":2236}]
[null,null,null,"бюджета Республики Башкортостан",null,null,null,null,null,null,null,null,null,null,null,null,null,null,null,null,null,null,null,null,null,"30/1"]
[null,null,null,"бюджета муниципального образования ",null,null,null,null,null,null,null,null,null,null,null,null,null,null,null,null,null,null,null,null,null,"30/2",null,null,2236]
[null,null,null,"полученных от оказания платных услуг и осуществления иной приносящей доход деятельности",null,null,null,null,null,null,null,null,null,null,null,null,null,null,null,null,null,null,null,null,null,"30/3"]
[null,null,null,"прочих",null,null,null,null,null,null,null,null,null,null,null,null,null,null,null,null,null,null,null,null,null,"30/4"]
["3.",null,null,"Передано органам прокуратуры и правоохранительным органам материалов ревизий (проверок) – всего: (единиц)",null,null,null,null,null,null,null,null,null,null,null,null,null,null,null,null,null,null,null,null,null,31]
[null,null,null,"Наименование правоохранительных органов, которым переданы материалы ревизии (проверки) ",null,null,null,null,null,null,null,null,null,null,null,null,null,null,null,null,null,null,null,null,null,"31/1"]
[null,null,null,"Дата передачи (дата сопроводительного письма) ",null,null,null,null,null,null,null,null,null,null,null,null,null,null,null,null,null,null,null,null,null,"31/2"]
[null,null,null,"Номер сопроводительного письма, из них:",null,null,null,null,null,null,null,null,null,null,null,null,null,null,null,null,null,null,null,null,null,"31/3"]
[null,null,null,"проведенных по обращениям органов прокуратуры и правоохранительных органов (из строки 31)",null,null,null,null,null,null,null,null,null,null,null,null,null,null,null,null,null,null,null,null,null,32]
[null,null,null,"проведенных по прочим основаниям (из строки 31) ",null,null,null,null,null,null,null,null,null,null,null,null,null,null,null,null,null,null,null,null,null,33]
["3.1.",null,null,"На сумму выявленных финансовых нарушений, в том числе:",null,null,null,null,null,null,null,null,null,null,null,null,null,null,null,null,null,null,null,null,null,34,null,null,{"$f":"SUM(AC118:AE121)","v":0}]
[null,null,null,"в использовании средств бюджета Республики Башкортостан",null,null,null,null,null,null,null,null,null,null,null,null,null,null,null,null,null,null,null,null,null,"34/1"]
[null,null,null,"в использовании средств муниципального образования",null,null,null,null,null,null,null,null,null,null,null,null,null,null,null,null,null,null,null,null,null,"34/2"]
[null,null,null,"в использовании средств, полученных от оказания платных услуг и осуществления иной приносящей доход деятельности",null,null,null,null,null,null,null,null,null,null,null,null,null,null,null,null,null,null,null,null,null,"34/3"]
[null,null,null,"в использовании прочих средств",null,null,null,null,null,null,null,null,null,null,null,null,null,null,null,null,null,null,null,null,null,"34/4"]
["4.",null,null,"Количество возбужденных уголовных дел – всего (единиц), в том числе:",null,null,null,null,null,null,null,null,null,null,null,null,null,null,null,null,null,null,null,null,null,35,null,null,{"$f":"SUM(AC123:AE124)","v":0}]
[null,null,null,"по материалам ревизий и проверок, проведенных по обращению органов прокуратуры и правоохранительных органов (из строки 35) ",null,null,null,null,null,null,null,null,null,null,null,null,null,null,null,null,null,null,null,null,null,"35/1"]
[null,null,null,"по материалам ревизий и проверок, переданных по инициативе органов, осуществляющих финансовый контроль (из строки 35)",null,null,null,null,null,null,null,null,null,null,null,null,null,null,null,null,null,null,null,null,null,"35/2"]
["4.1",null,null,"На сумму выявленных финансовых нарушений, в том числе:",null,null,null,null,null,null,null,null,null,null,null,null,null,null,null,null,null,null,null,null,null,36,null,null,{"$f":"SUM(AC126:AE129)","v":0}]
[null,null,null,"в использовании средств бюджета Республики Башкортостан",null,null,null,null,null,null,null,null,null,null,null,null,null,null,null,null,null,null,null,null,null,"36/1"]
[null,null,null,"в использовании средств муниципального образования",null,null,null,null,null,null,null,null,null,null,null,null,null,null,null,null,null,null,null,null,null,"36/2"]
[null,null,null,"в использовании средств, полученных от оказания платных услуг и осуществления иной приносящей доход деятельности",null,null,null,null,null,null,null,null,null,null,null,null,null,null,null,null,null,null,null,null,null,"36/3"]
[null,null,null,"в использовании прочих средств",null,null,null,null,null,null,null,null,null,null,null,null,null,null,null,null,null,null,null,null,null,"36/4"]
["5.",null,null,"Количество отказов в возбуждении уголовных дел органами прокуратуры и правоохранительными органами – всего (единиц), в том числе:",null,null,null,null,null,null,null,null,null,null,null,null,null,null,null,null,null,null,null,null,null,37,null,null,{"$f":"SUM(AC131:AE132)","v":0}]
[null,null,null,"по материалам ревизий и проверок, проведенных по обращению органов прокуратуры и правоохранительных органов (из строки 37) ",null,null,null,null,null,null,null,null,null,null,null,null,null,null,null,null,null,null,null,null,null,"37/1"]
[null,null,null,"по материалам ревизий и проверок, переданных по инициативе органов, осуществляющих финансовый контроль (из строки 37)",null,null,null,null,null,null,null,null,null,null,null,null,null,null,null,null,null,null,null,null,null,"37/2"]
["5.1",null,null,"На сумму финансовых нарушений, в том числе:",null,null,null,null,null,null,null,null,null,null,null,null,null,null,null,null,null,null,null,null,null,38,null,null,{"$f":"SUM(AC134:AE137)","v":0}]
[null,null,null,"в использовании средств бюджета Республики Башкортостан",null,null,null,null,null,null,null,null,null,null,null,null,null,null,null,null,null,null,null,null,null,"38/1"]
[null,null,null,"в использовании средств муниципального образования",null,null,null,null,null,null,null,null,null,null,null,null,null,null,null,null,null,null,null,null,null,"38/2"]
[null,null,null,"в использовании средств, полученных от оказания платных услуг и осуществления иной приносящей доход деятельности",null,null,null,null,null,null,null,null,null,null,null,null,null,null,null,null,null,null,null,null,null,"38/3"]
[null,null,null,"в использовании прочих средств",null,null,null,null,null,null,null,null,null,null,null,null,null,null,null,null,null,null,null,null,null,"38/4"]
["IV.",null,null,"Сведения по протоколам об административных правонарушениях"]
["1.",null,null,"Количество протоколов об административных правонарушениях, составленных должностными лицами органов, осуществляющих финансовый контроль (единиц), в том числе:",null,null,null,null,null,null,null,null,null,null,null,null,null,null,null,null,null,null,null,null,null,39,null,null,{"$f":"SUM(AC140:AE143)","v":0}]
[null,null,null,"за нецелевое использование средств бюджета Республики Башкортостан (единиц)",null,null,null,null,null,null,null,null,null,null,null,null,null,null,null,null,null,null,null,null,null,"39/1"]
[null,null,null,"за нецелевое использование средств бюджета муниципального образования (единиц)",null,null,null,null,null,null,null,null,null,null,null,null,null,null,null,null,null,null,null,null,null,"39/2"]
[null,null,null,"за нарушение сроков возврата средств бюджета РБ и сроков перечисления платы за пользование средствами бюджета РБ (единиц)",null,null,null,null,null,null,null,null,null,null,null,null,null,null,null,null,null,null,null,null,null,"39/3"]
[null,null,null,"за нарушение сроков возврата средств бюджета муниципального образования и сроков перечисления платы за пользование средствами бюджета муниципального образования (единиц)",null,null,null,null,null,null,null,null,null,null,null,null,null,null,null,null,null,null,null,null,null,"39/4"]
["1.1",null,null,"На сумму нецелевого использования бюджетных средств, в том числе:",null,null,null,null,null,null,null,null,null,null,null,null,null,null,null,null,null,null,null,null,null,40,null,null,{"$f":"SUM(AC145:AE146)","v":0}]
[null,null,null,"средств бюджета Республики Башкортостан (из строки 40)",null,null,null,null,null,null,null,null,null,null,null,null,null,null,null,null,null,null,null,null,null,"40/1"]
[null,null,null,"средств бюджета муниципального образования (из строки 40) ",null,null,null,null,null,null,null,null,null,null,null,null,null,null,null,null,null,null,null,null,null,"40/2"]
["1.2",null,null,"На сумму бюджетных средств, невозвращенных в срок и сумму платы за пользование бюджетными средствами, не перечисленной в срок, в том числе:",null,null,null,null,null,null,null,null,null,null,null,null,null,null,null,null,null,null,null,null,null,41,null,null,{"$f":"SUM(AC148:AE149)","v":0}]
[null,null,null,"средств бюджета Республики Башкортостан (из строки 41)",null,null,null,null,null,null,null,null,null,null,null,null,null,null,null,null,null,null,null,null,null,"41/1"]
[null,null,null,"средств бюджета муниципального образования (из строки 41) ",null,null,null,null,null,null,null,null,null,null,null,null,null,null,null,null,null,null,null,null,null,"41/2"]
["2.",null,null,"Количество протоколов об административных правонарушениях, по результатам рассмотрения которых наложен административный штраф (единиц), в том числе:",null,null,null,null,null,null,null,null,null,null,null,null,null,null,null,null,null,null,null,null,null,42,null,null,{"$f":"SUM(AC151:AE154)","v":0}]
[null,null,null,"за нецелевое использование средств бюджета РБ (единиц) ",null,null,null,null,null,null,null,null,null,null,null,null,null,null,null,null,null,null,null,null,null,"42/1"]
[null,null,null,"за нецелевое использование средств бюджета муниципального образования (единиц)",null,null,null,null,null,null,null,null,null,null,null,null,null,null,null,null,null,null,null,null,null,"42/2"]
[null,null,null,"за нарушение сроков возврата средств бюджета РБ и сроков перечисления платы за пользование средствами бюджета РБ (единиц) ",null,null,null,null,null,null,null,null,null,null,null,null,null,null,null,null,null,null,null,null,null,"42/3"]
[null,null,null,"за нарушение сроков возврата средств бюджета муниципального образования и сроков перечисления платы за пользование средствами бюджета муниципального образования (единиц)",null,null,null,null,null,null,null,null,null,null,null,null,null,null,null,null,null,null,null,null,null,"42/4"]
["3.",null,null,"Количество протоколов об административных правонарушениях, по которым дела об административных правонарушениях прекращены (единиц), в том числе:",null,null,null,null,null,null,null,null,null,null,null,null,null,null,null,null,null,null,null,null,null,43,null,null,{"$f":"SUM(AC156:AE159)","v":0}]
[null,null,null,"за нецелевое использование средств бюджета РБ (единиц)",null,null,null,null,null,null,null,null,null,null,null,null,null,null,null,null,null,null,null,null,null,"43/1"]
[null,null,null,"за нецелевое использование средств бюджета муниципального образования (единиц)",null,null,null,null,null,null,null,null,null,null,null,null,null,null,null,null,null,null,null,null,null,"43/2"]
[null,null,null,"за нарушение сроков возврата средств бюджета РБ и сроков перечисления платы за пользование средствами бюджета РБ (единиц)",null,null,null,null,null,null,null,null,null,null,null,null,null,null,null,null,null,null,null,null,null,"43/3"]
[null,null,null,"за нарушение сроков возврата средств бюджета муниципального образования и сроков перечисления платы за пользование средствами бюджета муниципального образования (единиц)",null,null,null,null,null,null,null,null,null,null,null,null,null,null,null,null,null,null,null,null,null,"43/4"]
["4.",null,null,"Количество взысканных штрафных санкций за нарушение бюджетного законодательства (единиц), в том числе:",null,null,null,null,null,null,null,null,null,null,null,null,null,null,null,null,null,null,null,null,null,44,null,null,{"$f":"SUM(AC161:AE164)","v":0}]
[null,null,null,"за нецелевое использование средств бюджета РБ (единиц) ",null,null,null,null,null,null,null,null,null,null,null,null,null,null,null,null,null,null,null,null,null,"44/1"]
[null,null,null,"за нецелевое использование средств бюджета муниципального образования (единиц)",null,null,null,null,null,null,null,null,null,null,null,null,null,null,null,null,null,null,null,null,null,"44/2"]
[null,null,null,"за нарушение сроков возврата средств бюджета РБ и сроков перечисления платы за пользование средствами бюджета Республики Башкортостан (единиц)",null,null,null,null,null,null,null,null,null,null,null,null,null,null,null,null,null,null,null,null,null,"44/3"]
[null,null,null,"за нарушение сроков возврата средств бюджета муниципального образования и сроков перечисления платы за пользование средствами бюджета муниципального образования (единиц)",null,null,null,null,null,null,null,null,null,null,null,null,null,null,null,null,null,null,null,null,null,"44/4"]
["5.",null,null,"Взыскано штрафов за нарушение бюджетного законодательства (в рублях), в том числе:",null,null,null,null,null,null,null,null,null,null,null,null,null,null,null,null,null,null,null,null,null,45,null,null,{"$f":"SUM(AC166:AE167)","v":0}]
[null,null,null,"в бюджет Республики Башкортостан (из строки 45)",null,null,null,null,null,null,null,null,null,null,null,null,null,null,null,null,null,null,null,null,null,"45/1"]
[null,null,null,"в бюджет муниципального образования (из строки 45) ",null,null,null,null,null,null,null,null,null,null,null,null,null,null,null,null,null,null,null,null,null,"45/2"]
["6.",null,null,"Количество материалов ревизий, направленных в другие органы для наложения административного взыскания – всего (единиц), в том числе:",null,null,null,null,null,null,null,null,null,null,null,null,null,null,null,null,null,null,null,null,null,46,null,null,{"$f":"SUM(AC169:AE171)","v":0}]
[null,null,null,"судебные органы (из строки 46)",null,null,null,null,null,null,null,null,null,null,null,null,null,null,null,null,null,null,null,null,null,"46/1"]
[null,null,null,"налоговые органы (из строки 46)",null,null,null,null,null,null,null,null,null,null,null,null,null,null,null,null,null,null,null,null,null,"46/2"]
[null,null,null,"прочие органы (из строки 46)",null,null,null,null,null,null,null,null,null,null,null,null,null,null,null,null,null,null,null,null,null,"46/3"]
["7.",null,null,"Количество наложенных административных взысканий – всего (единиц), в том числе:",null,null,null,null,null,null,null,null,null,null,null,null,null,null,null,null,null,null,null,null,null,47,null,null,{"$f":"SUM(AC173:AE175)","v":0}]
[null,null,null,"судебными органами (из строки 47)",null,null,null,null,null,null,null,null,null,null,null,null,null,null,null,null,null,null,null,null,null,"47/1"]
[null,null,null,"налоговыми органами (из строки 47)",null,null,null,null,null,null,null,null,null,null,null,null,null,null,null,null,null,null,null,null,null,"47/2"]
[null,null,null,"прочими органами (из строки 47)",null,null,null,null,null,null,null,null,null,null,null,null,null,null,null,null,null,null,null,null,null,"47/3"]
["8.",null,null,"Принято постановлений, решений или приказов органами государственной власти, местного самоуправления и проверяемыми учреждениями (единиц):",null,null,null,null,null,null,null,null,null,null,null,null,null,null,null,null,null,null,null,null,null,48]
[null,null,null,"должностное лицо, принявшее постановление, решение, приказ",null,null,null,null,null,null,null,null,null,null,null,null,null,null,null,null,null,null,null,null,null,"48/1"]
[null,null,null,"дата постановления, решения, приказа",null,null,null,null,null,null,null,null,null,null,null,null,null,null,null,null,null,null,null,null,null,"48/2"]
[null,null,null,"номер постановления, решения, приказа ",null,null,null,null,null,null,null,null,null,null,null,null,null,null,null,null,null,null,null,null,null,"48/3"]
["9.",null,null,"Число лиц, привлеченных к дисциплинарной ответственности – всего (чел.), в том числе:",null,null,null,null,null,null,null,null,null,null,null,null,null,null,null,null,null,null,null,null,null,49]
[null,null,null,"освобождено от занимаемой должности (человек) (из строки 49)",null,null,null,null,null,null,null,null,null,null,null,null,null,null,null,null,null,null,null,null,null,"49/1"]
[null,null,null,"объявлены выговоры, замечания, предупреждения (человек) (из строки 49)",null,null,null,null,null,null,null,null,null,null,null,null,null,null,null,null,null,null,null,null,null,"49/2"]
["10.",null,null,"Число лиц, привлеченных к материальной ответственности (чел)",null,null,null,null,null,null,null,null,null,null,null,null,null,null,null,null,null,null,null,null,null,50]
["V.",null,null,"Возмещено средств, использованных с нарушением законодательства, дополнительно поступило платежей и предотвращено потерь по результатам проведенных ревизий и проверок"]
["1.",null,null,"Сумма возмещенных финансовых нарушений, в том числе:",null,null,null,null,null,null,null,null,null,null,null,null,null,null,null,null,null,null,null,null,null,51,null,null,{"$f":"SUM(AC186:AE189)","v":2188}]
[null,null,null,"средств бюджета Республики Башкортостан ",null,null,null,null,null,null,null,null,null,null,null,null,null,null,null,null,null,null,null,null,null,"51/1",null,null,{"$f":"AC191+AC218","v":0}]
[null,null,null,"средств бюджета муниципального образования ",null,null,null,null,null,null,null,null,null,null,null,null,null,null,null,null,null,null,null,null,null,"51/2",null,null,{"$f":"AC200+AC219","v":2188}]
[null,null,null,"средств, полученных от оказания платных услуг и осуществления иной приносящей доход деятельности",null,null,null,null,null,null,null,null,null,null,null,null,null,null,null,null,null,null,null,null,null,"51/3",null,null,{"$f":"AC207","v":0}]
[null,null,null,"прочих средств",null,null,null,null,null,null,null,null,null,null,null,null,null,null,null,null,null,null,null,null,null,"51/4",null,null,{"$f":"AC212","v":0}]
["1.1.",null,null,"Восстановлено в добровольном порядке (из строки 51), в том числе:",null,null,null,null,null,null,null,null,null,null,null,null,null,null,null,null,null,null,null,null,null,52,null,null,{"$f":"SUM(AC191,AC200,AC207,AC212)","v":2188}]
["1.1.1",null,null,"средств бюджета Республики Башкортостан (из строки 52)",null,null,null,null,null,null,null,null,null,null,null,null,null,null,null,null,null,null,null,null,null,"52/1",null,null,{"$f":"AC192+AC195","v":0}]
[null,null,null,"в доход бюджета Республики Башкортостан (из строки 52/1)",null,null,null,null,null,null,null,null,null,null,null,null,null,null,null,null,null,null,null,null,null,"52/1/1",null,null,{"$f":"SUM(AC193:AE194)","v":0}]
[null,null,null,"на код ГАД - Минфин РБ (из строки 52/1/1) ",null,null,null,null,null,null,null,null,null,null,null,null,null,null,null,null,null,null,null,null,null,"52/1/1/1"]
[null,null,null,"на код ГАД - ГРБС (из строки 52/1/1)",null,null,null,null,null,null,null,null,null,null,null,null,null,null,null,null,null,null,null,null,null,"52/1/1/2"]
[null,null,null,"на счета и в кассу учреждения (из строки 52/1)",null,null,null,null,null,null,null,null,null,null,null,null,null,null,null,null,null,null,null,null,null,"52/1/2",null,null,{"$f":"SUM(AC196:AE199)","v":0}]
[null,null,null,"на лицевые счета учреждения (из строки 52/1/2)",null,null,null,null,null,null,null,null,null,null,null,null,null,null,null,null,null,null,null,null,null,"52/1/2/1"]
[null,null,null,"в кассу учреждения (из строки 52/1/2)",null,null,null,null,null,null,null,null,null,null,null,null,null,null,null,null,null,null,null,null,null,"52/1/2/2"]
[null,null,null,"В регистрах бухгалтерского учета учреждения (из строки 52/1/2)",null,null,null,null,null,null,null,null,null,null,null,null,null,null,null,null,null,null,null,null,null,"52/1/2/3"]
[null,null,null,"оприходованы излишки и неучтенные ценности, денежные средства (из строки 52/1/2)",null,null,null,null,null,null,null,null,null,null,null,null,null,null,null,null,null,null,null,null,null,"52/1/2/4"]
["1.1.2",null,null,"средств бюджета муниципального образования (из строки 52)",null,null,null,null,null,null,null,null,null,null,null,null,null,null,null,null,null,null,null,null,null,"52/2",null,null,{"$f":"SUM(AC201:AE202)","v":2188}]
[null,null,null,"в доход бюджета муниципального образования (из строки 52/2)",null,null,null,null,null,null,null,null,null,null,null,null,null,null,null,null,null,null,null,null,null,"52/2/1"]
[null,null,null,"на счета и в кассу учреждения (из строки 52/2)",null,null,null,null,null,null,null,null,null,null,null,null,null,null,null,null,null,null,null,null,null,"52/2/2",null,null,{"$f":"SUM(AC203:AE206)","v":2188}]
[null,null,null,"на лицевые счета учреждения (из строки 52/2/2)",null,null,null,null,null,null,null,null,null,null,null,null,null,null,null,null,null,null,null,null,null,"52/2/2/1"]
[null,null,null,"в кассу учреждения (из строки 52/2/2)",null,null,null,null,null,null,null,null,null,null,null,null,null,null,null,null,null,null,null,null,null,"52/2/2/2"]
[null,null,null,"в регистрах бухгалтерского учета учреждения (из строки 52/2/2)",null,null,null,null,null,null,null,null,null,null,null,null,null,null,null,null,null,null,null,null,null,"52/2/2/3"]
[null,null,null,"оприходованы излишки и неучтенные ценности, денежные средства (из строки 52/2/2)",null,null,null,null,null,null,null,null,null,null,null,null,null,null,null,null,null,null,null,null,null,"52/2/2/4",null,null,2188]
["1.1.3",null,null,"средств, полученных бюджетными учреждениями от оказания платных услуг и осуществления иной приносящей доход деятельности (из строки 52)",null,null,null,null,null,null,null,null,null,null,null,null,null,null,null,null,null,null,null,null,null,"52/3",null,null,{"$f":"SUM(AC208:AE211)","v":0}]
[null,null,null,"на лицевые счета учреждения (из строки 52/3)",null,null,null,null,null,null,null,null,null,null,null,null,null,null,null,null,null,null,null,null,null,"52/3/1"]
[null,null,null,"в кассу учреждения (из строки 52/3)",null,null,null,null,null,null,null,null,null,null,null,null,null,null,null,null,null,null,null,null,null,"52/3/2"]
[null,null,null,"в регистрах бухгалтерского учета учреждения (из строки 52/3)",null,null,null,null,null,null,null,null,null,null,null,null,null,null,null,null,null,null,null,null,null,"52/3/3"]
[null,null,null,"оприходованы излишки и неучтенные ценности, денежные средства (из строки 52/3)",null,null,null,null,null,null,null,null,null,null,null,null,null,null,null,null,null,null,null,null,null,"52/3/4"]
["1.1.4",null,null,"прочих средств (из строки 52)",null,null,null,null,null,null,null,null,null,null,null,null,null,null,null,null,null,null,null,null,null,"52/4",null,null,{"$f":"SUM(AC213:AE216)","v":0}]
[null,null,null,"на банковские счета учреждения (из строки 52/4)",null,null,null,null,null,null,null,null,null,null,null,null,null,null,null,null,null,null,null,null,null,"52/4/1"]
[null,null,null,"в кассу учреждения (из строки 52/4)",null,null,null,null,null,null,null,null,null,null,null,null,null,null,null,null,null,null,null,null,null,"52/4/2"]
[null,null,null,"в регистрах бухгалтерского учета учреждения (из строки 52/4)",null,null,null,null,null,null,null,null,null,null,null,null,null,null,null,null,null,null,null,null,null,"52/4/3"]
[null,null,null,"оприходованы излишки и неучтенные ценности, денежные средства (из строки 52/4)",null,null,null,null,null,null,null,null,null,null,null,null,null,null,null,null,null,null,null,null,null,"52/4/4"]
["1.2.",null,null,"Уменьшено (сокращено) финансирование по постановлениям органов власти: (из строки 51)",null,null,null,null,null,null,null,null,null,null,null,null,null,null,null,null,null,null,null,null,null,53,null,null,{"$f":"SUM(AC218:AE219)","v":0}]
[null,null,null,"средств бюджета Республики Башкортостан",null,null,null,null,null,null,null,null,null,null,null,null,null,null,null,null,null,null,null,null,null,"53/1"]
[null,null,null,"средств бюджета муниципального образования (по уведомлениям)",null,null,null,null,null,null,null,null,null,null,null,null,null,null,null,null,null,null,null,null,null,"53/2"]
["1.3.",null,null,"Дополнительно поступило платежей в бюджет (из строки 51), в том числе:",null,null,null,null,null,null,null,null,null,null,null,null,null,null,null,null,null,null,null,null,null,54]
["1.3.1.",null,null,"Налоговые платежи (из строки 54), из них:",null,null,null,null,null,null,null,null,null,null,null,null,null,null,null,null,null,null,null,null,null,55,null,null,{"$f":"SUM(AC222:AE223)","v":0}]
[null,null,null,"в бюджет Республики Башкортостан (из строки 55)",null,null,null,null,null,null,null,null,null,null,null,null,null,null,null,null,null,null,null,null,null,"55/1"]
[null,null,null,"в бюджет муниципального образования (из строки 55)",null,null,null,null,null,null,null,null,null,null,null,null,null,null,null,null,null,null,null,null,null,"55/2"]
["1.3.2",null,null,"Неналоговые платежи (из строки 54), из них:",null,null,null,null,null,null,null,null,null,null,null,null,null,null,null,null,null,null,null,null,null,56,null,null,{"$f":"SUM(AC225,AC228)","v":0}]
[null,null,null,"в бюджет Республики Башкортостан (из строки 56)",null,null,null,null,null,null,null,null,null,null,null,null,null,null,null,null,null,null,null,null,null,"56/1",null,null,{"$f":"SUM(AC226:AE227)","v":0}]
[null,null,null,"по средствам бюджета Республики Башкортостан (из строки 56/1)",null,null,null,null,null,null,null,null,null,null,null,null,null,null,null,null,null,null,null,null,null,"56/1/1"]
[null,null,null,"по имуществу Республики Башкортостан (из строки 56/1)",null,null,null,null,null,null,null,null,null,null,null,null,null,null,null,null,null,null,null,null,null,"56/1/2"]
[null,null,null,"в бюджет муниципального образования (из строки 56)",null,null,null,null,null,null,null,null,null,null,null,null,null,null,null,null,null,null,null,null,null,"56/2",null,null,{"$f":"SUM(AC229:AE230)","v":0}]
[null,null,null,"по средствам бюджета муниципального образования (из строки 56/2)",null,null,null,null,null,null,null,null,null,null,null,null,null,null,null,null,null,null,null,null,null,"56/2/1"]
[null,null,null,"по имуществу муниципального образования (из строки 56/2)",null,null,null,null,null,null,null,null,null,null,null,null,null,null,null,null,null,null,null,null,null,"56/2/2"]
["1.4.",null,null,"Предотвращены потери, в том числе:",null,null,null,null,null,null,null,null,null,null,null,null,null,null,null,null,null,null,null,null,null,57,null,null,{"$f":"SUM(AC232:AE235)","v":0}]
[null,null,null,"средств бюджета Республики Башкортостан",null,null,null,null,null,null,null,null,null,null,null,null,null,null,null,null,null,null,null,null,null,"57/1"]
[null,null,null,"средств бюджета муниципального образования",null,null,null,null,null,null,null,null,null,null,null,null,null,null,null,null,null,null,null,null,null,"57/2"]
[null,null,null,"средств, полученных от оказания платных услуг и осуществления иной приносящей доход деятельности",null,null,null,null,null,null,null,null,null,null,null,null,null,null,null,null,null,null,null,null,null,"57/3"]
[null,null,null,"прочих средств",null,null,null,null,null,null,null,null,null,null,null,null,null,null,null,null,null,null,null,null,null,"57/4"]
["VI",null,null,"Сумма подлежащая возмещению, в том числе",null,null,null,null,null,null,null,null,null,null,null,null,null,null,null,null,null,null,null,null,null,58,null,null,{"$f":"SUM(AC237:AE240)","v":2190}]
[null,null,null,"средств бюджета Республики Башкортостан",null,null,null,null,null,null,null,null,null,null,null,null,null,null,null,null,null,null,null,null,null,"58/1",null,null,{"$f":"AC45+AC77+AC55+AC60+AC72","v":0}]
[null,null,null,"средств бюджета муниципального образования",null,null,null,null,null,null,null,null,null,null,null,null,null,null,null,null,null,null,null,null,null,"58/2",null,null,{"$f":"AC46+AC78+AC56+AC61+AC73","v":2190}]
[null,null,null,"средств, полученных от оказания платных услуг и осуществления иной приносящей доход деятельности",null,null,null,null,null,null,null,null,null,null,null,null,null,null,null,null,null,null,null,null,null,"58/3",null,null,{"$f":"AC47+AC79+AC57+AC62+AC74","v":0}]
[null,null,null,"прочих средств",null,null,null,null,null,null,null,null,null,null,null,null,null,null,null,null,null,null,null,null,null,"58/4",null,null,{"$f":"AC48+AC80+AC58+AC63+AC75","v":0}]
["VII",null,null,"Остаток  невозмещенных сумм, в том числе:",null,null,null,null,null,null,null,null,null,null,null,null,null,null,null,null,null,null,null,null,null,59,null,null,{"$f":"SUM(AC242:AE245)","v":2}]
[null,null,null,"средств бюджета Республики Башкортостан",null,null,null,null,null,null,null,null,null,null,null,null,null,null,null,null,null,null,null,null,null,"59/1",null,null,{"$f":"AC237-AC191","v":0}]
[null,null,null,"средств бюджета муниципального образования",null,null,null,null,null,null,null,null,null,null,null,null,null,null,null,null,null,null,null,null,null,"59/2",null,null,{"$f":"AC238-AC200","v":2}]
[null,null,null,"средств, полученных от оказания платных услуг и осуществления иной приносящей доход деятельности",null,null,null,null,null,null,null,null,null,null,null,null,null,null,null,null,null,null,null,null,null,"59/3",null,null,{"$f":"AC239-AC207","v":0}]
[null,null,null,"прочих средств",null,null,null,null,null,null,null,null,null,null,null,null,null,null,null,null,null,null,null,null,null,"59/4",null,null,{"$f":"AC240-AC212","v":0}]
["VIII",null,null,"Реализация КМ прошлых лет в текущем году:"]
["1.1.",null,null,"Восстановлено в добровольном порядке (из строки 51), в том числе:",null,null,null,null,null,null,null,null,null,null,null,null,null,null,null,null,null,null,null,null,null,"52п",null,null,{"$f":"SUM(AC248,AC257,AC264,AC269)","v":0}]
["1.1.1",null,null,"средств бюджета Республики Башкортостан (из строки 52)",null,null,null,null,null,null,null,null,null,null,null,null,null,null,null,null,null,null,null,null,null,"52/1п",null,null,{"$f":"AC249+AC252","v":0}]
[null,null,null,"в доход бюджета Республики Башкортостан (из строки 52/1)",null,null,null,null,null,null,null,null,null,null,null,null,null,null,null,null,null,null,null,null,null,"52/1/1п",null,null,{"$f":"SUM(AC250:AE251)","v":0}]
[null,null,null,"на код ГАД - Минфин РБ (из строки 52/1/1) ",null,null,null,null,null,null,null,null,null,null,null,null,null,null,null,null,null,null,null,null,null,"52/1/1/1п"]
[null,null,null,"на код ГАД - ГРБС (из строки 52/1/1)",null,null,null,null,null,null,null,null,null,null,null,null,null,null,null,null,null,null,null,null,null,"52/1/1/2п"]
[null,null,null,"на счета и в кассу учреждения (из строки 52/1)",null,null,null,null,null,null,null,null,null,null,null,null,null,null,null,null,null,null,null,null,null,"52/1/2п",null,null,{"$f":"SUM(AC253:AE256)","v":0}]
[null,null,null,"на лицевые счета учреждения (из строки 52/1/2)",null,null,null,null,null,null,null,null,null,null,null,null,null,null,null,null,null,null,null,null,null,"52/1/2/1п"]
[null,null,null,"в кассу учреждения (из строки 52/1/2)",null,null,null,null,null,null,null,null,null,null,null,null,null,null,null,null,null,null,null,null,null,"52/1/2/2п"]
[null,null,null,"В регистрах бухгалтерского учета учреждения (из строки 52/1/2)",null,null,null,null,null,null,null,null,null,null,null,null,null,null,null,null,null,null,null,null,null,"52/1/2/3п"]
[null,null,null,"оприходованы излишки и неучтенные ценности, денежные средства (из строки 52/1/2)",null,null,null,null,null,null,null,null,null,null,null,null,null,null,null,null,null,null,null,null,null,"52/1/2/4п"]
["1.1.2",null,null,"средств бюджета муниципального образования (из строки 52)",null,null,null,null,null,null,null,null,null,null,null,null,null,null,null,null,null,null,null,null,null,"52/2п",null,null,{"$f":"SUM(AC258:AE259)","v":0}]
[null,null,null,"в доход бюджета муниципального образования (из строки 52/2)",null,null,null,null,null,null,null,null,null,null,null,null,null,null,null,null,null,null,null,null,null,"52/2/1п"]
[null,null,null,"на счета и в кассу учреждения (из строки 52/2)",null,null,null,null,null,null,null,null,null,null,null,null,null,null,null,null,null,null,null,null,null,"52/2/2п",null,null,{"$f":"SUM(AC260:AE263)","v":0}]
[null,null,null,"на лицевые счета учреждения (из строки 52/2/2)",null,null,null,null,null,null,null,null,null,null,null,null,null,null,null,null,null,null,null,null,null,"52/2/2/1п"]
[null,null,null,"в кассу учреждения (из строки 52/2/2)",null,null,null,null,null,null,null,null,null,null,null,null,null,null,null,null,null,null,null,null,null,"52/2/2/2п"]
[null,null,null,"в регистрах бухгалтерского учета учреждения (из строки 52/2/2)",null,null,null,null,null,null,null,null,null,null,null,null,null,null,null,null,null,null,null,null,null,"52/2/2/3п"]
[null,null,null,"оприходованы излишки и неучтенные ценности, денежные средства (из строки 52/2/2)",null,null,null,null,null,null,null,null,null,null,null,null,null,null,null,null,null,null,null,null,null,"52/2/2/4п"]
["1.1.3",null,null,"средств, полученных бюджетными учреждениями от оказания платных услуг и осуществления иной приносящей доход деятельности (из строки 52)",null,null,null,null,null,null,null,null,null,null,null,null,null,null,null,null,null,null,null,null,null,"52/3п",null,null,{"$f":"SUM(AC265:AE268)","v":0}]
[null,null,null,"на лицевые счета учреждения (из строки 52/3)",null,null,null,null,null,null,null,null,null,null,null,null,null,null,null,null,null,null,null,null,null,"52/3/1п"]
[null,null,null,"в кассу учреждения (из строки 52/3)",null,null,null,null,null,null,null,null,null,null,null,null,null,null,null,null,null,null,null,null,null,"52/3/2п"]
[null,null,null,"в регистрах бухгалтерского учета учреждения (из строки 52/3)",null,null,null,null,null,null,null,null,null,null,null,null,null,null,null,null,null,null,null,null,null,"52/3/3п"]
[null,null,null,"оприходованы излишки и неучтенные ценности, денежные средства (из строки 52/3)",null,null,null,null,null,null,null,null,null,null,null,null,null,null,null,null,null,null,null,null,null,"52/3/4п"]
["1.1.4",null,null,"прочих средств (из строки 52)",null,null,null,null,null,null,null,null,null,null,null,null,null,null,null,null,null,null,null,null,null,"52/4п",null,null,{"$f":"SUM(AC270:AE273)","v":0}]
[null,null,null,"на банковские счета учреждения (из строки 52/4)",null,null,null,null,null,null,null,null,null,null,null,null,null,null,null,null,null,null,null,null,null,"52/4/1п"]
[null,null,null,"в кассу учреждения (из строки 52/4)",null,null,null,null,null,null,null,null,null,null,null,null,null,null,null,null,null,null,null,null,null,"52/4/2п"]
[null,null,null,"в регистрах бухгалтерского учета учреждения (из строки 52/4)",null,null,null,null,null,null,null,null,null,null,null,null,null,null,null,null,null,null,null,null,null,"52/4/3п"]
[null,null,null,"оприходованы излишки и неучтенные ценности, денежные средства (из строки 52/4)",null,null,null,null,null,null,null,null,null,null,null,null,null,null,null,null,null,null,null,null,null,"52/4/4п"]
["1.2.",null,null,"Уменьшено (сокращено) финансирование по постановлениям органов власти: (из строки 51)",null,null,null,null,null,null,null,null,null,null,null,null,null,null,null,null,null,null,null,null,null,"53п",null,null,{"$f":"SUM(AC275:AE276)","v":0}]
[null,null,null,"средств бюджета Республики Башкортостан",null,null,null,null,null,null,null,null,null,null,null,null,null,null,null,null,null,null,null,null,null,"53/1п"]
[null,null,null,"средств бюджета муниципального образования (по уведомлениям)",null,null,null,null,null,null,null,null,null,null,null,null,null,null,null,null,null,null,null,null,null,"53/2п"]
["1.3.",null,null,"Дополнительно поступило платежей в бюджет (из строки 51), в том числе:",null,null,null,null,null,null,null,null,null,null,null,null,null,null,null,null,null,null,null,null,null,"54п"]
["1.3.1.",null,null,"Налоговые платежи (из строки 54), из них:",null,null,null,null,null,null,null,null,null,null,null,null,null,null,null,null,null,null,null,null,null,"55п",null,null,{"$f":"SUM(AC279:AE280)","v":0}]
[null,null,null,"в бюджет Республики Башкортостан (из строки 55)",null,null,null,null,null,null,null,null,null,null,null,null,null,null,null,null,null,null,null,null,null,"55/1п"]
[null,null,null,"в бюджет муниципального образования (из строки 55)",null,null,null,null,null,null,null,null,null,null,null,null,null,null,null,null,null,null,null,null,null,"55/2п"]
["1.3.2",null,null,"Неналоговые платежи (из строки 54), из них:",null,null,null,null,null,null,null,null,null,null,null,null,null,null,null,null,null,null,null,null,null,"56п",null,null,{"$f":"SUM(AC282,AC285)","v":0}]
[null,null,null,"в бюджет Республики Башкортостан (из строки 56)",null,null,null,null,null,null,null,null,null,null,null,null,null,null,null,null,null,null,null,null,null,"56/1п",null,null,{"$f":"SUM(AC283:AE284)","v":0}]
[null,null,null,"по средствам бюджета Республики Башкортостан (из строки 56/1)",null,null,null,null,null,null,null,null,null,null,null,null,null,null,null,null,null,null,null,null,null,"56/1/1п"]
[null,null,null,"по имуществу Республики Башкортостан (из строки 56/1)",null,null,null,null,null,null,null,null,null,null,null,null,null,null,null,null,null,null,null,null,null,"56/1/2п"]
[null,null,null,"в бюджет муниципального образования (из строки 56)",null,null,null,null,null,null,null,null,null,null,null,null,null,null,null,null,null,null,null,null,null,"56/2п",null,null,{"$f":"SUM(AC286:AE287)","v":0}]
[null,null,null,"по средствам бюджета муниципального образования (из строки 56/2)",null,null,null,null,null,null,null,null,null,null,null,null,null,null,null,null,null,null,null,null,null,"56/2/1п"]
[null,null,null,"по имуществу муниципального образования (из строки 56/2)",null,null,null,null,null,null,null,null,null,null,null,null,null,null,null,null,null,null,null,null,null,"56/2/2п"]
["1.4.",null,null,"Предотвращены потери, в том числе:",null,null,null,null,null,null,null,null,null,null,null,null,null,null,null,null,null,null,null,null,null,"57п",null,null,{"$f":"SUM(AC289:AE292)","v":0}]
[null,null,null,"средств бюджета Республики Башкортостан",null,null,null,null,null,null,null,null,null,null,null,null,null,null,null,null,null,null,null,null,null,"57/1п"]
[null,null,null,"средств бюджета муниципального образования",null,null,null,null,null,null,null,null,null,null,null,null,null,null,null,null,null,null,null,null,null,"57/2п"]
[null,null,null,"средств, полученных от оказания платных услуг и осуществления иной приносящей доход деятельности",null,null,null,null,null,null,null,null,null,null,null,null,null,null,null,null,null,null,null,null,null,"57/3п"]
[null,null,null,"прочих средств",null,null,null,null,null,null,null,null,null,null,null,null,null,null,null,null,null,null,null,null,null,"57/4п"]

{"sheet":"5. Объекты КМ","index":4,"n_rows":405,"n_cols":5,"rows_kept":405,"cut":false,"hidden":false,"merged":[[0,0,0,4],[1,0,1,4],[2,0,2,4]]}
["Сведения об объектах контроля"]
[{"$f":"CONCATENATE('1. Начальные данные'!L18,'1. Начальные данные'!M18)","v":"429162017"}]
[{"$f":"'1. Начальные данные'!L17","v":"ФУ Администрации МР Нуримановский район РБ"}]
[]
["№","Объект контроля"," Тема КМ","Проверяемый период (дд.мм.год-дд.мм.год)","Сроки \nпроведения КМ \n(дд.мм.год-дд.мм.год)"]
[1,"МБОУ СОШ с.Старокулево","проверка соблюдения трудового законодательства и иных нормативных правовых актов, содержащих нормы трудового права","01.01.2016-31.12.2016","30.01.2017г-01.03.2017"]
[2,"Нуримановское МУП ЖКХ","внеплановая документальная проверка ФХД с проведением полной инвентаризации муниципального имущества, находящегося в хозяйственном ведении Нуримановское МУП ЖКХ","01.08.2014-20.03.2017","22.03.2017 - 21.04.2017 "]
[3,"МАОУ СОШ с.Красный Ключ","плановая камеральная ревизия плана ФХД","01.04.2013-31.03.2017","28.03.2017 г -28.04.2017"]
[4]
[5]
[6]
[7]
[8]
[9]
[10]
[11]
[12]
[13]
[14]
[15]
[16]
[17]
[18]
[19]
[20]
[21]
[22]
[23]
[24]
[25]
[26]
[27]
[28]
[29]
[30]
[31]
[32]
[33]
[34]
[35]
[36]
[37]
[38]
[39]
[40]
[41]
[42]
[43]
[44]
[45]
[46]
[47]
[48]
[49]
[50]
[51]
[52]
[53]
[54]
[55]
[56]
[57]
[58]
[59]
[60]
[61]
[62]
[63]
[64]
[65]
[66]
[67]
[68]
[69]
[70]
[71]
[72]
[73]
[74]
[75]
[76]
[77]
[78]
[79]
[80]
[81]
[82]
[83]
[84]
[85]
[86]
[87]
[88]
[89]
[90]
[91]
[92]
[93]
[94]
[95]
[96]
[97]
[98]
[99]
[100]
[101]
[102]
[103]
[104]
[105]
[106]
[107]
[108]
[109]
[110]
[111]
[112]
[113]
[114]
[115]
[116]
[117]
[118]
[119]
[120]
[121]
[122]
[123]
[124]
[125]
[126]
[127]
[128]
[129]
[130]
[131]
[132]
[133]
[134]
[135]
[136]
[137]
[138]
[139]
[140]
[141]
[142]
[143]
[144]
[145]
[146]
[147]
[148]
[149]
[150]
[151]
[152]
[153]
[154]
[155]
[156]
[157]
[158]
[159]
[160]
[161]
[162]
[163]
[164]
[165]
[166]
[167]
[168]
[169]
[170]
[171]
[172]
[173]
[174]
[175]
[176]
[177]
[178]
[179]
[180]
[181]
[182]
[183]
[184]
[185]
[186]
[187]
[188]
[189]
[190]
[191]
[192]
[193]
[194]
[195]
[196]
[197]
[198]
[199]
[200]
[201]
[202]
[203]
[204]
[205]
[206]
[207]
[208]
[209]
[210]
[211]
[212]
[213]
[214]
[215]
[216]
[217]
[218]
[219]
[220]
[221]
[222]
[223]
[224]
[225]
[226]
[227]
[228]
[229]
[230]
[231]
[232]
[233]
[234]
[235]
[236]
[237]
[238]
[239]
[240]
[241]
[242]
[243]
[244]
[245]
[246]
[247]
[248]
[249]
[250]
[251]
[252]
[253]
[254]
[255]
[256]
[257]
[258]
[259]
[260]
[261]
[262]
[263]
[264]
[265]
[266]
[267]
[268]
[269]
[270]
[271]
[272]
[273]
[274]
[275]
[276]
[277]
[278]
[279]
[280]
[281]
[282]
[283]
[284]
[285]
[286]
[287]
[288]
[289]
[290]
[291]
[292]
[293]
[294]
[295]
[296]
[297]
[298]
[299]
[300]
[301]
[302]
[303]
[304]
[305]
[306]
[307]
[308]
[309]
[310]
[311]
[312]
[313]
[314]
[315]
[316]
[317]
[318]
[319]
[320]
[321]
[322]
[323]
[324]
[325]
[326]
[327]
[328]
[329]
[330]
[331]
[332]
[333]
[334]
[335]
[336]
[337]
[338]
[339]
[340]
[341]
[342]
[343]
[344]
[345]
[346]
[347]
[348]
[349]
[350]
[351]
[352]
[353]
[354]
[355]
[356]
[357]
[358]
[359]
[360]
[361]
[362]
[363]
[364]
[365]
[366]
[367]
[368]
[369]
[370]
[371]
[372]
[373]
[374]
[375]
[376]
[377]
[378]
[379]
[380]
[381]
[382]
[383]
[384]
[385]
[386]
[387]
[388]
[389]
[390]
[391]
[392]
[393]
[394]
[395]
[396]
[397]
[398]
[399]
[400]

{"sheet":"6. Обратная связь ","index":5,"n_rows":2,"n_cols":1,"rows_kept":2,"cut":false,"hidden":false,"merged":[]}
["В какой программе вам более удобно заполнять данный отчет?"]
["[выберите один из вариантов]"]

{"sheet":"7. Реал.полном.","index":6,"n_rows":34,"n_cols":4,"rows_kept":34,"cut":false,"hidden":false,"merged":[[7,2,7,3],[1,0,1,3],[3,2,3,3],[4,2,4,3],[5,0,5,3],[6,2,6,3],[19,2,19,3],[8,2,8,3],[9,2,9,3],[10,2,10,3],[11,2,11,3],[12,0,12,3],[13,2,13,3],[14,2,14,3],[15,2,15,3],[16,2,16,3],[17,2,17,3],[18,2,18,3],[31,2,31,3],[20,2,20,3],[21,2,21,3],[22,2,22,3],[23,2,23,3],[24,0,24,3],[25,2,25,3],[26,2,26,3],[27,2,27,3],[28,2,28,3],[29,2,29,3],[30,2,30,3]]}
[null,null,null,"Приложение"]
["Информация о реализации контрольных полномочий в сфере закупок товаров, работ, услуг\n для обеспечения муниципальных нужд Республики Башкортостан за 2 квартал  2017 года"]
[]
["Наименование показателя","Ед.измерения","Количество (сведения)"]
["Наименование муниципального образования","-","Администрация МР Нуримановский район РБ"]
["1. Сведения об органах, осуществляющих контрольные функции"]
["1.1. Количество действующих на территории субъекта органов, осуществляющих контрольные функции, в том числе:","шт.",1]
["1.1.1. Контроль в сфере закупок","шт.",1]
["1.1.2. Внутренний муниципальный финансовый контроль","шт.",1]
["1.2. Количество проведенных проверок органами внутреннего муниципального финансового контроля:","шт."]
["плановые","шт."]
["внеплановые","шт."]
["2. Результаты деятельности контрольных органов в сфере закупок"]
["2.1. Количество жалоб на действия (бездействие) заказчика, уполномоченного органа, уполномоченного учреждения, специализированной организации, комиссии, \nпо осуществлению закупок, ее членов, должностного лица контрактной службы, контрактного управляющего, из них: ","шт.",0]
["признано обоснованными","шт."]
["основные причины жалоб*","пункт, часть, статья"]
["возвращено заявителю","шт."]
[" 2.2. Общее количество выданных предписаний об устранении правонарушений, в том числе:","шт.",0]
["об аннулировании определения поставщиков (подрядчиков, исполнителей)","шт."]
["2.3. Количество возбужденных дел об административных правонарушениях за нарушения законодательства Российской Федерации о контрактной системе в сфере закупок","шт.",0]
["основные причины возбуждения дел","пункт, часть, статья"]
["2.4. Количество выданных постановлений о наложении административных штрафов","шт.",0]
["сумма наложенных административных штрафов","тыс.руб."]
["сумма взысканных административных штрафов*","тыс.руб."]
["3. Результаты деятельности  органов муниципального финансового контроля"]
["3.1. Общее количество выданных предписаний, в том числе:","шт.",0]
["обжаловано предписаний в судах, из них:","шт."]
["обосновано","шт."]
["не обосновано","шт."]
["3.2. Количество обжалований в досудебном (внесудебном) порядке действий (бездействия) должностных лиц, из них: ","шт.",0]
["обосновано","шт."]
["не обосновано","шт."]
[]
["* Указана сумма взысканных административных штрафов за текущий и предыдущий год"]

{"sheet":"Контроль","index":7,"n_rows":84,"n_cols":7,"rows_kept":84,"cut":false,"hidden":true,"merged":[]}
["Уровень",null,"Платформа для отчетности",null,null,"Версия файла","1.1"]
["Государственный",null,"БашФин",null,null,"Дата","2017-04-21"]
["Муниципальный",null,"Excel"]
[]
["Дата"]
["1 апреля "]
["1 июля "]
["1 октября "]
["1 января "]
[]
["Год"]
["2017 года"]
["2018 года"]
["2019 года"]
["2020 года"]
["2021 года"]
["2022 года"]
["2023 года"]
["2024 года"]
[]
["МО",null,"ГРБС"]
["Администрация ГО г. Агидель РБ",null,"Агентство по печати РБ"]
["Администрация ГО г. Кумертау РБ",null,"Госкомитет РБ по делам юстиции"]
["Администрация ГО г. Нефтекамск РБ",null,"Госкомитет РБ по информатизации и вопросам функционирования системы «Открытая Республика»"]
["Администрация ГО г. Октябрьский РБ",null,"Госкомитет РБ по строительству и архитектуре"]
["Администрация ГО г. Салават РБ",null,"Госкомитет РБ по торговле и защите прав потребителей"]
["Администрация ГО г. Сибай РБ",null,"Госкомитет РБ по транспорту и дорожному хозяйству"]
["Администрация ГО г. Стерлитамак РБ",null,"Госкомитет РБ по чрезвычайным ситуациям"]
["Администрация ГО г. Уфа РБ",null,"Государственное бюджетное научное учреждение \"Академия наук РБ\""]
["Администрация ЗАТО г. Межгорье РБ",null,"Министерство жилищно-коммунального хозяйства РБ"]
["Администрация МР Абзелиловский район РБ",null,"Министерство здравоохранения РБ"]
["Администрация МР Альшеевский район РБ",null,"Министерство земельных и имущественных отношений РБ"]
["Администрация МР Архангельский район РБ",null,"Министерство культуры РБ"]
["Администрация МР Аскинский район РБ",null,"Министерство лесного хозяйства РБ"]
["Администрация МР Аургазинский район РБ",null,"Министерство молодежной политики и спорта РБ"]
["Администрация МР Баймакский район РБ",null,"Министерство образования РБ"]
["Администрация МР Бакалинский район РБ",null,"Министерство природопользования и экологии РБ"]
["Администрация МР Балтачевский район РБ",null,"Министерство промышленности и инновационной политики РБ"]
["Администрация МР Белебеевский район РБ",null,"Министерство сельского хозяйства РБ"]
["Администрация МР Белокатайский район РБ",null,"Министерство труда и социальной защиты населения РБ"]
["Администрация МР Белорецкий район РБ",null,"Министерство экономического развития РБ"]
["Администрация МР Бижбулякский район РБ",null,"Управление ветеринарии РБ"]
["Администрация МР Бирский район РБ",null,"Управление делами Главы РБ"]
["Администрация МР Благоварский район РБ",null,"Управление по государственной охране объектов культурного наследия Республики Башкортостан"]
["Администрация МР Благовещенский район РБ",null,"Управление по делам архивов РБ"]
["Администрация МР Буздякский район РБ"]
["Администрация МР Бураевский район РБ"]
["Администрация МР Бурзянский район РБ"]
["Администрация МР Гафурийский район РБ"]
["Администрация МР Давлекановский район РБ"]
["Администрация МР Дуванский район РБ"]
["Администрация МР Дюртюлинский район РБ"]
["Администрация МР Ермекеевский район РБ"]
["Администрация МР Зианчуринский район РБ"]
["Администрация МР Зилаирский район РБ"]
["Администрация МР Иглинский район РБ"]
["Администрация МР Илишевский район РБ"]
["Администрация МР Ишимбайский район РБ"]
["Администрация МР Калтасинский район РБ"]
["Администрация МР Караидельский район РБ"]
["Администрация МР Кармаскалинский район РБ"]
["Администрация МР Кигинский район РБ"]
["Администрация МР Краснокамский район РБ"]
["Администрация МР Кугарчинский район РБ"]
["Администрация МР Кушнаренковский район РБ"]
["Администрация МР Куюргазинский район РБ"]
["Администрация МР Мелеузовский район РБ"]
["Администрация МР Мечетлинский район РБ"]
["Администрация МР Мишкинский район РБ"]
["Администрация МР Миякинский район РБ"]
["Администрация МР Нуримановский район РБ"]
["Администрация МР Салаватский район РБ"]
["Администрация МР Стерлибашевский район РБ"]
["Администрация МР Стерлитамакский район РБ"]
["Администрация МР Татышлинский район РБ"]
["Администрация МР Туймазинский район РБ"]
["Администрация МР Уфимский район РБ"]
["Администрация МР Учалинский район РБ"]
["Администрация МР Федоровский район РБ"]
["Администрация МР Хайбуллинский район РБ"]
["Администрация МР Чекмагушевский район РБ"]
["Администрация МР Чишминский район РБ"]
["Администрация МР Шаранский район РБ"]
["Администрация МР Янаульский район РБ"]

{"sheet":"Контроль2","index":8,"n_rows":318,"n_cols":2,"rows_kept":318,"cut":false,"hidden":true,"merged":[]}
["Классификатор в алфавитном порядке"]
["Нецелевое использование средств","17"]
["Другие нарушения в части нецелевого использования бюджетных средств","17.2.1.20."]
["Использование бюджетных средств (принятие и исполнение денежных обязательств) на оплату пособий, компенсаций, субсидий и других денежных выплат лицам, не имеющим правовых оснований для их получения.","17.2.1.3."]
["Использование бюджетных средств (принятие и исполнение денежных обязательств) на оплату расходов, которые должны осуществляться за счет доходов от предпринимательской и иной приносящей доход деятельности или иных источников. ","17.2.1.2."]
["Использование бюджетных средств на оплату расходов на строительство объектов и строек, не предусмотренных проектно-сметной документацией или при отсутствии утвержденной проектно-сметной документации, экспертизы проекта.","17.2.1.9."]
["Использование бюджетных средств на оплату расходов, не предусмотренных сметой доходов и расходов (бюджетной сметой с 01.01.2008 года), либо иным правовым основаниям их получения в финансовом году.","17.2.1.6."]
["Использование бюджетных средств на оплату товаров, работ, услуг, не связанных с деятельностью получателя бюджетных средств, на оказание финансовой помощи коммерческим организациям или на их создание.","17.2.1.5."]
["Использование бюджетных средств получателями на цели, не соответствующие условиям, определенным законодательством, регулирующим их деятельность.","17.2.1.8."]
["Использование средств целевого бюджетного финансирования (в рамках реализации приоритетных национальных проектов, целевых программ и т.д.), бюджетных кредитов, бюджетных инвестиций не по назначению - на цели, не соответствующие условиям, определенным соответствующим нормативным актом.","17.2.1.7."]
["Нецелевое использование субсидии автономным и бюджетным учреждением ","17.2.1.20.1."]
["Нецелевое использование субсидии автономным и бюджетным учреждением, предусмотренныена содержание имущества ","17.2.1.20.2."]
["Нецелевое использование субсидии. Нарушение по  условиям соглашений в части софинансирования  соответствующих обязательств за счет средств местного бюджета  (полученная субсидия, предусмотренная  по соглашению направлена на иные цели )","17.2.1.20.3"]
["Перечисление неиспользованных остатков бюджетных средств на счета других юридических лиц или на счет по учету средств, полученных от предпринимательской и иной приносящей доход деятельности.","17.2.1.4."]
["Расходование средств, полученных от предпринимательской и иной приносящей доход деятельности, на цели, не предусмотренные сметой доходов и расходов (бюджетной сметой с 01.01.2008 года) бюджетного учреждения.","17.5.2.2."]
["Неэффективное использование материальных ресурсов и денежных средств","18"]
["Безвозмездная передача государственного (муниципального) имущества (собственности) при отсутствии достаточных на то оснований. Передача имущества другим юридическим и физическим лицам без разрешения собственника.","18.3.1.13."]
["Дебиторская задолженность по оплате работ по текущему и капитальному ремонту, реконструкции и строительству (в случаях, когда авансирование договором не предусмотрено, либо перечисление аванса произведено в размерах, превышающих размеры, установленные действующим законодательством).","18.2.3.14."]
["Дебиторская задолженность по оплате товаров (работ, услуг) (в случаях, когда авансирование договором не предусмотрено, либо перечисление аванса произведено в размерах, превышающих размеры, установленные действующим законодательством).","18.2.3.13."]
["Другие нарушения при осуществлении бюджетными учреждениями предпринимательской и иной приносящей доход деятельности.","18.5.2.9."]
["Другие нарушения при распоряжении государственным (муниципальным) имуществом","18.3.1.22."]
["Другие нарушения, влекущие правонарушения в сфере исполнения бюджета по расходам.","18.1.2.36."]
["Другие неэффективные расходы. Неэффективные нарушения в использовании средств, выделенных на софинансирование расходов по модернизации систем наружного освещения населенных пунктов Республики Башкортостан на 2011–2015 годы.","18.18.2.3.37."]
["Другие неэффективные расходы. Неэффективные нарушения использовании средств, выделенных на реализацию республиканской адресной программы по проведению капитального ремонта многоквартирных домов","18.18.2.3.38."]
["Другие неэффективные расходы. Неэффективные расходы средств, выделенных на реализацию адресной программы Республики Башкортостан на период 2011 - 2015 годов по замене и модернизации лифтов, отработавших нормативный срок службы.","18.18.2.3.36."]
["Заключение государственных (муниципальных) контрактов без установления обязательных условий, несоответствия конкурсной документации.","18.2.3.7."]
["Заключение государственных (муниципальных) контрактов с единственным поставщиком (в установленных случаях) без соблюдения установленных процедур и с нарушением закона.","18.2.3.4."]
["Закупки товаров, работ и услуг сверх установленных законодательством сумм без заключения государственных (муниципальных) контрактов (в т.ч. необоснованное дробление объемов работ, закупок при размещении заказов).","18.2.3.1."]
["Закупки, в которых выявлено несоответствие использования поставленного товара, выполненной работы (ее результата) или оказанной услуги целям осуществления закупки","18.2.3.11.5."]
["Закупки, в которых выявлено несоответствие поставленного товара выполненной работы (ее результата) или оказанной услуги условиям контракта","18.2.3.11.3."]
["Закупки, в которых выявлены нарушения в части своевременности, полноты и достоверности отражения в документах учета поставленного товара. Выполненной работы (ее результата) или оказанной услуги","18.2.3.11.4."]
["Закупки, в которых выявлены нарушения при применении заказчиком мер ответственности и совершения иных действий в случае нарушения поставщиком (подрядчиком, исполнителем) условий контракта","18.2.3.11.2."]
["Затраты государственного (муниципального) имущества сверх необходимого (возможного) на получение требуемого результата.","18.3.1.17."]
["Затраты государственного имущества без достижения требуемого результата.","18.3.1.18."]
["Иные нарушения в части неэффективного использования бюджетных средств.","18.2.3.31."]
["Иные нарушения в части неэффективного использования бюджетных средств. В образовательных учреждениях при отсутствии лицензии на осуществление медицинской деятельности произведены расходы по выплате заработной плате медицинским сестрам какие функция она выполняет, (введено в штат. Расписание должность медсестры, а должны по согл-ю с МО, МЗ РБ работать медперсонал с больницы)","18.18.2.3.40."]
["Иные нарушения в части неэффективного использования бюджетных средств. Нарушения по энергосбережению и повышению энергетической ","18.2.3.34."]
["Иные нарушения в части неэффективного использования бюджетных средств. Непринятие мер по обеспечению снижения количества потребляемых коммунальных услуг ","18.18.2.3.39."]
["Иные нарушения в части неэффективного использования бюджетных средств. Оплата транспортного налога за неэксплуатируемый транспорт. ","18.2.3.32."]
["Иные нарушения в части неэффективного использования бюджетных средств. Погашение кредиторской задолженности, образованной в прошлом периоде при наличии ЛБО","18.2.3.35."]
["Иные нарушения в части неэффективного использования средств. (Хозяйствующий субъект) ","18.18.2.3.41."]
["Иные нарушения при осуществлении государственных (муниципальных) закупок и исполнении государственных (муниципальных) контрактов, договоров (приобретение жилых помещений для детей-сирот не соответствующих техническому заданию контракта). ","18.2.3.11.1."]
["Иные нарушения при осуществлении государственных (муниципальных) закупок и исполнении государственных (муниципальных) контрактов, договоров. ","18.2.3.11."]
["Направление средств резервных фондов на цели, отличные от их назначения (в нарушение порядка, установленного соответствующими нормативно-правовыми актами).","18.1.2.9."]
["Направление средств, полученных от предпринимательской и иной приносящей доход деятельности, на цели, не предусмотренные нормативными правовыми актами и разрешительными документами.","18.5.2.1."]
["Нарушение порядка размещения бюджетных средств на банковских депозитах или передачи их в доверительное управление.Неэффективное размещение государственных средств в кредитных организациях.","18.1.2.33."]
["Нарушение порядка распоряжения объектом нежилого фонда, находящимся в государственной собственности Республики Башкортостан или муниципальной собственности, и использования указанного объекта. Предоставление государственного (муниципального) имущества без согласия собственника в пользование, без получения доходов от его использования в соответствующий бюджет.","18.1.1.11."]
["Нарушение сроков подтверждения денежных обязательств, влекущее выплату пени, штрафов.","18.1.2.18."]
["Нарушения при распоряжении имущества автономных и бюджетных учреждений (особо ценного имущества, движимого имущества и недвиженого имущества, находящегося в собственности субъекта Российской Федерации, находящегося в муниципальной собственности)","18.3.1.23."]
["Начисление выплат по заработной плате по вредности","18.2.2.3."]
["Не соблюдение стандартов расходов на содержание органов государственной власти (местного самоуправления) (в т.ч. завышение норм занимаемых площадей).","18.2.3.16."]
["Не соблюдение требований законодательства о размещении заказов на поставки товаров, выполнение работ, оказание услуг для государственных и муниципальных нужд при осуществлении конкурсных, аукционных процедур и процедур запроса котировок.","18.2.3.3."]
["Не соблюдение условий возмездности и возвратности при предоставлении бюджетных кредитов","18.1.2.20."]
["Невыполнение договорных обязательств; непринятие мер по погашению кредиторской задолженности.","18.5.2.8."]
["Неисполнение поставщиками (подрядчиками) условий государственных (муниципальных) контрактов, договоров по соблюдению договорных цен.","18.2.3.6."]
["Неосвоение, неиспользование (неполное использование) имущества. ","18.3.1.19."]
["Непередача, неполная, несвоевременная передача государственного (муниципального) имущества. Передача имущества без соответствующего документального оформления.","18.3.1.15."]
["Неперечисление (несвоевременное или неполное перечисление) в бюджет средств, полученных от распоряжения государственной (муниципальной) собственностью, использования государственной (муниципальной) собственности, предоставления государственных (муниципальных) услуг.","18.1.1.5."]
["Неполное либо несвоевременное перечисление бюджетным учреждением платежей в бюджет и государственные внебюджетные фонды, повлекшее начисление финансовых санкций.","18.2.3.30."]
["Неправомерное использование доходов, полученных сверх утвержденных законом о бюджете.","18.1.2.10."]
["Неправомерное осуществление государственных (муниципальных) заимствований.","18.1.2.26."]
["Неправомерное получение кредита бюджетным учреждением","18.2.3.12."]
["Неправомерное предоставление в пользование или залог объектов государственной (муниципальной) собственности","18.3.1.9."]
["Неправомерное предоставление льгот, отсрочек, рассрочек по обязательным платежам в бюджет, налоговых кредитов и налоговых инвестиционных кредитов, а также отсутствие соответвующего контроля за выполнением условий, на которых были предоставлены льготы, отсрочки, рассрочки по платежам в бюджет, налоговые кредиты и налоговые инвестиционные кредиты.","18.1.1.1."]
["Неправомерное предоставление льгот, отсрочек, рассрочек по платежам за пользование государственным (муниципальным) имуществом.","18.1.1.13."]
["Неправомерное списание задолженности по налогам и другим обязательным платежам.","18.1.1.2."]
["Неправомерное финансирование местных органов власти и организаций за счет средств бюджета Республики Башкортостан (при отсутствии правовых оснований).","18.1.2.13."]
["Неправомерное финансирование расходных обязательств Республики Башкортостан за счет средств местных бюджетов (при отсутствии правовых оснований).","18.1.2.12."]
["Неправомерное финансирование федеральных органов государственной власти и организаций за счет средств бюджетов субъектов РФ и (или) местных бюджетов (при отсутствии правовых оснований).","18.1.2.11."]
["Непринятие мер по взысканию недоимки по налогам, сборам и обязательным платежам в доход бюджета, в том числе отсутствие контроля за правильностью исчисления, полнотой и своевременностью уплаты, начисления и учета, взыскания и принятия решений о возврате (зачете) излишне уплаченных (взысканных) платежей, пеней и штрафов по ним. ","18.1.1.3."]
["Несоблюдение нормативов финансовых затрат на оказание государственных или муниципальных услуг.","18.2.3.15."]
["Неэффективное использование бюджетных средств в результате возмещения учреждением (организацией) материального ущерба и морального вреда, причиненного действиями работника.","18.2.3.25."]
["Неэффективное использование бюджетных средств в результате ущерба, причиненного дорожно-транспортным происшествием, не возмещенного виновным лицом.","18.3.1.21."]
["Неэффективное использование бюджетных средств вследствие заключения сделок, признанных судом недействительными.","18.2.3.9."]
["Неэффективное использование бюджетных средств вследствие нарушений в оформлении государственных (муниципальных) контрактов, договоров, актов выполненных работ, других документов.","18.2.3.5."]
["Неэффективное использование бюджетных средств вследствие недобора платы за проживание и коммунальные услуги с лиц, занимающих жилые помещения, состоящие на балансе учреждения.","18.2.3.27."]
["Неэффективное использование бюджетных средств вследствие необоснованного применения норм естественной убыли.","18.2.3.23."]
["Неэффективное использование бюджетных средств вследствие неоприходования стоимости материалов, полученных от разборки объектов основных средств.","18.2.3.24."]
["Неэффективное использование бюджетных средств вследствие неприменения штрафных санкций к поставщикам и подрядчикам, нарушившим обязательства по условиям государственного (муниципального) контракта, договора.","18.2.3.8."]
["Неэффективное использование бюджетных средств вследствие образования дебиторской задолженности по заработной плате за уволенными работниками.","18.2.3.28."]
["Неэффективное использование бюджетных средств вследствие приобретения или списания некачественной продукции или продукции с истекшим сроком хранения (использования).","18.2.3.21."]
["Неэффективное использование бюджетных средств вследствие приобретения неиспользуемого оборудования, либо ремонт такого оборудования и имущества.","18.2.3.26."]
["Неэффективное использование бюджетных средств вследствие реализации материальных ресурсов по заниженным ценам, либо по ценам приобретения без учета действующих на момент реализации рыночных цен.","18.2.3.22."]
["Неэффективное использование субсидии автономными и бюджетными учреждениями ","18.2.3.33."]
["Неэффективное управление объектами государственной и муниципальной собственности, убыточная, неприбыльная деятельность государственных и муниципальных унитарных предприятий, акционерных обществ и других организаций с участием государства; получение меньших, чем возможно, прибыли, дивидендов по акциям.","18.3.1.20."]
["Образование кредиторской задолженности вследствие принятия организаций дополнительных обязательств в результате нарушения режима экономии средств.","18.2.3.29."]
["Оплата работ, которые должны выполняться для бюджетных учреждений бесплатно.","18.2.3.19."]
["Осуществление бюджетных инвестиций в объекты государственной и муниципальной собственности с нарушением установленного порядка.","18.1.2.30."]
["Осуществление государственных, муниципальных закупок, размещения заказа на поставки товаров, выполнение работ, оказание услуг для государственных и муниципальных нужд, без проведения процедур, предусмотренных законодательством.","18.2.3.2."]
["Отсутствие контроля за использованием объектов государственной (муниципальной) собственности.","18.3.1.16."]
["Отсутствие, несвоевременное принятие локальных правовых актов, определяющих порядок использования средств бюджетной системы.","18.2.3.20."]
["Предоставление бюджетных инвестиций без оформления доли Республики Башкортостан (муниципального образования) в уставных (складочных) капиталах юридических лиц.","18.1.2.29."]
["Предоставление бюджетных кредитов с нарушением закона (решения) о бюджете.","18.1.2.22."]
["Приобретение товарно-материальных ценностей, выполнение работ, оказание услуг по завышенным ценам в результате указания в конкурсной и иной документации завышенной начальной цены контракта по сравнению со средней рыночной ценой в регионе. ","18.2.3.10."]
["Расходование бюджетных средств без достижения требуемого результата.","18.2.3.18."]
["Расходование бюджетных средств с затратами сверх необходимого (возможного) на получение требуемого результата.","18.2.3.17."]
["Финансирование расходов, не предусмотренных законом о бюджете и (или) бюджетной росписью.","18.1.2.5."]
["Финансирование расходов, не предусмотренных законом о бюджете и (или) бюджетной росписью.","18.1.2.5."]
["Недостача денежных средств","19"]
["Недостача наличных денежных средств, бланков строгой отчетности в кассе организации. ","19.2.2.55."]
["Недостача материальных ресурсов","20"]
["Нарушение порядка приватизации государственного (муниципального) имущества","20.3.1.12."]
["Недостача государственного (муниципального) имущества.","20.3.1.3."]
["Недостача товарно-материальных ценностей.","20.2.2.54."]
["Недопоступление платежей в бюджет","21"]
["Другие нарушения при осуществлении бюджетными учреждениями предпринимательской и иной приносящей доход деятельности.","21.5.2.9."]
["Другие нарушения, влекущие недопоступление средств в доход бюджета. ","21.1.1.15."]
["Нарушение порядка зачисления средств в доход бюджета.","21.1.1.14."]
["Нарушение порядка распоряжения объектом нежилого фонда, находящимся в государственной собственности Республики Башкортостан или муниципальной собственности, и использования указанного объекта. Предоставление государственного (муниципального) имущества без согласия собственника в пользование, без получения доходов от его использования в соответствующий бюджет.","21.1.1.11."]
["Не предъявления требований к возмещению сумм, уплаченных по муниципальной гарантии.","21.1.2.28."]
["Неперечисление (несвоевременное или неполное перечисление) в бюджет дивидендов по акциям (долям), принадлежащим Республике Башкортостан или муниципальному образованию (при наличии решения о выплате дивидендов).","21.1.1.9."]
["Неперечисление (несвоевременное или неполное перечисление) в бюджет средств, полученных от распоряжения государственной (муниципальной) собственностью, использования государственной (муниципальной) собственности, предоставления государственных (муниципальных) услуг.","21.1.1.5."]
["Неперечисление (несвоевременное или неполное перечисление) в бюджет установленной доли чистой прибыли государственными унитарными предприятиями (муниципальными унитарными предприятиями).","21.1.1.8."]
["Неперечисление (несвоевременное или неполное перечисление) в доход бюджета взыскиваемых сумм принудительного изъятия (штрафов, конфискаций и др.), а также доходов, полученных в виде возмещения ущерба.","21.1.1.6."]
["Неперечисление (несвоевременное или неполное перечисление) в доход бюджета дебиторской задолженности прошлых лет, поступившей на счета получателей бюджетных средств в текущем году. ","21.1.1.7."]
["Непоступление либо недопоступление средств в бюджет от реализация государственной (муниципальной) собственности (в т.ч. реализация государственной (муниципальной) собственности по заниженной стоимости, снижение стоимости реализуемого имущества вследствие естественной убыли или его порчи).","21.1.1.10."]
["Неправомерное предоставление в пользование или залог объектов государственной (муниципальной) собственности","21.3.1.9."]
["Непринятие мер по взысканию арендной платы за пользование государственным (муниципальным) имуществом","21.3.1.8."]
["Непринятие мер по взысканию арендной платы за пользование государственным (муниципальным) имуществом. Занижение и недополучение размеров арендной платы за использование государственного (муниципального) имущества.","21.1.1.12."]
["Непринятие мер по взысканию недоимки по налогам, сборам и обязательным платежам в доход бюджета, в том числе отсутствие контроля за правильностью исчисления, полнотой и своевременностью уплаты, начисления и учета, взыскания и принятия решений о возврате (зачете) излишне уплаченных (взысканных) платежей, пеней и штрафов по ним. ","21.1.1.3."]
["Непринятие мер по своевременному и полному получению в бюджетную систему средств, предоставленных на возвратной основе, а также платы за пользование этими средствами (включая бюджетные кредиты).","21.1.1.4."]
["Несоблюдение условий договора аренды, занижение размеров арендной платы за использование государственного и муниципального имущества, в том числе предоставление во временное пользование имущества излишней площади, чем предусмотрено договором; несоблюдение сроков оплаты по договорам. ","21.3.1.7."]
["Осуществление деятельности при отсутствии необходимых разрешений (лицензий, аттестации, аккредитации) или с их нарушением.","21.5.2.6."]
["Осуществление деятельности, не предусмотренной учредительными документами.","21.5.2.5."]
["Предоставление государственного (муниципального) имущества в аренду и субаренду без согласия собственника, без заключения договоров или без их регистрации в установленном порядке.","21.3.1.6."]
["Реализация государственной (муниципальной) собственности с получением меньших, чем было возможно, средств (в т.ч. реализация государственной собственности по заниженной стоимости, снижение стоимости реализуемого имущества вследствие естественной убыли или его порчи)","21.3.1.14."]
["Налоговые платежи",22]
["Другие нарушения, влекущие недопоступление средств в доход бюджета","22.1.1.15."]
["Предоставление государственного (муниципального) имущества в аренду и субаренду без согласия собственника, без заключения договоров или без их регистрации в установленном порядке.","22.3.1.6."]
["Неналоговые платежи",23]
["Нарушение порядка приватизации государственного (муниципального) имущества","23.1.1.12."]
["Нарушение порядка приватизации государственного (муниципального) имущества","23.3.1.12."]
["Нарушение порядка распоряжения объектом нежилого фонда, находящимся в государственной собственности Республики Башкортостан или муниципальной собственности, и использования указанного объекта. Предоставление государственного (муниципального) имуществ","23.1.1.11."]
["Не погашены пени за несвовременную уплату процентов по использованию бюджетных средств","23.1.1.4."]
["Невзысканны пени в бюджет по арендной плате за землю","23.1.1.15."]
["Неперечисление (несвоевременное или неполное перечисление) в бюджет средств, полученных от распоряжения государственной (муниципальной) собственностью, использования государственной (муниципальной) собственности, предоставления государственных (муниц","23.1.1.5."]
["Неперечисление (несвоевременное или неполное перечисление) в бюджет установленной доли чистой прибыли государственными унитарными предприятиями (муниципальными унитарными предприятиями)","23.1.1.8."]
["Непоступление либо недопоступление средств в бюджет от реализация государственной (муниципальной) собственности (в т.ч. реализация государственной (муниципальной) собственности по заниженной стоимости, снижение стоимости реализуемого имущества вследс","23.1.1.10."]
["Неправомерное предоставление в пользование или залог объектов государственной (муниципальной) собственности","23.3.1.9."]
["Неправомерное предоставление льгот, отсрочек, рассрочек по платежам за пользование государственным (муниципальным) имуществом","23.1.1.13."]
["Непринятие мер по взысканию арендной платы за пользование государственным (муниципальным) имуществом","23.3.1.8."]
["Непринятие мер по взысканию пени за несвоевременное перечисление в доход бюджета доли чистой прибыли муниципальных унитарных предприятий ","23.1.1.3."]
["Несоблюдение условий договора аренды, занижение размеров арендной платы за использование государственного и муниципального имущества, в том числе предоставление во временное пользование имущества излишней площади, чем предусмотрено договором; несоблю","23.3.1.7."]
["Предоставление государственного (муниципального) имущества в аренду и субаренду без согласия собственника, без заключения договоров или без их регистрации в установленном порядке.","23.3.1.6."]
["Реализация государственной (муниципальной) собственности с получением меньших, чем было возможно, средств (в т.ч. реализация государственной собственности по заниженной стоимости, снижение стоимости реализуемого имущества вследствие естественной убыл","23.3.1.14."]
["Средства, подлежащие перечислению в доход бюджета в виде платы от найма жилых помещений не учитывались в доходах местного бюджета","23.1.1.14."]
["Излишки материальных ценностей и денежных средств","24"]
["Излишки товарно-материальных ценностей, денежных средств и бланков строгой отчетности.","24.2.2.56."]
["Наличие неучтенного, неоприходованного в установленном порядке государственного (муниципального) имущества.","24.3.1.4."]
["Неправомерное расходование денежных средств и материальных ресурсов","25"]
["Излишнее списание продуктов питания вследствие неверного применения норм естественной убыли","25.2.2.16."]
["Безвозмездная передача государственного (муниципального) имущества (собственности) при отсутствии достаточных на то оснований. Передача имущества другим юридическим и физическим лицам без разрешения собственника.","25.3.1.13."]
["Безвозмездная передача государственного (муниципального) имущества (собственности) при отсутствии достаточных на то оснований. Передача имущества другим юридическим и физическим лицам без разрешения собственника. Неправомерная передача особо ценного имущества автономными и бюджетными учреждениями","25.3.1.13.1."]
["Выдача подотчетных сумм лицам, не работающим в учреждении.","25.2.2.23."]
["Выделение главными распорядителями, распорядителями бюджетных средств и направление бюджетным учреждениям средств бюджета Республики Башкортостан и муниципальных бюджетов в нарушение казначейской системы исполнения бюджета или на иные счета получателей бюджетных средств.","25.1.2.4."]
["Выделение и направление средств бюджетной системы организациям, учредительными документами которых не предусмотрено осуществление соответствующей деятельности. ","25.1.2.34."]
["Другие нарушения при осуществлении бюджетными учреждениями предпринимательской и иной приносящей доход деятельности.","25.5.2.9."]
["Другие нарушения при распоряжении государственным (муниципальным) имуществом","25.3.1.22."]
["Другие нарушения при распоряжении государственным (муниципальным) имуществом \n(не оприходованное имущество, не запущено в эксплуатацию и др. нарушения по имуществу, выявленных в рамках проверки вопросов ч.8 ст. 99 Закона о контрактной системе)","25.3.1.22.1."]
["Другие нарушения, влекущие правонарушения в сфере исполнения бюджета по расходам.","25.1.2.36."]
["Другие неправомерные нарушения при использовании субсидии, выделенных на содержание автономного и бюджетного учреждения ","25.2.2.53.2."]
["Другие неправомерные нарушения при использовании субсидии, выделенных на содержание автономного учреждения . Невыполнение государственных (муниципальных) заданий","25.2.2.53.3."]
["Другие неправомерные нарушения при использовании субсидии, выделенных на содержание бюджетного учреждения . Невыполнение государственных (муниципальных) заданий","25.2.2.53.4."]
["Другие неправомерные нарушения, а именно переплата и недоплатат в части компенсационных выплат (за метод литературу, коммунальных услуг)","25.2.2.53.1."]
["Другие неправомерные нарушения. ","25.2.2.53."]
["Другие неправомерные нарушения. Нарушения в использовании средств, выделенныхна реализацию республиканской адресной программы по проведению капитального ремонта многоквартирных домов","25.2.2.53.7."]
["Другие неправомерные нарушения. Не принятие мер по возврату бюджетныхх средств, выделенных на софинансирование расходов в МО и ГО","25.2.2.53.9."]
["Другие неправомерные нарушения. Неправомерные расходы средств, выделенных на реализацию адресной программы Республики Башкортостан на период 2011 - 2015 годов по замене и модернизации лифтов, отработавших нормативный срок службы.","25.2.2.53.5."]
["Другие неправомерные нарушения.Нарушения в использвании средств, выделенных на софинансирование расходов по модернизации систем наружного освещения населенных пунктов Республики Башкортостан на 2011–2015 годы.","25.2.2.53.6."]
["Завышение лимитированных затрат, удорожающих коэффициентов при выполнении ремонтно-строительных работ.","25.2.2.33."]
["Завышение объемных показателей деятельности учреждения, приводящее к неправильному определению размера оплаты труда руководителей. ","25.2.2.10."]
["Излишнее либо неправомерное начисление отпускных (основные и дополнительные отпуска) и компенсации за неиспользованный отпуск, в том числе неправомерная выплата отпускных сотрудникам, отозванным из отпуска (начисление заработной платы и отпускных за один и тот же период), начисление отпускных в результате неверного расчета дней или неверного применения коэффициента с учетом начислений на выплаты по оплате труда.","25.2.2.6."]
["Излишнее либо неправомерное начисление пособий по временной нетрудоспособности (в том числе пособий по уходу за ребенком, по беременности и родам и пр.).","25.2.2.9."]
["Излишнее списание горюче-смазочных материалов вследствие применения завышенных (неправомерных) норм списания.","25.2.2.28."]
["Излишнее списание продуктов питания вследствие завышения количества питающихся","25.2.2.17."]
["Излишнее списание продуктов питания вследствие применения завышенных (необоснованных) норм","25.2.2.15."]
["Излишняя (неправомерная) выплата заработной платы при внутреннем совмещении, а так же специалистам, работающим в учреждении по совместительству с учетом начислений на выплаты по оплате труда.","25.2.2.5."]
["Иные нарушения в части оплаты труда, пособий и единого социального налога ","25.2.2.11."]
["Иные нарушения в части расчетов с учащимися и студентами.","25.2.2.14."]
["Иные нарушения в части содержания автотранспорта.","25.2.2.30."]
["Иные нарушения в части списания подотчетных сумм.","25.2.2.25."]
["Иные нарушения в части списания продуктов питания.","25.2.2.19."]
["Иные нарушения при расходовании средств в результате завышения стоимости и объемов выполненных работ, повторного выполнения работ на тех же объектах. Не соблюдение периодичности проведения капитального ремонта.","25.2.2.38."]
["Использование бюджетных средств на оплату коммунальных услуг, оказанных сторонним потребителям, без соответствующего возмещения данных расходов.","25.2.2.41."]
["Использование бюджетных средств на оплату личных расходов работников учреждения.","25.2.2.51."]
["Использование государственной (муниципальной) собственности не по ее назначению и не в соответствии с целями ее приобретения.","25.3.1.5."]
["Использование государственной (муниципальной) собственности не по ее назначению и не в соответствии с целями ее приобретения.","25.3.1.5."]
["Использование средств на проведение текущего ремонта в качестве оплаты работ по капитальному ремонту и наоборот вследствие неверной классификации видов и состава работ.","25.2.2.34."]
["Компенсация суточных по однодневным командировкам.","25.2.2.22."]
["Направление средств, полученных от предпринимательской и иной приносящей доход деятельности, на цели, не предусмотренные нормативными правовыми актами и разрешительными документами.","25.5.2.1."]
["Нарушение по условиям соглашений в части софинансирования соответствующих обязательств за счет средств местного бюджета (если предусмотрено по условиям соглашения, порядка, договор, НПА возврат при нарушении)","25.2.2.53.8."]
["Нарушение порядка размещения бюджетных средств на банковских депозитах или передачи их в доверительное управление.Неэффективное размещение государственных средств в кредитных организациях.","25.1.2.33."]
["Нарушение правил ответственного хранения государственных (муниципальных) материальных ценностей (ненадлежащее хранение) и их эксплуатации, непринятие мер по обеспечению сохранности государственной (муниципальной) собственности. ","25.3.1.2."]
["Нарушения в расчетах по оплате труда по договорам гражданско-правового характера, в том числе по завышенным тарифам с учетом начислений на выплаты по оплате труда (за исключением отчислений в фонд социального страхования и страховых взносов от несчастных случаев).","25.2.2.7."]
["Начисление выплат по заработной плате (окладов, надбавок, доплат, премий), не предусмотренных действующим законодательством, трудовыми договорами или соотвествующими распорядительными документами либо в размерах, превышающих размеры, установленные действующим законодательством (в том числе завышение окладов, ставок, разрядов по оплате труда), с учетом начислений на выплаты по оплате труда.","25.2.2.3."]
["Начисление выплат по заработной плате без учета фактически отработанного времени (в том числе за неотработанные часы) и фактического исполнения работником должностных обязанностей с учетом начислений на выплаты по оплате труда.","25.2.2.4."]
["Начисления и выплаты стипендий, компенсаций и др. учащимся, студентам (в том числе обучаемым на договорной основе с полным возмещением затрат), учащимся (студентам) - сиротам и оставшимся без попечения родителей с нарушением действующего законодательства.","25.2.2.13."]
["Невостребование с работника бюджетного учреждения - подотчетного лица задолженности по бюджетным средствам, выданным ему в подотчет.","25.2.2.24."]
["Незаконное предоставление ссуды физическим лицам","25.2.2.43."]
["Необоснованное начисление единого социального налога и налога на доходы физических лиц и авансовое перечисление платежей в качестве оплаты единого социального налога и налога на доходы физических лиц за пределами финансового года.","25.2.2.8."]
["Необоснованное применение норм, расценок при определении сметной стоимости работ ( в т.ч. применение территориальных единичных расценок других регионов на территории Республики Башкортостан).","25.2.2.32."]
["Необоснованное расходование средств на оплату дополнительных расходов строительных организаций, не подтвержденных документально или в нарушение законодательства. ","25.2.2.36."]
["Неперечисление (несвоевременное или неполное перечисление) в доход бюджета дебиторской задолженности прошлых лет, поступившей на счета получателей бюджетных средств в текущем году","25.2.2.52."]
["Неправильное определение стоимости работ, выполняемых организациями, работающими по упрощенной системе налогообложения.","25.2.2.35."]
["Неправомерное изменение условий государственных (муниципальных) контрактов и не соблюдение договорных цен в порядке, установленным законодательством и контрактами.","25.2.2.50."]
["Неправомерное использование доходов, полученных сверх утвержденных законом о бюджете.","25.1.2.10."]
["Неправомерное списание государственного (муниципального) имущества.","25.3.1.1."]
["Неправомерное финансирование местных органов власти и организаций за счет средств бюджета Республики Башкортостан (при отсутствии правовых оснований).","25.1.2.13."]
["Неправомерное финансирование расходных обязательств Республики Башкортостан за счет средств местных бюджетов (при отсутствии правовых оснований).","25.1.2.12."]
["Неправомерное финансирование расходов путем проведения зачета денежных средств.","25.1.2.32."]
["Неправомерное финансирование федеральных органов государственной власти и организаций за счет средств бюджетов субъектов РФ и (или) местных бюджетов (при отсутствии правовых оснований).","25.1.2.11."]
["Образование необоснованной дебиторской задолженности по оплате товаров (работ, услуг) ","25.2.2.46."]
["Обучение за счет выделенных бюджетных средств учащихся или студентов, численностью сверх или менее установленного лимита.","25.2.2.12."]
["Оплата арендатором коммунальных и эксплуатационных услуг при отсутствии заключенных договоров аренды, либо договоров на компенсацию потребленных коммунальных услуг. ","25.2.2.40."]
["Оплата завышенных объемов строительно-монтажных работ, в том числе установленных контрольным обмером.","25.2.2.31."]
["Оплата капитального ремонта арендованных помещений (в случае, если подобный ремонт не предусмотрен в договоре и его стоимость в последствии не восстановлена собственником).","25.2.2.39."]
["Оплата кредиторской задолженности, образованной вследствие не законного принятия организаций обязательств за счет бюджетных средств сверх доведенных лимитов.","25.2.2.42."]
["Оплата невыполненных объемов строительно-монтажных работ, в том числе установленных контрольным обмером.","25.2.2.31.1."]
["Осуществление деятельности при отсутствии необходимых разрешений (лицензий, аттестации, аккредитации) или с их нарушением.","25.5.2.6."]
["Осуществление деятельности, не предусмотренной учредительными документами.","25.5.2.5."]
["Предоставление бюджетных инвестиций без оформления доли Республики Башкортостан (муниципального образования) в уставных (складочных) капиталах юридических лиц.","25.1.2.29."]
["Предоставление субсидий юридическим лицам (за исключением субсидий государственным, муниципальным учреждениям), индивидуальным предпринимателям, физическим лицам - производителям товаров, работ, услуг и некоммерческим организациям в нарушение порядка, установленного соответствующими нормативно-правовыми актами.","25.1.2.31."]
["Приобретение основных средств (в т.ч. оборудования, мебели), не предусмотренных проектно-сметной документацией, государственными контрактами, спецификациями и техническими условиями.","25.2.2.37."]
["Приобретение товарно-материальных ценностей, оказание услуг, выполнение работ по договорам по завышенным ценам.","25.2.2.49."]
["Просроченная дебиторская задолженность, образовавшаяся вследствие нарушения порядка оплаты, предусмотренного нормативно-правовыми актами и государственными (муниципальными) контрактами и договорами и (или) непринятие мер по ее взысканию.","25.2.2.45."]
["Расходы бюджетных средств по документам, не подтвержденными встречными проверками (включая списания сумм с подотчета).","25.2.2.48."]
["Расходы бюджетных средств, не подтвержденные необходимыми оправдательными документами (включая списания сумм с подотчета), (компенсация за школьную форму); выплаты денежной компенсации родителям учащихся, за приобретенную школьную форму, предоставления бесплатного питания учащимся из многодетных малоимущих семей без представления подтверждающих документов ","25.2.2.471."]
["Расходы бюджетных средств, не подтвержденные необходимыми оправдательными документами (включая списания сумм с подотчета).","25.2.2.47."]
["Расходы на оплату добровольного страхования по проездным билетам.","25.2.2.21."]
["Расходы, произведенные за счет бюджетных средств в результате завышения сметных назначений, в т.ч. доля оплаты труда работников административно-управленческого и вспомогательного персонала в фонде оплаты труда учреждениям образования превысила 40% \n","25.2.2.44."]
["Расходы, связанные со служебной командировкой, произведенные с превышением норм и нормативов, установленных законодательством. ","25.2.2.20."]
["Сверхнормативные затраты при приобретении, получении и использовании государственного (муниципального) имущества.","25.3.1.10."]
["Содержание за счет выделенных бюджетных средств должностей, не предусмотренных штатным расписанием или действующим законодательством с учетом начислений на выплаты по оплате труда.","25.2.2.2."]
["Содержание за счет выделенных бюджетных средств сверхлимитной численности персонала с учетом начислений на выплаты по оплате труда.","25.2.2.1."]
["Содержание сверхлимитного количества автотранспорта.","25.2.2.26."]
["Создание государственными (муниципальными) органами и функционирование фондов, резервов, не предусмотренных законодательством Российской Федерации.","25.5.2.7."]
["Списание бензина при эксплуатации автомобилей в выходные и праздничные дни при отсутствии приказа по учреждению (организации).","25.2.2.27."]
["Списание запасных частей и горюче-смазочных материалов на эксплуатацию автомобилей, не принадлежащих учреждению.","25.2.2.29."]
["Списание продуктов на питание сотрудников, сторонних лиц (при условии, если последними не произведена оплата стоимости питания с последующим восстановление в соответствующий бюджет).","25.2.2.18."]
["Другие финансовые нарушения","26"]
["Выдача авансов под отчет при наличии задолженности по ранее выданным денежным средствам","26.4.2.8."]
["Другие нарушения бухгалтерского (бюджетного) учета и отчетности, правил работы с денежной наличностью","26.4.2.12."]
["Другие нарушения правил учета и отчетности. ","26.4.1.8."]
["Другие нарушения при выполнении государственных задач и функций.","26.5.1.8."]
["Другие нарушения при осуществлении бюджетными учреждениями предпринимательской и иной приносящей доход деятельности (Уставами общеобразовательных учреждений (поступление от родителей за питание школьников) не предусмотрен. )","26.5.2.9."]
["Другие нарушения при осуществлении бюджетными учреждениями предпринимательской и иной приносящей доход деятельности.","26.5.2.9."]
["Другие нарушения при распоряжении государственным (муниципальным) имуществом","26.3.1.22."]
["Другие нарушения при формировании бюджетов","26.1.3.12."]
["Другие нарушения, влекущие недопоступление средств в доход бюджета. ","26.1.1.15."]
["Другие нарушения, влекущие недопоступление средств в доход бюджета. За несвоевременное перечисление в бюджет арендной платы за земельные участки не начислялись штрафные санкции и не взыскивались пени. ","26.1.1.16."]
["Другие нарушения, влекущие недопоступление средств в доход бюджета. За несвоевременное перечисление в бюджет арендной платы за имущество не начислялись штрафные санкции и не взыскивались пени. ","26.1.1.17."]
["Другие нарушения, влекущие правонарушения в сфере исполнения бюджета по расходам.","26.1.2.36."]
["Другие нарушения. Установление сроков договоров.","26.5.1.8.2."]
["Завышение сметных назначение по бюджетным учреждением (в т.ч. неучтенная дебиторская задолженность)","26.5.1.8.1."]
["Иное невыполнение, неполное выполнение государственных (муниципальных) задач и функций.","26.5.1.3."]
["Иное невыполнение, неполное выполнение государственных (муниципальных) задач и функций. Невыполнение государственных (муниципальных) заданий.","26.5.1.3.1."]
["Нанесение ущерба юридическим и (или) физическим лицам при выполнении должностных обязанностей.","26.5.1.6."]
["Нарушение порядка ведения раздельного бухгалтерского (бюджетного) учета по источникам образования средств.","26.4.2.11."]
["Нарушение порядка зачисления средств в доход бюджета.","26.1.1.14."]
["Нарушение порядка оприходования, начисления амортизации основных средств и нематериальных активов. (в т.ч маккулатуры от списания библ фонда, списание мягкого инвентаря и неоприходование как ветошь)","26.4.2.10."]
["Нарушение порядка приватизации государственного (муниципального) имущества","26.3.1.12."]
["Нарушение порядка рассмотрения, утверждения и публикации отчета об исполнении бюджета. ","26.4.1.6."]
["Нарушение порядка санкционирования оплаты денежных обязательств получателей бюджетных средств","26.1.2.17."]
["Нарушение порядка хранения документов.","26.4.2.4."]
["Нарушение правил ответственного хранения государственных (муниципальных) материальных ценностей (ненадлежащее хранение) и их эксплуатации, непринятие мер по обеспечению сохранности государственной (муниципальной) собственности. ","26.3.1.2."]
["Нарушение сроков подтверждения денежных обязательств, влекущее выплату пени, штрафов.","26.1.2.18."]
["Нарушение сроков представления отчетности.","26.4.2.1."]
["Нарушение установленного порядка подготовки и представления проекта бюджета и документов, необходимых для его составления и рассмотрения.","26.1.3.8."]
["Нарушения бюджетного учета.","26.4.1.5."]
["Нарушения в ведении реестров государственных (муниципальных) контрактов, закупок.","26.4.1.4."]
["Нарушения в ведении реестров расходных обязательств","26.4.1.7."]
["Нарушения единой системы учета и регистрациимуниципальных заимствований, а также порядка ведения муниципальной долговой книги Российской Федерации, субъекта Российской Федерации.","26.4.1.2."]
["Нарушения норм, требований, правил при выполнении государственных(муниципальных) задач и функций.","26.5.1.5."]
["Нарушения норм, требований, правил при осуществлении хозяйственной деятельности","26.5.2.3."]
["Нарушения порядка составления и представления отчетности об исполнении бюджета. ","26.4.1.1."]
["Нарушения правил учета и отчетности, плана финансово-хозяйственной деятельности","26.4.1.9."]
["Не применены заказчиком (АУ, БУ) мер ответственности и совершения иных действий в случае нарушения поставщиком (подрядчиком, исполнителем) условий контракта -  не взысканы пени","26.5.1.2.3"]
["Не применены заказчиком (ГРБС, ГКУ) мер ответственности и совершения иных действий в случае нарушения поставщиком (подрядчиком, исполнителем) условий контракта -  не взысканы пени ","26.5.1.2.2"]
["Не соответствие принятых целевых программ законодательству, нарушение порядка изменения программ; отсутствие оценки эффективности; включение в целевые программы неэффективных мероприятий, завышение расходов программ.","26.5.1.7."]
["Неверное отражение в смете бюджетного учреждения его доходов и расходов.","26.4.1.3."]
["Необоснованное завышение (занижение) расходов или завышение (занижение) доходов в проекте бюджета.","26.1.3.7."]
["Неправомерное изменение объемов бюджетных ассигнований и лимитов бюджетных обязательств, предельных объемов финансирования (с 01.01.2008 года).","26.1.2.3."]
["Неправомерное осуществление государственных (муниципальных) заимствований.","26.1.2.26."]
["Неправомерное отнесение к федеральной собственности имущества, которое должно находиться в собственности субъектов Российской Федерации или муниципальных образований.","26.3.1.11."]
["Неправомерное предоставление государственных (муниципальных) гарантий (в т.ч. без проверки финансового состояния заемщика; с превышением установленного предельного объема; на цели, не соответствующие порядку направления гарантий).","26.1.2.27."]
["Неправомерный отказ в подтверждении исполнения бюджетных обязательств, принятых получателями бюджетных средств.","26.1.2.15."]
["Непредставление гражданам и организациям предусмотренной законом информации.","26.5.1.1."]
["Непредъявление требований по возмещению ущерба государству (муниципальному образованию).","26.5.1.4."]
["Неприменение мер ответственности – штрафов и пени.","26.5.1.2."]
["Неприменение мер ответственности – штрафов и пени. (за ненадлежащее исполнение администрацией муниципальными образованиями условий соглашения на софинансирования не предъявлены и невзысканы пени). \n","26.5.1.2.1."]
["Непринятие мер по взысканию арендной платы за пользование государственным (муниципальным) имуществом. Занижение и недополучение размеров арендной платы за использование государственного (муниципального) имущества. \n(с 01.11.2014 только бюджетных и автономных учреждений. т.к. плата от арендной платы должны поступать на внебюджетный счет БУ и АУ) ","26.1.1.12."]
["Несоблюдение порядка проведения инвентаризации имущества и финансовых обязательств, незаключение договоров с материально-ответственными лицами.","26.4.2.9."]
["Несоблюдение порядка работы с денежной наличностью, ведения кассовых операций.","26.4.2.3."]
["Несоответствие данных бухгалтерского (бюджетного) учета первичным документам.","26.4.2.2."]
["Несоответствие документов, представляемых с проектом бюджета, требованиям законодательства","26.1.3.9."]
["Несоответствие доходной части проекта бюджета требованиям законодательства.","26.1.3.3."]
["Несоответствие проекта бюджета принципам бюджетной системы Российской Федерации.","26.1.3.2."]
["Несоответствие проекта бюджета требованиям законодательства в части источников финансирования дефицита бюджета.","26.1.3.5."]
["Несоответствие проекта бюджета требованиям законодательства в части межбюджетных отношений.","26.1.3.6."]
["Несоответствие проекта бюджета требованиям законодательства в части прогноза макроэкономических показателей.","26.1.3.1."]
["Несоответствие расходной части проекта бюджета требованиям законодательства.","26.1.3.4."]
["Несоответствие сводной бюджетной росписи закону (решению) о бюджете.","26.1.2.1."]
["Несоответствие уведомлений о бюджетных ассигнованиях, уведомлений о лимитах бюджетных обязательств утвержденным расходам и бюджетной росписи.","26.1.2.2."]
["Неутверждение, несвоевременное утверждение сводных бюджетных росписей и росписей главных распорядителей бюджетных средств, смет доходов и расходов (бюджетных смет с 01.01.2008 года); несвоевременное доведение бюджетных ассигнований и лимитов бюджетных обязательств.","26.1.3.10."]
["Осуществление учета средств, полученных от предпринимательской и иной приносящей доход деятельности, не на лицевых счетах, открытых казначейством.","26.5.2.4."]
["Отсутствие контрактов, заключенных с зарубежными организациями, или иных первичных документов на русском языке или их переводов на русский язык","26.4.2.6."]
["Отсутствие контроля за использованием объектов государственной (муниципальной) собственности.","26.3.1.16."]
["Отсутствие обязательных реквизитов документов и иные нарушения бухгалтерского (бюджетного) учета и отчетности.","26.4.2.5."]
["Подтверждение денежных обязательств, не подлежащих принятию. ","26.1.2.16."]
["Поступающие в виде от найма жилых помещений не учитывались в доходах местного бюджета ","26.1.1.18."]
["Предоставление бюджетных кредитов без надлежащего обеспечения обязательств.","26.1.2.23."]
["Предоставление бюджетных кредитов без проверки финансового состояния получателя.","26.1.2.25."]
["Предоставление бюджетных кредитов без указания цели использования средств в договоре. ","26.1.2.24."]
["Предоставление бюджетных кредитов при наличии просроченной задолженности по ранее предоставленным бюджетным средствам на возвратной основе.","26.1.2.21."]
["Предоставление бюджетных кредитов с нарушением закона (решения) о бюджете.","26.1.2.22."]
["Принятие нормативно-правовых актов, противоречащих Бюджетному кодексу РФ в части предоставления и расходования средств в бюджетной системе, несвоеременное принятие или отсутствие требуемых нормативных правовых актов.","26.1.3.11."]
["Расходы бюджетных средств, не подтвержденные необходимыми оправдательными документами. ","26.4.2.7."]
["Финансирование расходов сверх утвержденной сметой доходов и расходов (бюджетной сметой с 01.01.2008 года).","26.1.2.14."]